﻿Body Code,Body Name,Service,GL Code,GL Code Desc,Posting Date,Doc Number,Doc Net Amount,Supplier Name
http://statistics.data.gov.uk/id/local-authority/38,Oxfordshire County Council,Continuing Care - Care Homes - Under 65,5687,,11/04/2019,3110536667,"-£67,510.80",Badby Park Ltd
http://statistics.data.gov.uk/id/local-authority/38,Oxfordshire County Council,WINTER MAINTENANCE,5526,Payments to Private Contractors,30/04/2019,2200632187,"-£63,221.11",Skanska Construction UK Ltd Sp
http://statistics.data.gov.uk/id/local-authority/38,Oxfordshire County Council,Support at Home 65+ Physical Support,5685,B*Cycle tracks,11/04/2019,3110536536,"-£62,094.32",ACER HEALTHCARE LTD
http://statistics.data.gov.uk/id/local-authority/38,Oxfordshire County Council,PROPERTY,1362,Creditors GR/IR -,18/04/2019,2200628495,"-£56,568.35",Carillion LGS Ltd
http://statistics.data.gov.uk/id/local-authority/38,Oxfordshire County Council,Support at Home U65 Learning Disability,5688,,11/04/2019,3110534695,"-£54,929.78",THE KINGWOOD TRUST
http://statistics.data.gov.uk/id/local-authority/38,Oxfordshire County Council,Support at Home U65 Learning Disability,5688,,11/04/2019,3110534683,"-£32,824.50",The Camden Society
http://statistics.data.gov.uk/id/local-authority/38,Oxfordshire County Council,CSB - COUNTY,1362,Creditors GR/IR -,02/04/2019,2200623966,"-£32,197.92",Abicare Services Ltd (Homecare)
http://statistics.data.gov.uk/id/local-authority/38,Oxfordshire County Council,Interagency,5500,Payments to Other Local Authorities,30/04/2019,2200631911,"-£29,700.00",London Borough of Newham
http://statistics.data.gov.uk/id/local-authority/38,Oxfordshire County Council,CHC Fast Track - Care Homes - Over 65,5687,,11/04/2019,3110535127,"-£26,742.87",Freeland House
http://statistics.data.gov.uk/id/local-authority/38,Oxfordshire County Council,ContrO ASC Payments Control Account,7190,Other Recovered Costs,09/04/2019,3110532940,"-£25,018.44",PRECIOUS HOMES LTD
http://statistics.data.gov.uk/id/local-authority/38,Oxfordshire County Council,ContrO ASC Payments Control Account,7190,Other Recovered Costs,09/04/2019,3110532946,"-£25,018.44",Precious Homes Support Limited
http://statistics.data.gov.uk/id/local-authority/38,Oxfordshire County Council,CHC Fast Track - Care Homes - Over 65,5687,,11/04/2019,3110535029,"-£24,157.14",Beech Haven Care Home
http://statistics.data.gov.uk/id/local-authority/38,Oxfordshire County Council,Care Homes - Over 65 Physical Sypport,5685,B*Cycle tracks,11/04/2019,3110535154,"-£21,395.79",Freeland House
http://statistics.data.gov.uk/id/local-authority/38,Oxfordshire County Council,INFORMATION & ADVICE,4861,Hired and Contracted Services,03/04/2019,2200624634,"-£19,116.00",Purple Conversation Community In Co
http://statistics.data.gov.uk/id/local-authority/38,Oxfordshire County Council,CHC Fast Track - Care Homes - Over 65,5687,,11/04/2019,3110536714,"-£18,021.43",Bridge House
http://statistics.data.gov.uk/id/local-authority/38,Oxfordshire County Council,Care Homes - Over 65 Physical Sypport,5685,B*Cycle tracks,11/04/2019,3110538041,"-£17,614.42",Stowford House
http://statistics.data.gov.uk/id/local-authority/38,Oxfordshire County Council,Funded Nursing Care  - Over 65,5692,,11/04/2019,3110538564,"-£17,425.40",MARIA MALLABAND CARE GROUP
http://statistics.data.gov.uk/id/local-authority/38,Oxfordshire County Council,Funded Nursing Care  - Over 65,5692,,11/04/2019,3110538578,"-£17,135.22",MARIA MALLABAND CARE GROUP
http://statistics.data.gov.uk/id/local-authority/38,Oxfordshire County Council,INFORMATION & ADVICE,4861,Hired and Contracted Services,04/04/2019,2200624983,"-£15,930.45",Purple Conversation Community In Co
http://statistics.data.gov.uk/id/local-authority/38,Oxfordshire County Council,Support at Home 65+ Physical Support,5685,B*Cycle tracks,11/04/2019,3110535167,"-£15,842.17",Freeland House
http://statistics.data.gov.uk/id/local-authority/38,Oxfordshire County Council,ICT Operations & Maintenance,5039,ICT Services,11/04/2019,2200627106,"-£15,685.65",Innervate Technology Solutions
http://statistics.data.gov.uk/id/local-authority/38,Oxfordshire County Council,Care Homes - Over 65 Physical Sypport,5686,,11/04/2019,3110537399,"-£13,200.00",CARE UK COMMUNITY PARTNERSHIPS LIMI
http://statistics.data.gov.uk/id/local-authority/38,Oxfordshire County Council,Continuing Care - Care Homes - 65+,5687,,11/04/2019,3110538150,"-£12,987.43",Tall Trees
http://statistics.data.gov.uk/id/local-authority/38,Oxfordshire County Council,ICT Operations & Maintenance,4494,Purchase of IT Equipment,16/04/2019,2200628000,"-£12,624.00",EUROPEAN ELECTRONIQUE LTD
http://statistics.data.gov.uk/id/local-authority/38,Oxfordshire County Council,TRANSPORT,5227,Other Transport Arrangements,12/04/2019,2200627464,"-£12,228.02",GRUNDON WASTE MANAGEMENT LTD
http://statistics.data.gov.uk/id/local-authority/38,Oxfordshire County Council,CHC Fast Track - Care Homes - Over 65,5687,,11/04/2019,3110538426,"-£12,178.58",The Old Prebendal House
http://statistics.data.gov.uk/id/local-authority/38,Oxfordshire County Council,Continuing Care - Care Homes - 65+,5687,,11/04/2019,3110538346,"-£10,800.00",Four Seasons (Headington) Ltd
http://statistics.data.gov.uk/id/local-authority/38,Oxfordshire County Council,Support at Home 65+ Other /Soc Isolation,5688,,11/04/2019,3110534789,"-£10,717.70",UNITED RESPONSE
http://statistics.data.gov.uk/id/local-authority/38,Oxfordshire County Council,CSB - COUNTY,1362,Creditors GR/IR -,02/04/2019,2200623972,"-£10,423.88",Abicare Services Ltd (Homecare)
http://statistics.data.gov.uk/id/local-authority/38,Oxfordshire County Council,Community Support Service Innovation Fd,5520,Payments to Voluntary bodies,18/04/2019,2200628617,"-£10,000.00",Paint Buzz
http://statistics.data.gov.uk/id/local-authority/38,Oxfordshire County Council,CSB - COUNTY,1362,Creditors GR/IR -,02/04/2019,2200623979,"-£9,752.72",Abicare Services Ltd (Homecare)
http://statistics.data.gov.uk/id/local-authority/38,Oxfordshire County Council,CHC Fast Track - Care Homes - Over 65,5687,,11/04/2019,3110535240,"-£9,709.28",Orders of St John
http://statistics.data.gov.uk/id/local-authority/38,Oxfordshire County Council,Support at Home 65+ Physical Support,5686,,11/04/2019,3110535223,"-£9,681.57",Orders of St John
http://statistics.data.gov.uk/id/local-authority/38,Oxfordshire County Council,CSB - COUNTY,1362,Creditors GR/IR -,02/04/2019,2200623941,"-£9,582.82",Abicare Services Ltd (Homecare)
http://statistics.data.gov.uk/id/local-authority/38,Oxfordshire County Council,CSB - COUNTY,1362,Creditors GR/IR -,02/04/2019,2200623974,"-£9,511.03",Abicare Services Ltd (Homecare)
http://statistics.data.gov.uk/id/local-authority/38,Oxfordshire County Council,Mainstream Res,5558,,01/04/2019,2200627343,"-£9,295.74",Elysium Health Care
http://statistics.data.gov.uk/id/local-authority/38,Oxfordshire County Council,Support at Home 65+ Memory & Cognition,5685,B*Cycle tracks,11/04/2019,3110537490,"-£9,260.23",Lashbrook House Care Home
http://statistics.data.gov.uk/id/local-authority/38,Oxfordshire County Council,CSB - COUNTY,1362,Creditors GR/IR -,02/04/2019,2200623962,"-£8,807.45",Abicare Services Ltd (Homecare)
http://statistics.data.gov.uk/id/local-authority/38,Oxfordshire County Council,CSB - COUNTY,1362,Creditors GR/IR -,02/04/2019,2200623928,"-£8,807.10",Abicare Services Ltd (Homecare)
http://statistics.data.gov.uk/id/local-authority/38,Oxfordshire County Council,ContrO ASC Payments Control Account,5689,,24/04/2019,3110544064,"-£7,825.00",Oxford Private Care
http://statistics.data.gov.uk/id/local-authority/38,Oxfordshire County Council,Continuing Care - Care Homes - 65+,5687,,11/04/2019,3110538312,"-£7,600.00",Four Seasons (Headington) Ltd
http://statistics.data.gov.uk/id/local-authority/38,Oxfordshire County Council,CSB - COUNTY,1362,Creditors GR/IR -,02/04/2019,2200623982,"-£7,555.09",Abicare Services Ltd (Homecare)
http://statistics.data.gov.uk/id/local-authority/38,Oxfordshire County Council,CHC Fast Track - Care Homes - Over 65,5687,,11/04/2019,3110535161,"-£7,542.86",Freeland House
http://statistics.data.gov.uk/id/local-authority/38,Oxfordshire County Council,Support at Home 65+ Memory & Cognition,5686,,11/04/2019,3110535097,"-£7,457.43",Orders of St John
http://statistics.data.gov.uk/id/local-authority/38,Oxfordshire County Council,ContrO ASC Payments Control Account,5689,,24/04/2019,3110543831,"-£7,289.00",Day & Night Care Assistance
http://statistics.data.gov.uk/id/local-authority/38,Oxfordshire County Council,Continuing Care - Care Homes - 65+,5687,,11/04/2019,3110537588,"-£7,071.43",Lincroft Meadow
http://statistics.data.gov.uk/id/local-authority/38,Oxfordshire County Council,Interim Funding  - Care Homes - Over 65,5687,,11/04/2019,3110537747,"-£6,857.15",Oxford Beaumont
http://statistics.data.gov.uk/id/local-authority/38,Oxfordshire County Council,,1446,Balances brought forward control a/c,17/04/2019,3110541859,"-£6,528.00",Oxford Direct Services
http://statistics.data.gov.uk/id/local-authority/38,Oxfordshire County Council,COMM DRAWDOWN FUNDNG,8102,Payments to main contractor,01/04/2019,2200624699,"-£6,139.89",Skanska Construction UK Ltd Sp
http://statistics.data.gov.uk/id/local-authority/38,Oxfordshire County Council,CHC Fast Track - Care Homes - Over 65,5687,,11/04/2019,3110537586,"-£6,027.86",Lincroft Meadow
http://statistics.data.gov.uk/id/local-authority/38,Oxfordshire County Council,Care Homes - Over 65 Physical Sypport,5687,,11/04/2019,3110536030,"-£5,950.00",Orders of St John
http://statistics.data.gov.uk/id/local-authority/38,Oxfordshire County Council,NURSERY ED FUND,5537,Payments to Other Establishments,09/04/2019,3110532939,"-£5,927.68",Oxford's British Orchard Nursery
http://statistics.data.gov.uk/id/local-authority/38,Oxfordshire County Council,,1446,Balances brought forward control a/c,16/04/2019,3110541568,"-£5,927.68",Oxford's British Orchard Nursery
http://statistics.data.gov.uk/id/local-authority/38,Oxfordshire County Council,Community Support Service Banbury,4270,HTM / Other Vehicle - Hire Charges,01/04/2019,2200630987,"-£5,460.00",London Hire
http://statistics.data.gov.uk/id/local-authority/38,Oxfordshire County Council,SAFETY CAMERA MTCE,4531,Materials,10/04/2019,2200626934,"-£5,440.00",Oxford Direct Services
http://statistics.data.gov.uk/id/local-authority/38,Oxfordshire County Council,CSB - COUNTY,1362,Creditors GR/IR -,02/04/2019,2200624011,"-£4,795.91",Abicare Services Ltd (Homecare)
http://statistics.data.gov.uk/id/local-authority/38,Oxfordshire County Council,CHC Fast Track - Care Homes - Over 65,5687,,11/04/2019,3110535584,"-£4,656.00",SANCTUARY CARE PROPERTY (2) LTD
http://statistics.data.gov.uk/id/local-authority/38,Oxfordshire County Council,CHC Fast Track - Care Homes - Over 65,5687,,11/04/2019,3110537072,"-£4,642.86",CUMNOR HILL HOUSE
http://statistics.data.gov.uk/id/local-authority/38,Oxfordshire County Council,Care Homes - Over 65 Physical Sypport,5687,,11/04/2019,3110535313,"-£4,639.70",Heathfield House Nursing Home
http://statistics.data.gov.uk/id/local-authority/38,Oxfordshire County Council,ContrO ASC Payments Control Account,5689,,24/04/2019,3110543690,"-£4,574.00",Charterville Care At Home Ltd
http://statistics.data.gov.uk/id/local-authority/38,Oxfordshire County Council,Support at Home U65 Learning Disability,5688,,11/04/2019,3110535061,"-£4,522.50",You and Me Supported Living
http://statistics.data.gov.uk/id/local-authority/38,Oxfordshire County Council,Care Homes - Over 65 Sensory Support,5686,,11/04/2019,3110534954,"-£4,485.64",Orders of St John
http://statistics.data.gov.uk/id/local-authority/38,Oxfordshire County Council,CHC Fast Track - Care Homes - Over 65,5687,,11/04/2019,3110537498,"-£4,400.00",Lashbrook House Care Home
http://statistics.data.gov.uk/id/local-authority/38,Oxfordshire County Council,Care Homes - Over 65 Mental Health,5685,B*Cycle tracks,11/04/2019,3110538159,"-£4,315.45",Tall Trees
http://statistics.data.gov.uk/id/local-authority/38,Oxfordshire County Council,LD Continuing Care  Care Homes  Under 65,5687,,11/04/2019,3110536647,"-£4,271.14",Avondale Care Home
http://statistics.data.gov.uk/id/local-authority/38,Oxfordshire County Council,Care Homes - Over 65 Mental Health,5686,,11/04/2019,3110535931,"-£4,238.14",SANCTUARY CARE LTD
http://statistics.data.gov.uk/id/local-authority/38,Oxfordshire County Council,,1148,Salary Overpayments,12/04/2019,3110538773,"-£3,959.14",OCC One Time Vendor
http://statistics.data.gov.uk/id/local-authority/38,Oxfordshire County Council,CHC Fast Track - Care Homes - Under 65,5687,,11/04/2019,3110537758,"-£3,928.57",Oxford Beaumont
http://statistics.data.gov.uk/id/local-authority/38,Oxfordshire County Council,Care Homes - Over 65 Memory & Cognition,5687,,11/04/2019,3110536904,"-£3,800.00",Cherwood House Care Centre
http://statistics.data.gov.uk/id/local-authority/38,Oxfordshire County Council,Care Homes - Over 65 Physical Sypport,5686,,11/04/2019,3110537783,"-£3,800.00",Fairholme House
http://statistics.data.gov.uk/id/local-authority/38,Oxfordshire County Council,Support at Home U65 Learning Disability,5690,,11/04/2019,3110536187,"-£3,781.38",Life Path Trust Ltd
http://statistics.data.gov.uk/id/local-authority/38,Oxfordshire County Council,Care Homes - Over 65 Physical Sypport,5686,,11/04/2019,3110535930,"-£3,642.57",Orders of St John
http://statistics.data.gov.uk/id/local-authority/38,Oxfordshire County Council,CHC Fast Track - Care Homes - Over 65,5687,,11/04/2019,3110536784,"-£3,641.14",METHODIST HOMES
http://statistics.data.gov.uk/id/local-authority/38,Oxfordshire County Council,Care Homes - Over 65 Physical Sypport,5686,,11/04/2019,3110535432,"-£3,600.00",Kirlena House
http://statistics.data.gov.uk/id/local-authority/38,Oxfordshire County Council,Support at Home U65 Other /Soc Isolation,5688,,11/04/2019,3110534452,"-£3,561.50",Real Life Options
http://statistics.data.gov.uk/id/local-authority/38,Oxfordshire County Council,ABBEY HOUSE,4111,Security Costs,30/04/2019,2200631998,"-£3,421.00",Securipol Ltd
http://statistics.data.gov.uk/id/local-authority/38,Oxfordshire County Council,ABBEY HOUSE,4111,Security Costs,30/04/2019,2200632007,"-£3,110.00",Securipol Ltd
http://statistics.data.gov.uk/id/local-authority/38,Oxfordshire County Council,Support at Home 65+ Physical Support,5681,,11/04/2019,3110536056,"-£3,085.72",Orders of St John
http://statistics.data.gov.uk/id/local-authority/38,Oxfordshire County Council,SEN TRANSPORT,4330,Transport to School Activities,29/04/2019,3110544778,"-£2,995.70",Ash Cars (UK) Ltd
http://statistics.data.gov.uk/id/local-authority/38,Oxfordshire County Council,Care Homes - Over 65 Physical Sypport,5687,,11/04/2019,3110537760,"-£2,995.49",Oxford Beaumont
http://statistics.data.gov.uk/id/local-authority/38,Oxfordshire County Council,Community Support Service Wantage,4270,HTM / Other Vehicle - Hire Charges,24/04/2019,2200629726,"-£2,970.00",London Hire
http://statistics.data.gov.uk/id/local-authority/38,Oxfordshire County Council,WCR IMPROVEMENT,4861,Hired and Contracted Services,01/04/2019,2200623749,"-£2,750.00",W&S RECYCLING
http://statistics.data.gov.uk/id/local-authority/38,Oxfordshire County Council,Continuing Care - Care Homes - 65+,5687,,11/04/2019,3110537998,"-£2,742.86",Barchester Healthcare Homes Ltd
http://statistics.data.gov.uk/id/local-authority/38,Oxfordshire County Council,Continuing Care - Care Homes - 65+,5687,,11/04/2019,3110534972,"-£2,717.79",Banbury Heights Nursing Home
http://statistics.data.gov.uk/id/local-authority/38,Oxfordshire County Council,OBS,4940,Other Services,23/04/2019,2200629017,"-£2,713.57",Enterprise Nation Ltd
http://statistics.data.gov.uk/id/local-authority/38,Oxfordshire County Council,Care Homes - Over 65 Physical Sypport,5686,,11/04/2019,3110538077,"-£2,600.00",St Johns Residential Home
http://statistics.data.gov.uk/id/local-authority/38,Oxfordshire County Council,ContrO ASC Payments Control Account,5689,,24/04/2019,3110543541,"-£2,480.00",Acquire Care Ltd
http://statistics.data.gov.uk/id/local-authority/38,Oxfordshire County Council,COMM DRAWDOWN FUNDNG,8350,Furn. & Equip. costing £6000 or more,01/04/2019,2200631001,"-£2,468.10",TELENT
http://statistics.data.gov.uk/id/local-authority/38,Oxfordshire County Council,Support at Home 65+ Learning Disability,5688,,11/04/2019,3110534607,"-£2,460.39",The Brandon Trust
http://statistics.data.gov.uk/id/local-authority/38,Oxfordshire County Council,Health Acquired Brain Injury C Homes 65+,5687,,11/04/2019,3110536685,"-£2,405.00",THOMAS EDWARD MITTON HOUSE
http://statistics.data.gov.uk/id/local-authority/38,Oxfordshire County Council,Continuing Care - Care Homes - 65+,5687,,11/04/2019,3110538610,"-£2,398.29",Caring Homes Healthcare Group Ltd
http://statistics.data.gov.uk/id/local-authority/38,Oxfordshire County Council,Funded Nursing Care  - Over 65,5692,,11/04/2019,3110535262,"-£2,327.22",Glebefields Care Home
http://statistics.data.gov.uk/id/local-authority/38,Oxfordshire County Council,UTILITIES,3951,Non System - Electricity,18/04/2019,3110542353,"-£2,285.75",NPOWER
http://statistics.data.gov.uk/id/local-authority/38,Oxfordshire County Council,Care Homes - Over 65 Physical Sypport,5686,,11/04/2019,3110537717,"-£2,185.71",Newland House
http://statistics.data.gov.uk/id/local-authority/38,Oxfordshire County Council,Support at Home 65+ Physical Support,5688,,11/04/2019,3110534106,"-£2,173.41",ADVANCE HOUSING & SUPPORT LTD
http://statistics.data.gov.uk/id/local-authority/38,Oxfordshire County Council,Funded Nursing Care  - Over 65,5692,,11/04/2019,3110537004,"-£2,123.86",CHURCHFIELDS CARE HOME
http://statistics.data.gov.uk/id/local-authority/38,Oxfordshire County Council,Funded Nursing Care  - Over 65,5692,,11/04/2019,3110538397,"-£2,010.89",The Langston
http://statistics.data.gov.uk/id/local-authority/38,Oxfordshire County Council,EARLY YEARS TRADED SERVICES,4540,"Educational Supplies, Stationery & Mater",25/04/2019,2200630508,"-£2,010.00",Community Playthings
http://statistics.data.gov.uk/id/local-authority/38,Oxfordshire County Council,GYPSY & TRAVELLER SV,3951,Non System - Electricity,01/04/2019,2200624490,"-£1,990.37",NPOWER
http://statistics.data.gov.uk/id/local-authority/38,Oxfordshire County Council,Care Homes - Over 65 Physical Sypport,5687,,11/04/2019,3110537632,"-£1,942.86",Meadow View Nursing Home
http://statistics.data.gov.uk/id/local-authority/38,Oxfordshire County Council,GYPSY & TRAVELLER SV,3951,Non System - Electricity,01/04/2019,2200624492,"-£1,902.10",NPOWER
http://statistics.data.gov.uk/id/local-authority/38,Oxfordshire County Council,Care Homes - Over 65 Physical Sypport,5687,,11/04/2019,3110534884,"-£1,901.57",Banbury Heights Nursing Home
http://statistics.data.gov.uk/id/local-authority/38,Oxfordshire County Council,CHC Fast Track - Care Homes - Over 65,5687,,11/04/2019,3110535444,"-£1,900.00",Mill House Nursing Home
http://statistics.data.gov.uk/id/local-authority/38,Oxfordshire County Council,CHC Fast Track - Care Homes - Under 65,5687,,11/04/2019,3110535481,"-£1,900.00",Mill House Nursing Home
http://statistics.data.gov.uk/id/local-authority/38,Oxfordshire County Council,Care Homes - Over 65 Physical Sypport,5687,,11/04/2019,3110536106,"-£1,879.29",Orders of St John
http://statistics.data.gov.uk/id/local-authority/38,Oxfordshire County Council,Funded Nursing Care  - Under 65,5692,,11/04/2019,3110537505,"-£1,875.32",Lashbrook House Care Home
http://statistics.data.gov.uk/id/local-authority/38,Oxfordshire County Council,Funded Nursing Care  - Over 65,5692,,11/04/2019,3110537172,"-£1,852.73",The Old Vicarage
http://statistics.data.gov.uk/id/local-authority/38,Oxfordshire County Council,Funded Nursing Care  - Over 65,5692,,11/04/2019,3110535055,"-£1,830.13",Fewcott Healthcare Ltd
http://statistics.data.gov.uk/id/local-authority/38,Oxfordshire County Council,Care Homes - Over 65 Physical Sypport,5686,,11/04/2019,3110535785,"-£1,821.00",Orders of St John
http://statistics.data.gov.uk/id/local-authority/38,Oxfordshire County Council,Care Homes - Over 65 Leaning Disability,5687,,11/04/2019,3110537660,"-£1,802.57",Middletown Grange Care Home
http://statistics.data.gov.uk/id/local-authority/38,Oxfordshire County Council,Support at Home U65 Learning Disability,5690,,11/04/2019,3110536275,"-£1,800.00",Style Acre
http://statistics.data.gov.uk/id/local-authority/38,Oxfordshire County Council,Care Homes - Over 65 Physical Sypport,5687,,11/04/2019,3110538142,"-£1,693.14",Tall Trees
http://statistics.data.gov.uk/id/local-authority/38,Oxfordshire County Council,Care Homes - Over 65 Physical Sypport,5685,B*Cycle tracks,11/04/2019,3110535832,"-£1,679.28",Orders of St John
http://statistics.data.gov.uk/id/local-authority/38,Oxfordshire County Council,Funded Nursing Care  - Over 65,5692,,11/04/2019,3110538317,"-£1,649.38",Four Seasons (Headington) Ltd
http://statistics.data.gov.uk/id/local-authority/38,Oxfordshire County Council,Funded Nursing Care  - Over 65,5692,,11/04/2019,3110537777,"-£1,536.41",Oxford Beaumont
http://statistics.data.gov.uk/id/local-authority/38,Oxfordshire County Council,Care Homes - Over 65 Physical Sypport,5686,,11/04/2019,3110537897,"-£1,464.29",Rosebank Care Home
http://statistics.data.gov.uk/id/local-authority/38,Oxfordshire County Council,Support at Home 65+ Physical Support,5686,,11/04/2019,3110535395,"-£1,387.43",Orders of St John
http://statistics.data.gov.uk/id/local-authority/38,Oxfordshire County Council,Care Homes - Over 65 Sensory Support,5687,,11/04/2019,3110535203,"-£1,378.14",Orders of St John
http://statistics.data.gov.uk/id/local-authority/38,Oxfordshire County Council,BCF Pool Winter Pressures,5687,,11/04/2019,3110535124,"-£1,357.14",Freeland House
http://statistics.data.gov.uk/id/local-authority/38,Oxfordshire County Council,CORPORATE LANDLORD,3980,Service Charges - Premises,18/04/2019,3110542354,"-£1,320.00",Savills (UK) Ltd
http://statistics.data.gov.uk/id/local-authority/38,Oxfordshire County Council,Care Homes - Over 65 Sensory Support,5687,,11/04/2019,3110538262,"-£1,262.03",The Grange Care Centre
http://statistics.data.gov.uk/id/local-authority/38,Oxfordshire County Council,Care Homes - Over 65 Physical Sypport,5687,,11/04/2019,3110535093,"-£1,221.43",Fewcott Healthcare Ltd
http://statistics.data.gov.uk/id/local-authority/38,Oxfordshire County Council,Support at Home U65 Learning Disability,7064,B* Registration Of Old Pers Homes,11/04/2019,3110534819,"-£1,209.88",The Camden Society
http://statistics.data.gov.uk/id/local-authority/38,Oxfordshire County Council,Funded Nursing Care  - Over 65,5692,,11/04/2019,3110536694,"-£1,197.49",Bridge House
http://statistics.data.gov.uk/id/local-authority/38,Oxfordshire County Council,Care Homes - Over 65 Physical Sypport,5687,,11/04/2019,3110535268,"-£1,165.48",Glebefields Care Home
http://statistics.data.gov.uk/id/local-authority/38,Oxfordshire County Council,"Roundabout CC, Waynflete Rd",3830,Other Adhoc Site / Grounds Maintenanc,01/04/2019,2200627319,"-£1,141.00",Aspire Enterprise Services Ltd
http://statistics.data.gov.uk/id/local-authority/38,Oxfordshire County Council,BCF Pool Winter Pressures,5687,,11/04/2019,3110535135,"-£1,085.71",Freeland House
http://statistics.data.gov.uk/id/local-authority/38,Oxfordshire County Council,Care Homes - Over 65 Mental Health,5687,,11/04/2019,3110538396,"-£1,085.71",The Langston
http://statistics.data.gov.uk/id/local-authority/38,Oxfordshire County Council,Care Homes - Over 65 Memory & Cognition,5686,,11/04/2019,3110537126,"-£1,077.40",Enstone House
http://statistics.data.gov.uk/id/local-authority/38,Oxfordshire County Council,COMM DRAWDOWN FUNDNG,8102,Payments to main contractor,01/04/2019,2200623846,"-£1,076.68",Skanska Construction UK Ltd Sp
http://statistics.data.gov.uk/id/local-authority/38,Oxfordshire County Council,Care Homes - Over 65 Physical Sypport,5686,,11/04/2019,3110537255,"-£1,057.14",GCH (St Katherines) Ltd
http://statistics.data.gov.uk/id/local-authority/38,Oxfordshire County Council,Care Homes - Over 65 Physical Sypport,5686,,11/04/2019,3110535633,"-£1,040.57",Orders of St John
http://statistics.data.gov.uk/id/local-authority/38,Oxfordshire County Council,,1448,Blackfield Inc & Exp A/c,30/04/2019,3110544979,"-£1,031.24",OCC One Time Vendor
http://statistics.data.gov.uk/id/local-authority/38,Oxfordshire County Council,Care Homes - Over 65 Physical Sypport,5685,B*Cycle tracks,11/04/2019,3110537363,-£929.98,Cedar Court Care Home
http://statistics.data.gov.uk/id/local-authority/38,Oxfordshire County Council,CC NH SPOT OVER 65,5684,,30/04/2019,3110544910,-£928.57,OCC One Time Vendor
http://statistics.data.gov.uk/id/local-authority/38,Oxfordshire County Council,Care Homes - Over 65 Memory & Cognition,5687,,11/04/2019,3110537166,-£928.57,The Fremantle Trust
http://statistics.data.gov.uk/id/local-authority/38,Oxfordshire County Council,Care Homes - Over 65 Physical Sypport,5686,,11/04/2019,3110538026,-£914.29,St Andrews Residential Care Home L
http://statistics.data.gov.uk/id/local-authority/38,Oxfordshire County Council,PLACEMENTS- RELEVANT,5785,Client Lodgings and Accommodation,01/04/2019,2200628480,-£910.35,Sanctuary Supported Living
http://statistics.data.gov.uk/id/local-authority/38,Oxfordshire County Council,Funded Nursing Care  - Over 65,5692,,11/04/2019,3110537474,-£903.77,Lashbrook House Care Home
http://statistics.data.gov.uk/id/local-authority/38,Oxfordshire County Council,Care Homes - Over 65 Physical Sypport,5687,,11/04/2019,3110536086,-£877.00,Orders of St John
http://statistics.data.gov.uk/id/local-authority/38,Oxfordshire County Council,LEGAL SERVICES,5251,Legal Costs,10/04/2019,2200626915,-£837.00,MARTEN WALSH CHERER LIMITED
http://statistics.data.gov.uk/id/local-authority/38,Oxfordshire County Council,Independent Foster,5559,,01/04/2019,2200628690,-£798.00,Capstone Foster Care(South West) Li
http://statistics.data.gov.uk/id/local-authority/38,Oxfordshire County Council,Independent Foster,5559,,01/04/2019,2200628695,-£776.00,Capstone Foster Care(South West) Li
http://statistics.data.gov.uk/id/local-authority/38,Oxfordshire County Council,VOIDS/VACANCY COSTS,5688,,11/04/2019,3110534585,-£761.34,The Brandon Trust
http://statistics.data.gov.uk/id/local-authority/38,Oxfordshire County Council,Funded Nursing Care  - Over 65,5692,,11/04/2019,3110536948,-£745.61,Cherwood House Care Centre
http://statistics.data.gov.uk/id/local-authority/38,Oxfordshire County Council,Care Homes - Over 65 Physical Sypport,5685,B*Cycle tracks,11/04/2019,3110535547,-£709.54,Oakenholt Care Ltd
http://statistics.data.gov.uk/id/local-authority/38,Oxfordshire County Council,Care Homes - Over 65 Physical Sypport,5685,B*Cycle tracks,11/04/2019,3110535921,-£709.54,Wallingford Care Ltd
http://statistics.data.gov.uk/id/local-authority/38,Oxfordshire County Council,Funded Nursing Care  - Over 65,5692,,11/04/2019,3110536569,-£704.19,ACER HEALTHCARE LTD
http://statistics.data.gov.uk/id/local-authority/38,Oxfordshire County Council,,1446,Balances brought forward control a/c,17/04/2019,3110541860,-£699.51,Thames Water Utilities Ltd Schools
http://statistics.data.gov.uk/id/local-authority/38,Oxfordshire County Council,RESIDENTIAL TREATMEN,5686,,01/04/2019,2200623699,-£695.90,WESTERN COUNSELLING SERVICES LTD
http://statistics.data.gov.uk/id/local-authority/38,Oxfordshire County Council,Care Homes - Over 65 Physical Sypport,5686,,11/04/2019,3110535950,-£693.57,SANCTUARY CARE LTD
http://statistics.data.gov.uk/id/local-authority/38,Oxfordshire County Council,Care Homes - Under 65 Leaning Disability,5686,,11/04/2019,3110537087,-£632.00,CAS LEARNING DISABILITIES MID LTD
http://statistics.data.gov.uk/id/local-authority/38,Oxfordshire County Council,Funded Nursing Care  - Over 65,5692,,11/04/2019,3110538618,-£587.45,Caring Homes Healthcare Group Ltd
http://statistics.data.gov.uk/id/local-authority/38,Oxfordshire County Council,Funded Nursing Care  - Over 65,5692,,11/04/2019,3110537489,-£575.90,Lashbrook House Care Home
http://statistics.data.gov.uk/id/local-authority/38,Oxfordshire County Council,Support at Home 65+ Physical Support,5681,,11/04/2019,3110535955,-£575.14,OSJ Contract - Stirlings
http://statistics.data.gov.uk/id/local-authority/38,Oxfordshire County Council,,1448,Blackfield Inc & Exp A/c,01/04/2019,3110530321,-£557.63,OCC One Time Vendor
http://statistics.data.gov.uk/id/local-authority/38,Oxfordshire County Council,Continuing Care - Care Homes - 65+,5687,,11/04/2019,3110535603,-£550.60,SANCTUARY CARE PROPERTY (2) LTD
http://statistics.data.gov.uk/id/local-authority/38,Oxfordshire County Council,Care Homes - Over 65 Physical Sypport,5687,,11/04/2019,3110537695,-£542.86,Middletown Grange Care Home
http://statistics.data.gov.uk/id/local-authority/38,Oxfordshire County Council,Support at Home 65+ Physical Support,5691,,01/04/2019,2200630993,-£535.24,Orders of St John Care Trust
http://statistics.data.gov.uk/id/local-authority/38,Oxfordshire County Council,Support at Home 65+ Physical Support,5691,,29/04/2019,2200630995,-£535.24,Orders of St John Care Trust
http://statistics.data.gov.uk/id/local-authority/38,Oxfordshire County Council,Care Homes - Over 65 Physical Sypport,5687,,11/04/2019,3110535168,-£501.14,Orders of St John
http://statistics.data.gov.uk/id/local-authority/38,Oxfordshire County Council,Transition Fund - Children Centres,5195,Grant Aid and Donations,04/04/2019,3110532807,£500.00,Abingdon Carousel
http://statistics.data.gov.uk/id/local-authority/38,Oxfordshire County Council,LEGAL SERVICES,5251,Legal Costs,01/04/2019,2200627421,£500.00,Alexander Forbes
http://statistics.data.gov.uk/id/local-authority/38,Oxfordshire County Council,LAC PUPIL PREMIUM,5537,Payments to Other Establishments,24/04/2019,3110543349,£500.00,Bishop Stopford School
http://statistics.data.gov.uk/id/local-authority/38,Oxfordshire County Council,ContrO ASC Payments Control Account,4495,IT Software,09/04/2019,2200626579,£500.00,CareFree Management Ltd
http://statistics.data.gov.uk/id/local-authority/38,Oxfordshire County Council,Management,4861,Hired and Contracted Services,08/04/2019,2200626452,£500.00,Censeo Oxford Ltd
http://statistics.data.gov.uk/id/local-authority/38,Oxfordshire County Council,Councillors Priorities Fund,4940,Other Services,26/04/2019,3110544660,£500.00,Cuddesdon & Denton Parish Council
http://statistics.data.gov.uk/id/local-authority/38,Oxfordshire County Council,West Berkshire Adoption Support Fund,4859,Medical and Counselling Fees,02/04/2019,2200624262,£500.00,Dr Andrea Shortland
http://statistics.data.gov.uk/id/local-authority/38,Oxfordshire County Council,Councillors Priorities Fund,4940,Other Services,26/04/2019,3110544687,£500.00,Human Story Theatre
http://statistics.data.gov.uk/id/local-authority/38,Oxfordshire County Council,SEN TRANSPORT,5227,Other Transport Arrangements,11/04/2019,3110538744,£500.00,Luxicars Ltd
http://statistics.data.gov.uk/id/local-authority/38,Oxfordshire County Council,ASC WORKFORCE STRAT,3942,Hire of Accommodation and Facilities,15/04/2019,2200627604,£500.00,NYS CORPORATE LTD
http://statistics.data.gov.uk/id/local-authority/38,Oxfordshire County Council,Senior Leadership Team,3942,Hire of Accommodation and Facilities,17/04/2019,2200628424,£500.00,NYS CORPORATE LTD
http://statistics.data.gov.uk/id/local-authority/38,Oxfordshire County Council,Support at Home U65 Physical Support,5394,Other Expenses,02/04/2019,3110530412,£500.00,OCC One Time Vendor
http://statistics.data.gov.uk/id/local-authority/38,Oxfordshire County Council,MUSEUMS COLLECTIONS,4940,Other Services,18/04/2019,3110542358,£500.00,OCC One Time Vendor
http://statistics.data.gov.uk/id/local-authority/38,Oxfordshire County Council,HIGHWAYS GENERAL,5055,Insurance Costs,24/04/2019,3110543511,£500.00,OCC One Time Vendor
http://statistics.data.gov.uk/id/local-authority/38,Oxfordshire County Council,HIGHWAYS GENERAL,5055,Insurance Costs,29/04/2019,3110544705,£500.00,OCC One Time Vendor
http://statistics.data.gov.uk/id/local-authority/38,Oxfordshire County Council,HIGHWAYS GENERAL,5055,Insurance Costs,29/04/2019,3110544707,£500.00,OCC One Time Vendor
http://statistics.data.gov.uk/id/local-authority/38,Oxfordshire County Council,EARLY YEARS SALARIES,4940,Other Services,01/04/2019,2200623583,£500.00,OS Consulting
http://statistics.data.gov.uk/id/local-authority/38,Oxfordshire County Council,EARLY YEARS SALARIES,4940,Other Services,09/04/2019,2200626679,£500.00,OS Consulting
http://statistics.data.gov.uk/id/local-authority/38,Oxfordshire County Council,SEN TRANSPORT,5227,Other Transport Arrangements,11/04/2019,3110534861,£500.00,Oxfordshire Travel Ltd
http://statistics.data.gov.uk/id/local-authority/38,Oxfordshire County Council,SKILLS & LEARNING,3103,Other Training Courses and Qualification,03/04/2019,2200624369,£500.00,Premier Partnership
http://statistics.data.gov.uk/id/local-authority/38,Oxfordshire County Council,Support at Home 65+ Physical Support,5899,Social Care - Direct Payments,15/04/2019,3110539267,£500.00,Purple Conversation Com In Co (DP)
http://statistics.data.gov.uk/id/local-authority/38,Oxfordshire County Council,Support at Home 65+ Physical Support,5899,Social Care - Direct Payments,15/04/2019,3110539490,£500.00,Purple Conversation Com In Co (DP)
http://statistics.data.gov.uk/id/local-authority/38,Oxfordshire County Council,SEN TRANSPORT,4330,Transport to School Activities,17/04/2019,3110541896,£500.00,S S Taxis
http://statistics.data.gov.uk/id/local-authority/38,Oxfordshire County Council,BROADBAND PROJECT,5039,ICT Services,01/04/2019,2200623400,£500.00,Skeen Computing Services Ltd
http://statistics.data.gov.uk/id/local-authority/38,Oxfordshire County Council,Delegated Health Tasks  - Over 65,5691,,17/04/2019,3110542076,£500.00,The Caring Company (Oxon)
http://statistics.data.gov.uk/id/local-authority/38,Oxfordshire County Council,Councillors Priorities Fund,4940,Other Services,04/04/2019,3110532825,£500.00,The Theatre Chipping Norton
http://statistics.data.gov.uk/id/local-authority/38,Oxfordshire County Council,Councillors Priorities Fund,4940,Other Services,11/04/2019,3110538666,£500.00,West Witney Sports and Social Club
http://statistics.data.gov.uk/id/local-authority/38,Oxfordshire County Council,Support at Home 65+ Physical Support,5696,,03/04/2019,3110532718,£500.40,Housing&care21
http://statistics.data.gov.uk/id/local-authority/38,Oxfordshire County Council,Support at Home 65+ Physical Support,5698,,24/04/2019,3110544068,£500.51,Oxford Private Care
http://statistics.data.gov.uk/id/local-authority/38,Oxfordshire County Council,Support at Home 65+ Mental Health,5696,,03/04/2019,3110532745,£501.87,Orders of St John Care Trust
http://statistics.data.gov.uk/id/local-authority/38,Oxfordshire County Council,Support at Home 65+ Learning Disability,5899,Social Care - Direct Payments,15/04/2019,3110539723,£502.28,Purple Conversation Com In Co (DP)
http://statistics.data.gov.uk/id/local-authority/38,Oxfordshire County Council,Central FSS Statutory - Blackbird Leys,5227,Other Transport Arrangements,17/04/2019,9300038678,£503.20,OCC SS Oxford City Div 1 Cash
http://statistics.data.gov.uk/id/local-authority/38,Oxfordshire County Council,Support at Home 65+ Physical Support,5689,,30/04/2019,3110545575,£503.25,Caremark (West Oxfordshire & Cherwe
http://statistics.data.gov.uk/id/local-authority/38,Oxfordshire County Council,ELEC NP RD ILLUM SGN,5526,Payments to Private Contractors,17/04/2019,2200628382,£503.34,Bouygues E&S Infrastructure UK Ltd
http://statistics.data.gov.uk/id/local-authority/38,Oxfordshire County Council,MAINSTREAM-SECONDARY,4330,Transport to School Activities,22/04/2019,3110542689,£504.00,001 Alpha Cars Ltd
http://statistics.data.gov.uk/id/local-authority/38,Oxfordshire County Council,SEN TRANSPORT,5227,Other Transport Arrangements,22/04/2019,3110542643,£504.00,A2B Castle Cars Ltd
http://statistics.data.gov.uk/id/local-authority/38,Oxfordshire County Council,SEN TRANSPORT,5227,Other Transport Arrangements,22/04/2019,3110542645,£504.00,A2B Castle Cars Ltd
http://statistics.data.gov.uk/id/local-authority/38,Oxfordshire County Council,SEN TRANSPORT,4330,Transport to School Activities,22/04/2019,3110542594,£504.00,Abingdon Taxis FKN Autotaxis
http://statistics.data.gov.uk/id/local-authority/38,Oxfordshire County Council,MEADOWBROOK TRANSPT,4330,Transport to School Activities,12/04/2019,3110538788,£504.00,Browns Taxis Ltd
http://statistics.data.gov.uk/id/local-authority/38,Oxfordshire County Council,SEN TRANSPORT,5227,Other Transport Arrangements,09/04/2019,3110533611,£504.00,Crown Cabs Travel Ltd
http://statistics.data.gov.uk/id/local-authority/38,Oxfordshire County Council,Support at Home 65+ Physical Support,5899,Social Care - Direct Payments,15/04/2019,3110539888,£504.00,Purple Conversation Com In Co (DP)
http://statistics.data.gov.uk/id/local-authority/38,Oxfordshire County Council,SEN TRANSPORT,5227,Other Transport Arrangements,11/04/2019,3110534978,£504.00,The Oxfordshire Taxi Company Ltd T/
http://statistics.data.gov.uk/id/local-authority/38,Oxfordshire County Council,LIBRARY COLLECTIONS,4539,"Books, DVDs and CDs",15/04/2019,3110538931,£504.37,ASKEWS & HOLTS LIBRARY SERVICES LTD
http://statistics.data.gov.uk/id/local-authority/38,Oxfordshire County Council,Urgent Response,5689,,30/04/2019,3110545859,£504.72,Day and Nightcare Assistance
http://statistics.data.gov.uk/id/local-authority/38,Oxfordshire County Council,HARD FM,3787,Premises Repairs,15/04/2019,2200627750,£504.72,KONE
http://statistics.data.gov.uk/id/local-authority/38,Oxfordshire County Council,TRADING STANDARDS,4540,"Educational Supplies, Stationery & Mater",02/04/2019,2200624105,£504.82,LAWGUIDE LTD
http://statistics.data.gov.uk/id/local-authority/38,Oxfordshire County Council,TRADING STANDARDS,4540,"Educational Supplies, Stationery & Mater",10/04/2019,2200626830,£504.82,LAWGUIDE LTD
http://statistics.data.gov.uk/id/local-authority/38,Oxfordshire County Council,Support at Home 65+ Physical Support,5696,,18/04/2019,3110542429,£504.82,Orders of St John Care Trust
http://statistics.data.gov.uk/id/local-authority/38,Oxfordshire County Council,Support at Home 65+ Physical Support,5689,,02/04/2019,3110532111,£505.09,PLL Care Services
http://statistics.data.gov.uk/id/local-authority/38,Oxfordshire County Council,Support at Home 65+ Memory & Cognition,5698,,24/04/2019,3110543880,£505.50,Day & Night Care Assistance
http://statistics.data.gov.uk/id/local-authority/38,Oxfordshire County Council,Contingency Home Care,5689,,30/04/2019,3110546178,£506.03,Oxford University Hospitals NHS FT
http://statistics.data.gov.uk/id/local-authority/38,Oxfordshire County Council,SM DISABILITIES,5899,Social Care - Direct Payments,26/04/2019,3110544612,£506.33,Purple Conversation Com In Co (DP)
http://statistics.data.gov.uk/id/local-authority/38,Oxfordshire County Council,Support at Home 65+ Physical Support,5689,,02/04/2019,3110531808,£507.41,Greigcare Home Service
http://statistics.data.gov.uk/id/local-authority/38,Oxfordshire County Council,SEN TRANSPORT,5227,Other Transport Arrangements,09/04/2019,3110533616,£507.94,Crown Cabs Travel Ltd
http://statistics.data.gov.uk/id/local-authority/38,Oxfordshire County Council,Support at Home U65 Physical Support,5899,Social Care - Direct Payments,15/04/2019,3110539336,£508.00,Purple Conversation Com In Co (DP)
http://statistics.data.gov.uk/id/local-authority/38,Oxfordshire County Council,Support at Home 65+ Physical Support,5899,Social Care - Direct Payments,15/04/2019,3110539508,£508.00,Purple Conversation Com In Co (DP)
http://statistics.data.gov.uk/id/local-authority/38,Oxfordshire County Council,SEN TRANSPORT,5227,Other Transport Arrangements,22/04/2019,3110542582,£508.20,Crown Cabs Travel Ltd
http://statistics.data.gov.uk/id/local-authority/38,Oxfordshire County Council,Support at Home U65 Physical Support,5899,Social Care - Direct Payments,15/04/2019,3110539911,£508.32,Purple Conversation Com In Co (DP)
http://statistics.data.gov.uk/id/local-authority/38,Oxfordshire County Council,Support at Home 65+ Physical Support,5689,,30/04/2019,3110546000,£508.47,Greigcare Home Service
http://statistics.data.gov.uk/id/local-authority/38,Oxfordshire County Council,PROCUREMENT,4232,Vehicle Fuel,29/04/2019,2200631068,£508.95,Certas Energy UK Ltd
http://statistics.data.gov.uk/id/local-authority/38,Oxfordshire County Council,NURSERY ED FUND,5537,Payments to Other Establishments,10/04/2019,3110541370,£509.04,Donna Kowalski
http://statistics.data.gov.uk/id/local-authority/38,Oxfordshire County Council,Support at Home 65+ Physical Support,5689,,30/04/2019,3110545423,£509.25,Caremark (West Oxfordshire & Cherwe
http://statistics.data.gov.uk/id/local-authority/38,Oxfordshire County Council,Support at Home 65+ Physical Support,5899,Social Care - Direct Payments,15/04/2019,3110539557,£509.32,Purple Conversation Com In Co (DP)
http://statistics.data.gov.uk/id/local-authority/38,Oxfordshire County Council,LEAVING CARE CITY 2,5394,Other Expenses,23/04/2019,2200629042,£510.00,KEY2 FUTURES LTD
http://statistics.data.gov.uk/id/local-authority/38,Oxfordshire County Council,Support at Home 65+ Physical Support,5698,,24/04/2019,3110543779,£510.37,Charterville Care At Home Ltd
http://statistics.data.gov.uk/id/local-authority/38,Oxfordshire County Council,Support at Home U65 Physical Support,5899,Social Care - Direct Payments,15/04/2019,3110539726,£510.40,Purple Conversation Com In Co (DP)
http://statistics.data.gov.uk/id/local-authority/38,Oxfordshire County Council,FAM GRP CONFERENCES,5668,Technical and Professional Consultant F,12/04/2019,2200627479,£510.85,Mike Boon
http://statistics.data.gov.uk/id/local-authority/38,Oxfordshire County Council,Support at Home U65 Learning Disability,5689,,30/04/2019,3110546321,£510.86,PLL Care Services
http://statistics.data.gov.uk/id/local-authority/38,Oxfordshire County Council,CORPORATE LANDLORD,4001,Uniform Business Rates,01/04/2019,3500053595,£511.50,South Oxfordshire District Council
http://statistics.data.gov.uk/id/local-authority/38,Oxfordshire County Council,Support at Home 65+ Physical Support,5689,,02/04/2019,3110531280,£511.65,Caremark (West Oxfordshire & Cherwe
http://statistics.data.gov.uk/id/local-authority/38,Oxfordshire County Council,PROCUREMENT,4232,Vehicle Fuel,16/04/2019,2200627930,£511.65,Certas Energy UK Ltd
http://statistics.data.gov.uk/id/local-authority/38,Oxfordshire County Council,Support at Home U65 Physical Support,5689,,30/04/2019,3110546116,£511.97,My Carer Ltd
http://statistics.data.gov.uk/id/local-authority/38,Oxfordshire County Council,SEN TRANSPORT,4330,Transport to School Activities,25/04/2019,3110544267,£512.00,Grove Cabs
http://statistics.data.gov.uk/id/local-authority/38,Oxfordshire County Council,Support at Home U65 Learning Disability,5899,Social Care - Direct Payments,15/04/2019,3110539285,£512.00,Purple Conversation Com In Co (DP)
http://statistics.data.gov.uk/id/local-authority/38,Oxfordshire County Council,Support at Home 65+ Physical Support,5899,Social Care - Direct Payments,15/04/2019,3110539302,£512.00,Purple Conversation Com In Co (DP)
http://statistics.data.gov.uk/id/local-authority/38,Oxfordshire County Council,Support at Home 65+ Physical Support,5899,Social Care - Direct Payments,15/04/2019,3110539453,£512.00,Purple Conversation Com In Co (DP)
http://statistics.data.gov.uk/id/local-authority/38,Oxfordshire County Council,Support at Home U65 Learning Disability,5899,Social Care - Direct Payments,15/04/2019,3110539598,£512.00,Purple Conversation Com In Co (DP)
http://statistics.data.gov.uk/id/local-authority/38,Oxfordshire County Council,OPERATIONS,4719,Photocopying,24/04/2019,2200629717,£512.42,XMA Limited - Toner Orders Only
http://statistics.data.gov.uk/id/local-authority/38,Oxfordshire County Council,Support at Home 65+ Physical Support,5689,,30/04/2019,3110545913,£512.47,DoCare Ltd
http://statistics.data.gov.uk/id/local-authority/38,Oxfordshire County Council,LIBRARY COLLECTIONS,4539,"Books, DVDs and CDs",23/04/2019,3110542824,£512.96,ASKEWS & HOLTS LIBRARY SERVICES LTD
http://statistics.data.gov.uk/id/local-authority/38,Oxfordshire County Council,COUNTY PRINT FINSHRS,4705,Printing,02/04/2019,2200624257,£513.00,MP Printers (Thame) Ltd
http://statistics.data.gov.uk/id/local-authority/38,Oxfordshire County Council,SEN TRANSPORT,5227,Other Transport Arrangements,09/04/2019,3110533020,£513.16,Black and White Cars T/A Banbury Ta
http://statistics.data.gov.uk/id/local-authority/38,Oxfordshire County Council,Support at Home U65 Physical Support,5899,Social Care - Direct Payments,23/04/2019,3110542739,£513.50,Purple Conversation Com In Co (DP)
http://statistics.data.gov.uk/id/local-authority/38,Oxfordshire County Council,HARD FM,3787,Premises Repairs,17/04/2019,2200628418,£514.00,PHS Compliance
http://statistics.data.gov.uk/id/local-authority/38,Oxfordshire County Council,Support at Home 65+ Physical Support,5689,,02/04/2019,3110531084,£514.39,Alina Homecare
http://statistics.data.gov.uk/id/local-authority/38,Oxfordshire County Council,BROADBAND PROJECT,4625,"Newspapers, Periodicals and Publications",05/04/2019,2200626184,£515.00,Higgs Group
http://statistics.data.gov.uk/id/local-authority/38,Oxfordshire County Council,Support at Home 65+ Sensory Support,5899,Social Care - Direct Payments,15/04/2019,3110539314,£515.20,Purple Conversation Com In Co (DP)
http://statistics.data.gov.uk/id/local-authority/38,Oxfordshire County Council,Support at Home U65 Physical Support,5899,Social Care - Direct Payments,15/04/2019,3110539705,£515.20,Purple Conversation Com In Co (DP)
http://statistics.data.gov.uk/id/local-authority/38,Oxfordshire County Council,CORPORATE LANDLORD,4001,Uniform Business Rates,26/04/2019,3500054607,£516.00,South Oxfordshire District Council
http://statistics.data.gov.uk/id/local-authority/38,Oxfordshire County Council,Contingency Home Care,5689,,02/04/2019,3110531618,£516.08,Day and Nightcare Assistance
http://statistics.data.gov.uk/id/local-authority/38,Oxfordshire County Council,Support at Home U65 Learning Disability,5689,,02/04/2019,3110532148,£516.26,Premier Personal Care
http://statistics.data.gov.uk/id/local-authority/38,Oxfordshire County Council,Support at Home 65+ Physical Support,5689,,30/04/2019,3110546322,£516.28,PLL Care Services
http://statistics.data.gov.uk/id/local-authority/38,Oxfordshire County Council,2 YEAR OLD FUNDING,5537,Payments to Other Establishments,18/04/2019,3110542116,£516.67,Annabelles Pre-school (Longcot)
http://statistics.data.gov.uk/id/local-authority/38,Oxfordshire County Council,Support at Home U65 Learning Disability,5698,,24/04/2019,3110543890,£516.78,Day & Night Care Assistance
http://statistics.data.gov.uk/id/local-authority/38,Oxfordshire County Council,Support at Home U65 Learning Disability,5682,,29/04/2019,3110544865,£517.07,The Brandon Trust
http://statistics.data.gov.uk/id/local-authority/38,Oxfordshire County Council,SM DISABILITIES,5899,Social Care - Direct Payments,26/04/2019,3110544642,£517.18,Purple Conversation Com In Co (DP)
http://statistics.data.gov.uk/id/local-authority/38,Oxfordshire County Council,Support at Home 65+ Physical Support,5698,,24/04/2019,3110543886,£517.21,Day & Night Care Assistance
http://statistics.data.gov.uk/id/local-authority/38,Oxfordshire County Council,Support at Home 65+ Physical Support,5698,,24/04/2019,3110543677,£517.88,Bridges Home Care Ltd
http://statistics.data.gov.uk/id/local-authority/38,Oxfordshire County Council,Support at Home 65+ Physical Support,5689,,30/04/2019,3110546324,£517.94,PLL Care Services
http://statistics.data.gov.uk/id/local-authority/38,Oxfordshire County Council,Support at Home 65+ Physical Support,5899,Social Care - Direct Payments,15/04/2019,3110539737,£518.40,Purple Conversation Com In Co (DP)
http://statistics.data.gov.uk/id/local-authority/38,Oxfordshire County Council,Support at Home 65+ Physical Support,5698,,24/04/2019,3110544153,£519.70,Oxford Private Care
http://statistics.data.gov.uk/id/local-authority/38,Oxfordshire County Council,SEN TRANSPORT,5227,Other Transport Arrangements,22/04/2019,3110542609,£520.00,Abingdon Taxis FKN Autotaxis
http://statistics.data.gov.uk/id/local-authority/38,Oxfordshire County Council,CHC Fast Track - Sup at Homes - Over 65,5691,,17/04/2019,3110542025,£520.00,Eaton Care Services
http://statistics.data.gov.uk/id/local-authority/38,Oxfordshire County Council,Support at Home U65 Physical Support,5899,Social Care - Direct Payments,15/04/2019,3110539608,£520.00,Purple Conversation Com In Co (DP)
http://statistics.data.gov.uk/id/local-authority/38,Oxfordshire County Council,Support at Home U65 Physical Support,5899,Social Care - Direct Payments,15/04/2019,3110539646,£520.00,Purple Conversation Com In Co (DP)
http://statistics.data.gov.uk/id/local-authority/38,Oxfordshire County Council,Central FSS Statutory - Barton,4330,Transport to School Activities,15/04/2019,3110538840,£520.00,The Oxfordshire Taxi Company Ltd T/
http://statistics.data.gov.uk/id/local-authority/38,Oxfordshire County Council,TRANSPORT COSTS,4330,Transport to School Activities,15/04/2019,3110538871,£520.00,The Oxfordshire Taxi Company Ltd T/
http://statistics.data.gov.uk/id/local-authority/38,Oxfordshire County Council,DEVELOPMENT MANAGEME,4861,Hired and Contracted Services,02/04/2019,2200624134,£520.00,Wharton Natural Infrastructure Cons
http://statistics.data.gov.uk/id/local-authority/38,Oxfordshire County Council,Support at Home 65+ Physical Support,5681,,11/04/2019,3110536105,£520.29,Orders of St John
http://statistics.data.gov.uk/id/local-authority/38,Oxfordshire County Council,Support at Home 65+ Physical Support,5698,,24/04/2019,3110543723,£520.30,Charterville Care At Home Ltd
http://statistics.data.gov.uk/id/local-authority/38,Oxfordshire County Council,Support at Home U65 Learning Disability,5693,,03/04/2019,3110532674,£520.40,The Caring Company (Oxon)
http://statistics.data.gov.uk/id/local-authority/38,Oxfordshire County Council,Green Claims,5526,Payments to Private Contractors,30/04/2019,2200631774,£520.46,Future Adjusting Limited
http://statistics.data.gov.uk/id/local-authority/38,Oxfordshire County Council,Contingency Home Care,5689,,30/04/2019,3110545881,£520.60,Day and Nightcare Assistance
http://statistics.data.gov.uk/id/local-authority/38,Oxfordshire County Council,Contingency Home Care,5689,,02/04/2019,3110531990,£520.69,Oxford University Hospitals NHS FT
http://statistics.data.gov.uk/id/local-authority/38,Oxfordshire County Council,Support at Home U65 Learning Disability,5689,,30/04/2019,3110546343,£521.05,Premier Personal Care
http://statistics.data.gov.uk/id/local-authority/38,Oxfordshire County Council,LOOKED AFTER CITY 1,5227,Other Transport Arrangements,04/04/2019,9300038512,£521.10,OCC SS Oxford City Div 1 Cash
http://statistics.data.gov.uk/id/local-authority/38,Oxfordshire County Council,PROCUREMENT,4232,Vehicle Fuel,03/04/2019,2200624521,£521.14,Certas Energy UK Ltd
http://statistics.data.gov.uk/id/local-authority/38,Oxfordshire County Council,Support at Home U65 Physical Support,5899,Social Care - Direct Payments,15/04/2019,3110539833,£521.20,Purple Conversation Com In Co (DP)
http://statistics.data.gov.uk/id/local-authority/38,Oxfordshire County Council,PROCUREMENT,4232,Vehicle Fuel,10/04/2019,2200626935,£522.00,C Track UK
http://statistics.data.gov.uk/id/local-authority/38,Oxfordshire County Council,PD EQUIPMENT,4450,Disability Aids and Equipment,18/04/2019,2200628537,£522.00,G & S SMIRTHWAITE LTD
http://statistics.data.gov.uk/id/local-authority/38,Oxfordshire County Council,Support at Home U65 Learning Disability,5690,,11/04/2019,3110536177,£522.17,Life Path Trust Ltd
http://statistics.data.gov.uk/id/local-authority/38,Oxfordshire County Council,Contingency Home Care,5689,,02/04/2019,3110531581,£522.53,Day and Nightcare Assistance
http://statistics.data.gov.uk/id/local-authority/38,Oxfordshire County Council,Support at Home 65+ Physical Support,5689,,02/04/2019,3110531570,£522.62,Oxfordshire Crossroads
http://statistics.data.gov.uk/id/local-authority/38,Oxfordshire County Council,LIBRARY COLLECTIONS,4539,"Books, DVDs and CDs",15/04/2019,3110538960,£522.77,ASKEWS & HOLTS LIBRARY SERVICES LTD
http://statistics.data.gov.uk/id/local-authority/38,Oxfordshire County Council,Support at Home 65+ Physical Support,5689,,02/04/2019,3110531358,£523.08,Caremark (West Oxfordshire & Cherwe
http://statistics.data.gov.uk/id/local-authority/38,Oxfordshire County Council,Support at Home 65+ Physical Support,5698,,24/04/2019,3110544019,£523.28,Day & Night Care Assistance
http://statistics.data.gov.uk/id/local-authority/38,Oxfordshire County Council,POST18 UASC DCSF FND,4685,Clothing and Uniforms,23/04/2019,9300038699,£523.40,OCC SS Oxford City Div 1 Cash
http://statistics.data.gov.uk/id/local-authority/38,Oxfordshire County Council,NURSERY ED FUND,5537,Payments to Other Establishments,10/04/2019,3110541366,£523.58,Deborah List
http://statistics.data.gov.uk/id/local-authority/38,Oxfordshire County Council,NURSERY ED FUND,5537,Payments to Other Establishments,10/04/2019,3110541490,£523.58,Deborah Scott
http://statistics.data.gov.uk/id/local-authority/38,Oxfordshire County Council,NURSERY ED FUND,5537,Payments to Other Establishments,10/04/2019,3110541367,£523.58,Debra Allen-Miles
http://statistics.data.gov.uk/id/local-authority/38,Oxfordshire County Council,NURSERY ED FUND,5537,Payments to Other Establishments,10/04/2019,3110541371,£523.58,Donna Mulligan
http://statistics.data.gov.uk/id/local-authority/38,Oxfordshire County Council,NURSERY ED FUND,5537,Payments to Other Establishments,10/04/2019,3110541484,£523.58,Victoria Stretch
http://statistics.data.gov.uk/id/local-authority/38,Oxfordshire County Council,Support at Home U65 Learning Disability,5682,,29/04/2019,3110544823,£523.90,The Brandon Trust
http://statistics.data.gov.uk/id/local-authority/38,Oxfordshire County Council,Support at Home 65+ Physical Support,5689,,02/04/2019,3110531197,£524.02,Care Outlook Ltd
http://statistics.data.gov.uk/id/local-authority/38,Oxfordshire County Council,Contingency Home Care,5689,,02/04/2019,3110532048,£524.03,Oxford University Hospitals NHS FT
http://statistics.data.gov.uk/id/local-authority/38,Oxfordshire County Council,Support at Home 65+ Physical Support,5689,,30/04/2019,3110545643,£524.05,Caretree Ltd
http://statistics.data.gov.uk/id/local-authority/38,Oxfordshire County Council,Delegated Health Tasks  - Over 65,5698,,24/04/2019,3110543722,£524.52,Charterville Care At Home Ltd
http://statistics.data.gov.uk/id/local-authority/38,Oxfordshire County Council,HARD FM,3787,Premises Repairs,15/04/2019,2200627734,£525.00,Charmac Ltd
http://statistics.data.gov.uk/id/local-authority/38,Oxfordshire County Council,SEN TRANSPORT,5227,Other Transport Arrangements,09/04/2019,3110533614,£525.00,Crown Cabs Travel Ltd
http://statistics.data.gov.uk/id/local-authority/38,Oxfordshire County Council,HARD FM,3787,Premises Repairs,15/04/2019,2200627792,£525.00,R J Lift Services Ltd
http://statistics.data.gov.uk/id/local-authority/38,Oxfordshire County Council,SEN TRANSPORT,5227,Other Transport Arrangements,16/04/2019,3110541643,£525.00,Thunderbird Transport Ltd
http://statistics.data.gov.uk/id/local-authority/38,Oxfordshire County Council,Support at Home 65+ Physical Support,5689,,02/04/2019,3110531394,£525.05,Caremark (West Oxfordshire & Cherwe
http://statistics.data.gov.uk/id/local-authority/38,Oxfordshire County Council,Contingency Home Care,5689,,02/04/2019,3110531634,£525.10,Day and Nightcare Assistance
http://statistics.data.gov.uk/id/local-authority/38,Oxfordshire County Council,Support at Home 65+ Physical Support,5698,,24/04/2019,3110543743,£525.16,Charterville Care At Home Ltd
http://statistics.data.gov.uk/id/local-authority/38,Oxfordshire County Council,CORONER,5202,Use of Mortuary Services,02/04/2019,2200623848,£525.20,Dr S Manek
http://statistics.data.gov.uk/id/local-authority/38,Oxfordshire County Council,Support at Home 65+ Physical Support,5698,,24/04/2019,3110543811,£525.67,Charterville Care At Home Ltd
http://statistics.data.gov.uk/id/local-authority/38,Oxfordshire County Council,CORPORATE LANDLORD,4001,Uniform Business Rates,01/04/2019,3500053499,£526.25,Oxford City Council
http://statistics.data.gov.uk/id/local-authority/38,Oxfordshire County Council,Support at Home 65+ Memory & Cognition,5698,,24/04/2019,3110543996,£526.32,Day & Night Care Assistance
http://statistics.data.gov.uk/id/local-authority/38,Oxfordshire County Council,Support at Home 65+ Physical Support,5698,,24/04/2019,3110544168,£526.32,Oxford Private Care
http://statistics.data.gov.uk/id/local-authority/38,Oxfordshire County Council,Support at Home 65+ Physical Support,5689,,30/04/2019,3110546335,£527.18,PLL Care Services
http://statistics.data.gov.uk/id/local-authority/38,Oxfordshire County Council,Support at Home 65+ Physical Support,5698,,24/04/2019,3110543871,£527.62,Day & Night Care Assistance
http://statistics.data.gov.uk/id/local-authority/38,Oxfordshire County Council,GRASS CUTTING DIST.,5526,Payments to Private Contractors,24/04/2019,3110543494,£527.75,OCC One Time Vendor
http://statistics.data.gov.uk/id/local-authority/38,Oxfordshire County Council,Home Improvement Agency,4861,Hired and Contracted Services,26/04/2019,2200630690,£527.91,Mears Home Improvement Ltd
http://statistics.data.gov.uk/id/local-authority/38,Oxfordshire County Council,CORPORATE LANDLORD,4001,Uniform Business Rates,26/04/2019,3500054530,£528.00,Oxford City Council
http://statistics.data.gov.uk/id/local-authority/38,Oxfordshire County Council,Support at Home U65 Mental Health,5899,Social Care - Direct Payments,15/04/2019,3110539636,£528.00,Purple Conversation Com In Co (DP)
http://statistics.data.gov.uk/id/local-authority/38,Oxfordshire County Council,Support at Home U65 Physical Support,5899,Social Care - Direct Payments,15/04/2019,3110539864,£528.00,Purple Conversation Com In Co (DP)
http://statistics.data.gov.uk/id/local-authority/38,Oxfordshire County Council,Support at Home 65+ Physical Support,5689,,02/04/2019,3110531728,£528.47,DoCare Ltd
http://statistics.data.gov.uk/id/local-authority/38,Oxfordshire County Council,Health Acquired Brain Injury C Homes U65,5691,,02/04/2019,3110532513,£528.64,Oakleaf (Hartwell) Ltd
http://statistics.data.gov.uk/id/local-authority/38,Oxfordshire County Council,LOOKED AFTER NORTH,5394,Other Expenses,23/04/2019,9300038701,£528.70,OCC SS Oxford City Div 1 Cash
http://statistics.data.gov.uk/id/local-authority/38,Oxfordshire County Council,Contingency Home Care,5689,,30/04/2019,3110546213,£528.70,Oxford University Hospitals NHS FT
http://statistics.data.gov.uk/id/local-authority/38,Oxfordshire County Council,Support at Home 65+ Physical Support,5689,,30/04/2019,3110546094,£528.95,My Carer Ltd
http://statistics.data.gov.uk/id/local-authority/38,Oxfordshire County Council,Contingency Home Care,5689,,30/04/2019,3110545812,£528.97,Day and Nightcare Assistance
http://statistics.data.gov.uk/id/local-authority/38,Oxfordshire County Council,Support at Home U65 Learning Disability,5697,,17/04/2019,3110541798,£529.00,Style Acre
http://statistics.data.gov.uk/id/local-authority/38,Oxfordshire County Council,Support at Home 65+ Physical Support,5689,,02/04/2019,3110531875,£529.15,Home Helpers Care Ltd
http://statistics.data.gov.uk/id/local-authority/38,Oxfordshire County Council,Support at Home 65+ Physical Support,5698,,24/04/2019,3110544117,£529.33,Oxford Private Care
http://statistics.data.gov.uk/id/local-authority/38,Oxfordshire County Council,Contingency Home Care,5689,,02/04/2019,3110532034,£529.36,Oxford University Hospitals NHS FT
http://statistics.data.gov.uk/id/local-authority/38,Oxfordshire County Council,Contingency Home Care,5689,,30/04/2019,3110546244,£529.36,Oxford University Hospitals NHS FT
http://statistics.data.gov.uk/id/local-authority/38,Oxfordshire County Council,2 YEAR OLD FUNDING,5537,Payments to Other Establishments,18/04/2019,3110542397,£529.92,Robin Playgroup
http://statistics.data.gov.uk/id/local-authority/38,Oxfordshire County Council,TREE MAINT OPS,5526,Payments to Private Contractors,18/04/2019,2200628560,£530.00,Acreman's Arboriculture Ltd
http://statistics.data.gov.uk/id/local-authority/38,Oxfordshire County Council,SEN TRANSPORT,4330,Transport to School Activities,10/04/2019,3110533767,£530.00,Courtesy Cars
http://statistics.data.gov.uk/id/local-authority/38,Oxfordshire County Council,TRANSPORT COSTS,4330,Transport to School Activities,11/04/2019,3110536357,£530.00,Courtesy Cars
http://statistics.data.gov.uk/id/local-authority/38,Oxfordshire County Council,Support at Home U65 Learning Disability,5690,,11/04/2019,3110534059,£530.10,Mencap Contracts
http://statistics.data.gov.uk/id/local-authority/38,Oxfordshire County Council,Support at Home U65 Learning Disability,5688,,11/04/2019,3110534379,£530.10,Mencap Contracts
http://statistics.data.gov.uk/id/local-authority/38,Oxfordshire County Council,Support at Home U65 Learning Disability,5688,,11/04/2019,3110534412,£530.10,Mencap Contracts
http://statistics.data.gov.uk/id/local-authority/38,Oxfordshire County Council,Support at Home U65 Learning Disability,5688,,11/04/2019,3110534415,£530.10,Mencap Contracts
http://statistics.data.gov.uk/id/local-authority/38,Oxfordshire County Council,Support at Home U65 Learning Disability,5688,,11/04/2019,3110534416,£530.10,Mencap Contracts
http://statistics.data.gov.uk/id/local-authority/38,Oxfordshire County Council,Support at Home U65 Learning Disability,5688,,11/04/2019,3110534442,£530.10,Real Life Options
http://statistics.data.gov.uk/id/local-authority/38,Oxfordshire County Council,Contingency Home Care,5689,,02/04/2019,3110531709,£530.26,Day and Nightcare Assistance
http://statistics.data.gov.uk/id/local-authority/38,Oxfordshire County Council,,1448,Blackfield Inc & Exp A/c,17/04/2019,3110541839,£530.33,OCC One Time Vendor
http://statistics.data.gov.uk/id/local-authority/38,Oxfordshire County Council,Support at Home U65 Physical Support,5899,Social Care - Direct Payments,15/04/2019,3110539541,£530.48,Purple Conversation Com In Co (DP)
http://statistics.data.gov.uk/id/local-authority/38,Oxfordshire County Council,ECH Central Costs,5688,,11/04/2019,3110534045,£530.49,Orders of St John Care Trust
http://statistics.data.gov.uk/id/local-authority/38,Oxfordshire County Council,OXFORDSHIRE MUSEUM,4407,Equipment,03/04/2019,2200624625,£530.62,Oxon Fastenings Ltd
http://statistics.data.gov.uk/id/local-authority/38,Oxfordshire County Council,Community Support Service Oxford,4060,Cleaning Materials,04/04/2019,2200624935,£530.71,Completely Care Ltd
http://statistics.data.gov.uk/id/local-authority/38,Oxfordshire County Council,LEGAL BUDGET,5251,Legal Costs,01/04/2019,2200629144,£530.71,PM Psychology
http://statistics.data.gov.uk/id/local-authority/38,Oxfordshire County Council,CARTERTON LIBRARY,3821,Grounds Maintenance Contracts,30/04/2019,2200631515,£531.00,M K Watts Ground Maintenance
http://statistics.data.gov.uk/id/local-authority/38,Oxfordshire County Council,Support at Home U65 Physical Support,5899,Social Care - Direct Payments,15/04/2019,3110539350,£531.20,Purple Conversation Com In Co (DP)
http://statistics.data.gov.uk/id/local-authority/38,Oxfordshire County Council,Support at Home 65+ Physical Support,5689,,30/04/2019,3110546124,£531.52,My Carer Ltd
http://statistics.data.gov.uk/id/local-authority/38,Oxfordshire County Council,Contingency Home Care,5689,,30/04/2019,3110545900,£531.55,Day and Nightcare Assistance
http://statistics.data.gov.uk/id/local-authority/38,Oxfordshire County Council,Support at Home U65 Learning Disability,5899,Social Care - Direct Payments,15/04/2019,3110539345,£532.00,Purple Conversation Com In Co (DP)
http://statistics.data.gov.uk/id/local-authority/38,Oxfordshire County Council,NHS HEALTHCHECK PROG,4790,"Publicity, Promotions and Advertisement",09/04/2019,2200626514,£532.60,Bright Ideas Business Gifts Ltd
http://statistics.data.gov.uk/id/local-authority/38,Oxfordshire County Council,Support at Home U65 Physical Support,5899,Social Care - Direct Payments,15/04/2019,3110539693,£533.09,Purple Conversation Com In Co (DP)
http://statistics.data.gov.uk/id/local-authority/38,Oxfordshire County Council,Support at Home 65+ Physical Support,5698,,24/04/2019,3110544013,£533.26,Day & Night Care Assistance
http://statistics.data.gov.uk/id/local-authority/38,Oxfordshire County Council,Support at Home 65+ Physical Support,5689,,30/04/2019,3110545082,£533.34,Alina Homecare
http://statistics.data.gov.uk/id/local-authority/38,Oxfordshire County Council,SEN TRANSPORT,5227,Other Transport Arrangements,12/04/2019,3110538785,£533.40,Mills Transport Ltd
http://statistics.data.gov.uk/id/local-authority/38,Oxfordshire County Council,SEN TRANSPORT,5227,Other Transport Arrangements,12/04/2019,3110538787,£533.40,Mills Transport Ltd
http://statistics.data.gov.uk/id/local-authority/38,Oxfordshire County Council,Support at Home 65+ Physical Support,5899,Social Care - Direct Payments,15/04/2019,3110539922,£533.56,Purple Conversation Com In Co (DP)
http://statistics.data.gov.uk/id/local-authority/38,Oxfordshire County Council,Support at Home 65+ Physical Support,5899,Social Care - Direct Payments,15/04/2019,3110539956,£533.56,Purple Conversation Com In Co (DP)
http://statistics.data.gov.uk/id/local-authority/38,Oxfordshire County Council,,1429,Charitable Donations,02/04/2019,3110530484,£533.59,GIVE AS YOU EARN
http://statistics.data.gov.uk/id/local-authority/38,Oxfordshire County Council,Volunteer Independent Visiting +Advocacy,4861,Hired and Contracted Services,29/04/2019,3110544711,£533.64,OCC One Time Vendor
http://statistics.data.gov.uk/id/local-authority/38,Oxfordshire County Council,SEN TRANSPORT,4330,Transport to School Activities,09/04/2019,3110533022,£534.00,C&M Management Services Ltd
http://statistics.data.gov.uk/id/local-authority/38,Oxfordshire County Council,Support at Home 65+ Physical Support,5689,,02/04/2019,3110531482,£534.39,Casa Care Ltd
http://statistics.data.gov.uk/id/local-authority/38,Oxfordshire County Council,HARD FM,3787,Premises Repairs,25/04/2019,2200630435,£535.00,Windrush Door & Window Services Ltd
http://statistics.data.gov.uk/id/local-authority/38,Oxfordshire County Council,Support at Home 65+ Physical Support,5689,,02/04/2019,3110531299,£535.19,Caremark (West Oxfordshire & Cherwe
http://statistics.data.gov.uk/id/local-authority/38,Oxfordshire County Council,Support at Home 65+ Physical Support,5691,,29/04/2019,2200630994,£535.24,Orders of St John Care Trust
http://statistics.data.gov.uk/id/local-authority/38,Oxfordshire County Council,Support at Home 65+ Learning Disability,5690,,11/04/2019,3110536227,£535.50,Turnstyle
http://statistics.data.gov.uk/id/local-authority/38,Oxfordshire County Council,NURSERY ED FUND,5537,Payments to Other Establishments,10/04/2019,3110541446,£535.70,Rachael Shaer
http://statistics.data.gov.uk/id/local-authority/38,Oxfordshire County Council,Support at Home 65+ Physical Support,5698,,24/04/2019,3110543628,£535.84,Bridges Home Care Ltd
http://statistics.data.gov.uk/id/local-authority/38,Oxfordshire County Council,Support at Home 65+ Physical Support,5899,Social Care - Direct Payments,15/04/2019,3110539439,£535.92,Purple Conversation Com In Co (DP)
http://statistics.data.gov.uk/id/local-authority/38,Oxfordshire County Council,Contingency Home Care,5689,,02/04/2019,3110531683,£536.06,Day and Nightcare Assistance
http://statistics.data.gov.uk/id/local-authority/38,Oxfordshire County Council,SCHOOLS FM,3787,Premises Repairs,17/04/2019,2200628443,£536.40,Whitco Catering & Bakery Equipment
http://statistics.data.gov.uk/id/local-authority/38,Oxfordshire County Council,OPERATIONS,4407,Equipment,08/04/2019,2200626347,£536.50,Boc Ltd
http://statistics.data.gov.uk/id/local-authority/38,Oxfordshire County Council,Contingency Home Care,5689,,30/04/2019,3110546195,£536.69,Oxford University Hospitals NHS FT
http://statistics.data.gov.uk/id/local-authority/38,Oxfordshire County Council,Support at Home 65+ Learning Disability,5696,,18/04/2019,3110542450,£537.33,Orders of St John Care Trust
http://statistics.data.gov.uk/id/local-authority/38,Oxfordshire County Council,Oxfordshire Adoption Support Fund,4859,Medical and Counselling Fees,02/04/2019,2200623922,£537.40,Topaz Therapeutic Life Story
http://statistics.data.gov.uk/id/local-authority/38,Oxfordshire County Council,Support at Home 65+ Physical Support,5689,,02/04/2019,3110532125,£537.80,PLL Care Services
http://statistics.data.gov.uk/id/local-authority/38,Oxfordshire County Council,Delegated Health Tasks  - Over 65,5689,,30/04/2019,3110545755,£537.96,Oxfordshire Crossroads
http://statistics.data.gov.uk/id/local-authority/38,Oxfordshire County Council,Contingency Home Care,5689,,02/04/2019,3110531627,£537.99,Day and Nightcare Assistance
http://statistics.data.gov.uk/id/local-authority/38,Oxfordshire County Council,Support at Home 65+ Learning Disability,5690,,11/04/2019,3110534096,£538.20,Turning Point (Services) Ltd
http://statistics.data.gov.uk/id/local-authority/38,Oxfordshire County Council,Support at Home 65+ Learning Disability,5688,,11/04/2019,3110534756,£538.20,Turning Point (Services) Ltd
http://statistics.data.gov.uk/id/local-authority/38,Oxfordshire County Council,SURPLUS PROPERTY,4000,Council Tax,26/04/2019,3500054541,£538.38,Oxford City Council
http://statistics.data.gov.uk/id/local-authority/38,Oxfordshire County Council,SURPLUS PROPERTY,4000,Council Tax,26/04/2019,3500054542,£538.38,Oxford City Council
http://statistics.data.gov.uk/id/local-authority/38,Oxfordshire County Council,"Banbury CC, Hilton Road",4111,Security Costs,02/04/2019,2200623838,£538.50,George Henry Relay Ltd
http://statistics.data.gov.uk/id/local-authority/38,Oxfordshire County Council,Support at Home 65+ Physical Support,5689,,30/04/2019,3110546303,£538.66,PLL Care Services
http://statistics.data.gov.uk/id/local-authority/38,Oxfordshire County Council,GRASS CUTTING DIST.,5526,Payments to Private Contractors,30/04/2019,3110544937,£538.94,OCC One Time Vendor
http://statistics.data.gov.uk/id/local-authority/38,Oxfordshire County Council,Corp Proc Service,4122,Other premises related costs,01/04/2019,2200624104,£539.00,MACOI Ltd
http://statistics.data.gov.uk/id/local-authority/38,Oxfordshire County Council,Support at Home U65 Learning Disability,5899,Social Care - Direct Payments,15/04/2019,3110539504,£539.00,Purple Conversation Com In Co (DP)
http://statistics.data.gov.uk/id/local-authority/38,Oxfordshire County Council,Contingency Home Care,5689,,30/04/2019,3110546228,£539.36,Oxford University Hospitals NHS FT
http://statistics.data.gov.uk/id/local-authority/38,Oxfordshire County Council,Community Support Service Wallingford,4232,Vehicle Fuel,08/04/2019,2200626299,£539.96,Allstar Business Solutions Ltd
http://statistics.data.gov.uk/id/local-authority/38,Oxfordshire County Council,LEGAL BUDGET,5251,Legal Costs,01/04/2019,2200626351,£540.00,Dr Tom L McClintock
http://statistics.data.gov.uk/id/local-authority/38,Oxfordshire County Council,Support at Home U65 Learning Disability,5697,,03/04/2019,3110532750,£540.00,Pennyhooks Farm Trust
http://statistics.data.gov.uk/id/local-authority/38,Oxfordshire County Council,Support at Home U65 Physical Support,5899,Social Care - Direct Payments,15/04/2019,3110539182,£540.00,Purple Conversation Com In Co (DP)
http://statistics.data.gov.uk/id/local-authority/38,Oxfordshire County Council,Support at Home U65 Learning Disability,5690,,11/04/2019,3110536263,£540.00,Style Acre
http://statistics.data.gov.uk/id/local-authority/38,Oxfordshire County Council,LAC PUPIL PREMIUM,5537,Payments to Other Establishments,24/04/2019,3110543403,£540.00,The Basildon Upper Academy
http://statistics.data.gov.uk/id/local-authority/38,Oxfordshire County Council,Reading Adoption Support Fund,4859,Medical and Counselling Fees,05/04/2019,2200626129,£540.00,The Cherrycroft Practice Limited
http://statistics.data.gov.uk/id/local-authority/38,Oxfordshire County Council,Wokingham Adoption Support Fund,4859,Medical and Counselling Fees,10/04/2019,2200627012,£540.00,The Cherrycroft Practice Limited
http://statistics.data.gov.uk/id/local-authority/38,Oxfordshire County Council,TREE MAINT OPS,5526,Payments to Private Contractors,29/04/2019,2200631040,£540.00,Treetech Arboricultural Services Lt
http://statistics.data.gov.uk/id/local-authority/38,Oxfordshire County Council,SEN TRANSPORT,4330,Transport to School Activities,09/04/2019,3110533079,£540.20,C&M Management Services Ltd
http://statistics.data.gov.uk/id/local-authority/38,Oxfordshire County Council,LIBRARY COLLECTIONS,4539,"Books, DVDs and CDs",15/04/2019,3110538935,£540.45,ASKEWS & HOLTS LIBRARY SERVICES LTD
http://statistics.data.gov.uk/id/local-authority/38,Oxfordshire County Council,Contingency Home Care,5689,,30/04/2019,3110545845,£541.21,Day and Nightcare Assistance
http://statistics.data.gov.uk/id/local-authority/38,Oxfordshire County Council,Support at Home 65+ Physical Support,5689,,02/04/2019,3110531913,£541.30,My Carer Ltd
http://statistics.data.gov.uk/id/local-authority/38,Oxfordshire County Council,Support at Home 65+ Physical Support,5689,,02/04/2019,3110531790,£541.51,Greigcare Home Service
http://statistics.data.gov.uk/id/local-authority/38,Oxfordshire County Council,LEAVING CARE SOUTH,4685,Clothing and Uniforms,24/04/2019,9300038761,£541.60,OCC SS Vale of White Horse Cash
http://statistics.data.gov.uk/id/local-authority/38,Oxfordshire County Council,WITNEY LIBRARY,3821,Grounds Maintenance Contracts,26/04/2019,2200630549,£542.00,M K Watts Ground Maintenance
http://statistics.data.gov.uk/id/local-authority/38,Oxfordshire County Council,SEN TRANSPORT,4330,Transport to School Activities,09/04/2019,3110533030,£542.50,C&M Management Services Ltd
http://statistics.data.gov.uk/id/local-authority/38,Oxfordshire County Council,Support at Home 65+ Physical Support,5689,,02/04/2019,3110531795,£542.87,Greigcare Home Service
http://statistics.data.gov.uk/id/local-authority/38,Oxfordshire County Council,Urgent Response,5689,,30/04/2019,3110545872,£543.20,Day and Nightcare Assistance
http://statistics.data.gov.uk/id/local-authority/38,Oxfordshire County Council,Delegated Health Tasks  - Over 65,5691,,17/04/2019,3110542082,£543.20,The Caring Company (Oxon)
http://statistics.data.gov.uk/id/local-authority/38,Oxfordshire County Council,SM DISABILITIES,5899,Social Care - Direct Payments,26/04/2019,3110544620,£543.55,Purple Conversation Com In Co (DP)
http://statistics.data.gov.uk/id/local-authority/38,Oxfordshire County Council,Support at Home U65 Learning Disability,5696,,18/04/2019,3110542545,£543.71,Orders of St John Care Trust
http://statistics.data.gov.uk/id/local-authority/38,Oxfordshire County Council,Support at Home 65+ Physical Support,5689,,02/04/2019,3110531466,£543.76,Casa Care Ltd
http://statistics.data.gov.uk/id/local-authority/38,Oxfordshire County Council,Central FSS Early Help - Blackbird Leys,3830,Other Adhoc Site / Grounds Maintenanc,08/04/2019,2200626446,£544.00,Aspire Oxfordshire
http://statistics.data.gov.uk/id/local-authority/38,Oxfordshire County Council,SEN TRANSPORT,4330,Transport to School Activities,17/04/2019,3110541867,£544.50,S S Taxis
http://statistics.data.gov.uk/id/local-authority/38,Oxfordshire County Council,SEN TRANSPORT,4330,Transport to School Activities,17/04/2019,3110541903,£544.50,S S Taxis
http://statistics.data.gov.uk/id/local-authority/38,Oxfordshire County Council,Support at Home U65 MH OBC Contract,5689,,02/04/2019,3110532216,£544.95,Response Organisation
http://statistics.data.gov.uk/id/local-authority/38,Oxfordshire County Council,Support at Home U65 MH OBC Contract,5689,,30/04/2019,3110546414,£544.95,Response Organisation
http://statistics.data.gov.uk/id/local-authority/38,Oxfordshire County Council,Support at Home 65+ Physical Support,5698,,24/04/2019,3110543742,£545.35,Charterville Care At Home Ltd
http://statistics.data.gov.uk/id/local-authority/38,Oxfordshire County Council,SEN TRANSPORT,5227,Other Transport Arrangements,09/04/2019,3110533618,£546.00,Crown Cabs Travel Ltd
http://statistics.data.gov.uk/id/local-authority/38,Oxfordshire County Council,SEN TRANSPORT,5227,Other Transport Arrangements,16/04/2019,3110541529,£546.00,The Oxford Minibus Company Ltd
http://statistics.data.gov.uk/id/local-authority/38,Oxfordshire County Council,Support at Home 65+ Physical Support,5698,,24/04/2019,3110544113,£546.59,Oxford Private Care
http://statistics.data.gov.uk/id/local-authority/38,Oxfordshire County Council,Support at Home U65 Learning Disability,5682,,29/04/2019,3110544888,£547.07,The Brandon Trust
http://statistics.data.gov.uk/id/local-authority/38,Oxfordshire County Council,Support at Home U65 Learning Disability,5682,,29/04/2019,3110544891,£547.07,The Brandon Trust
http://statistics.data.gov.uk/id/local-authority/38,Oxfordshire County Council,ASSESS TEAM CITY,5365,Non-Staff Subsistence and Expenses,26/04/2019,9300038815,£547.25,OCC SS Oxford City Div 1 Cash
http://statistics.data.gov.uk/id/local-authority/38,Oxfordshire County Council,Support at Home 65+ Physical Support,5698,,24/04/2019,3110543953,£547.58,Day & Night Care Assistance
http://statistics.data.gov.uk/id/local-authority/38,Oxfordshire County Council,Support at Home 65+ Memory & Cognition,5899,Social Care - Direct Payments,02/04/2019,3110530527,£548.00,Purple Conversation Com In Co (DP)
http://statistics.data.gov.uk/id/local-authority/38,Oxfordshire County Council,Support at Home U65 Physical Support,5698,,24/04/2019,3110543609,£548.15,Acquire Care Ltd
http://statistics.data.gov.uk/id/local-authority/38,Oxfordshire County Council,Support at Home U65 Memory & Cognition,5899,Social Care - Direct Payments,15/04/2019,3110539437,£549.00,Purple Conversation Com In Co (DP)
http://statistics.data.gov.uk/id/local-authority/38,Oxfordshire County Council,Contingency Home Care,5689,,30/04/2019,3110545843,£549.59,Day and Nightcare Assistance
http://statistics.data.gov.uk/id/local-authority/38,Oxfordshire County Council,LEGAL SERVICES,5251,Legal Costs,01/04/2019,2200631765,£550.00,Annie Sayers
http://statistics.data.gov.uk/id/local-authority/38,Oxfordshire County Council,ICT Information,4495,IT Software,03/04/2019,2200624532,£550.00,Dotted Eyes Ltd
http://statistics.data.gov.uk/id/local-authority/38,Oxfordshire County Council,ICT Information,4495,IT Software,09/04/2019,2200626717,£550.00,Dotted Eyes Ltd
http://statistics.data.gov.uk/id/local-authority/38,Oxfordshire County Council,Councillors Priorities Fund,4940,Other Services,26/04/2019,3110544674,£550.00,Grimsbury Youth Club
http://statistics.data.gov.uk/id/local-authority/38,Oxfordshire County Council,LEGAL SERVICES,5251,Legal Costs,23/04/2019,2200629164,£550.00,Kit Firbank
http://statistics.data.gov.uk/id/local-authority/38,Oxfordshire County Council,LEGAL SERVICES,5251,Legal Costs,01/04/2019,2200627417,£550.00,Miss Chloe Wilkins
http://statistics.data.gov.uk/id/local-authority/38,Oxfordshire County Council,LEGAL SERVICES,5251,Legal Costs,01/04/2019,2200627462,£550.00,Miss Chloe Wilkins
http://statistics.data.gov.uk/id/local-authority/38,Oxfordshire County Council,LEGAL BUDGET,5251,Legal Costs,23/04/2019,2200629153,£550.00,Ping Education and Translations Ltd
http://statistics.data.gov.uk/id/local-authority/38,Oxfordshire County Council,L&D CORE PROGRAMME,3103,Other Training Courses and Qualification,10/04/2019,2200626815,£550.00,Premier Partnership
http://statistics.data.gov.uk/id/local-authority/38,Oxfordshire County Council,PENSION ADMIN,3103,Other Training Courses and Qualification,15/04/2019,2200627555,£550.00,Premier Partnership
http://statistics.data.gov.uk/id/local-authority/38,Oxfordshire County Council,PENSION ADMIN,3103,Other Training Courses and Qualification,15/04/2019,2200627559,£550.00,Premier Partnership
http://statistics.data.gov.uk/id/local-authority/38,Oxfordshire County Council,LAC PUPIL PREMIUM,5537,Payments to Other Establishments,24/04/2019,3110543392,£550.00,St Gregory the Great
http://statistics.data.gov.uk/id/local-authority/38,Oxfordshire County Council,MEADOWBROOK TRANSPT,4330,Transport to School Activities,11/04/2019,3110534879,£550.00,The Oxfordshire Taxi Company Ltd T/
http://statistics.data.gov.uk/id/local-authority/38,Oxfordshire County Council,Councillors Priorities Fund,4940,Other Services,26/04/2019,3110544657,£550.00,The Sweatbox Youth Centre
http://statistics.data.gov.uk/id/local-authority/38,Oxfordshire County Council,LEGAL SERVICES,5251,Legal Costs,12/04/2019,2200627461,£550.00,Vicky Reynolds
http://statistics.data.gov.uk/id/local-authority/38,Oxfordshire County Council,Support at Home 65+ Physical Support,5689,,02/04/2019,3110532251,£550.26,AVR (Oxon) Ltd
http://statistics.data.gov.uk/id/local-authority/38,Oxfordshire County Council,Support at Home 65+ Physical Support,5689,,02/04/2019,3110531418,£550.36,Caretree Ltd
http://statistics.data.gov.uk/id/local-authority/38,Oxfordshire County Council,Support at Home U65 Learning Disability,5682,,29/04/2019,3110544899,£550.49,The Brandon Trust
http://statistics.data.gov.uk/id/local-authority/38,Oxfordshire County Council,Support at Home 65+ Physical Support,5689,,30/04/2019,3110546101,£550.56,My Carer Ltd
http://statistics.data.gov.uk/id/local-authority/38,Oxfordshire County Council,Support at Home U65 Physical Support,5689,,02/04/2019,3110531899,£550.80,Lifecarers Limited
http://statistics.data.gov.uk/id/local-authority/38,Oxfordshire County Council,Support at Home 65+ Physical Support,5689,,02/04/2019,3110531110,£551.19,Alina Homecare
http://statistics.data.gov.uk/id/local-authority/38,Oxfordshire County Council,Continuing Care - Support at Home - U65,5691,,02/04/2019,3110532550,£551.58,Bluebird Care (Oxford South & West)
http://statistics.data.gov.uk/id/local-authority/38,Oxfordshire County Council,MUSEUMS COLLECTIONS,4042,Fixtures and Fittings,29/04/2019,2200631028,£552.04,Jamie Briggs Removals & Storage Ltd
http://statistics.data.gov.uk/id/local-authority/38,Oxfordshire County Council,UASC 16&17,5227,Other Transport Arrangements,24/04/2019,9300038719,£552.40,OCC SS Oxford City Div 1 Cash
http://statistics.data.gov.uk/id/local-authority/38,Oxfordshire County Council,LD CLIENTS CITY,5227,Other Transport Arrangements,25/04/2019,3110544258,£552.50,C V OSullivan
http://statistics.data.gov.uk/id/local-authority/38,Oxfordshire County Council,Support at Home 65+ Physical Support,5696,,18/04/2019,3110542549,£552.55,Orders of St John Care Trust
http://statistics.data.gov.uk/id/local-authority/38,Oxfordshire County Council,Continuing Care - Support at Home - U65,5691,,02/04/2019,3110532545,£552.60,Bluebird Care (Oxford South & West)
http://statistics.data.gov.uk/id/local-authority/38,Oxfordshire County Council,Delegated Health Tasks  - Over 65,5691,,17/04/2019,3110541922,£552.60,Bluebird Care (Oxford South & West)
http://statistics.data.gov.uk/id/local-authority/38,Oxfordshire County Council,Continuing Care - Support at Home - U65,5691,,17/04/2019,3110541961,£552.60,Bluebird Care (Oxford South & West)
http://statistics.data.gov.uk/id/local-authority/38,Oxfordshire County Council,NURSERY ED FUND,5537,Payments to Other Establishments,10/04/2019,3110541407,£552.67,Kim Harrison
http://statistics.data.gov.uk/id/local-authority/38,Oxfordshire County Council,NURSERY ED FUND,5537,Payments to Other Establishments,10/04/2019,3110541461,£552.67,Sarah Allen
http://statistics.data.gov.uk/id/local-authority/38,Oxfordshire County Council,Support at Home U65 Learning Disability,5690,,11/04/2019,3110534065,£553.07,OXFORD HEALTH NHS FOUNDATION TRUST
http://statistics.data.gov.uk/id/local-authority/38,Oxfordshire County Council,Support at Home 65+ Physical Support,5689,,30/04/2019,3110545621,£553.25,Caretree Ltd
http://statistics.data.gov.uk/id/local-authority/38,Oxfordshire County Council,Contingency Home Care,5689,,02/04/2019,3110531628,£554.10,Day and Nightcare Assistance
http://statistics.data.gov.uk/id/local-authority/38,Oxfordshire County Council,UASC 16&17,5365,Non-Staff Subsistence and Expenses,03/04/2019,9300038496,£554.10,OCC SS Oxford City Div 1 Cash
http://statistics.data.gov.uk/id/local-authority/38,Oxfordshire County Council,Support at Home 65+ Physical Support,5689,,30/04/2019,3110545989,£554.31,Greigcare Home Service
http://statistics.data.gov.uk/id/local-authority/38,Oxfordshire County Council,LIBRARY COLLECTIONS,4539,"Books, DVDs and CDs",15/04/2019,3110538957,£554.34,ASKEWS & HOLTS LIBRARY SERVICES LTD
http://statistics.data.gov.uk/id/local-authority/38,Oxfordshire County Council,GRASS CUTTING DIST.,5526,Payments to Private Contractors,30/04/2019,3110544942,£554.73,OCC One Time Vendor
http://statistics.data.gov.uk/id/local-authority/38,Oxfordshire County Council,Support at Home U65 Mental Health,5689,,30/04/2019,3110546070,£554.84,Home Helpers Care Ltd
http://statistics.data.gov.uk/id/local-authority/38,Oxfordshire County Council,Support at Home U65 Physical Support,5899,Social Care - Direct Payments,15/04/2019,3110539386,£555.20,Purple Conversation Com In Co (DP)
http://statistics.data.gov.uk/id/local-authority/38,Oxfordshire County Council,Support at Home 65+ Physical Support,5698,,24/04/2019,3110543992,£555.39,Day & Night Care Assistance
http://statistics.data.gov.uk/id/local-authority/38,Oxfordshire County Council,Support at Home 65+ Learning Disability,5689,,30/04/2019,3110546365,£555.52,Premier Personal Care
http://statistics.data.gov.uk/id/local-authority/38,Oxfordshire County Council,CHC Fast Track - Sup at Homes - Over 65,5691,,02/04/2019,3110532620,£556.00,EveryCare (Oxford)
http://statistics.data.gov.uk/id/local-authority/38,Oxfordshire County Council,2 YEAR OLD FUNDING,5537,Payments to Other Establishments,18/04/2019,3110542333,£556.42,Stephanie Allen
http://statistics.data.gov.uk/id/local-authority/38,Oxfordshire County Council,2 YEAR OLD FUNDING,5537,Payments to Other Establishments,18/04/2019,3110542260,£556.42,The Ark Nursery
http://statistics.data.gov.uk/id/local-authority/38,Oxfordshire County Council,Delegated Health Tasks  - Over 65,5689,,02/04/2019,3110531286,£556.44,Caremark (West Oxfordshire & Cherwe
http://statistics.data.gov.uk/id/local-authority/38,Oxfordshire County Council,SHARED LIVES,5520,Payments to Voluntary bodies,16/04/2019,2200627825,£557.00,SHARED LIVES PLUS LIMITED
http://statistics.data.gov.uk/id/local-authority/38,Oxfordshire County Council,Support at Home U65 Physical Support,5698,,24/04/2019,3110543569,£557.13,Acquire Care Ltd
http://statistics.data.gov.uk/id/local-authority/38,Oxfordshire County Council,Support at Home 65+ Physical Support,5689,,02/04/2019,3110531264,£557.18,Caremark (West Oxfordshire & Cherwe
http://statistics.data.gov.uk/id/local-authority/38,Oxfordshire County Council,Support at Home 65+ Physical Support,5689,,30/04/2019,3110545976,£557.35,Greigcare Home Service
http://statistics.data.gov.uk/id/local-authority/38,Oxfordshire County Council,SAFETY CAMERA MTCE,4790,"Publicity, Promotions and Advertisement",02/04/2019,2200623831,£557.45,Tmp (Uk) Ltd
http://statistics.data.gov.uk/id/local-authority/38,Oxfordshire County Council,Support at Home U65 Other /Soc Isolation,5899,Social Care - Direct Payments,15/04/2019,3110539179,£557.60,Purple Conversation Com In Co (DP)
http://statistics.data.gov.uk/id/local-authority/38,Oxfordshire County Council,,1448,Blackfield Inc & Exp A/c,03/04/2019,3110532790,£557.63,OCC One Time Vendor
http://statistics.data.gov.uk/id/local-authority/38,Oxfordshire County Council,Support at Home 65+ Physical Support,5689,,30/04/2019,3110545359,£557.75,Caremark (West Oxfordshire & Cherwe
http://statistics.data.gov.uk/id/local-authority/38,Oxfordshire County Council,HARD FM,3787,Premises Repairs,15/04/2019,2200627800,£558.00,MAYLARCH ENVIRONMENTAL LTD
http://statistics.data.gov.uk/id/local-authority/38,Oxfordshire County Council,Support at Home U65 Physical Support,5689,,02/04/2019,3110532218,£558.83,Response Organisation
http://statistics.data.gov.uk/id/local-authority/38,Oxfordshire County Council,Support at Home 65+ Physical Support,5689,,30/04/2019,3110545392,£559.10,Caremark (West Oxfordshire & Cherwe
http://statistics.data.gov.uk/id/local-authority/38,Oxfordshire County Council,Support at Home 65+ Physical Support,5689,,30/04/2019,3110546341,£559.43,Premier Personal Care
http://statistics.data.gov.uk/id/local-authority/38,Oxfordshire County Council,FLEET OPERATIONS,4210,Vehicles and Plant - Repairs and Main,16/04/2019,2200627834,£559.47,Oxford Direct Services
http://statistics.data.gov.uk/id/local-authority/38,Oxfordshire County Council,Support at Home U65 MH OBC Contract,5691,,02/04/2019,3110532455,£559.98,Response Organisation
http://statistics.data.gov.uk/id/local-authority/38,Oxfordshire County Council,LOOKED AFTER NORTH,5227,Other Transport Arrangements,11/04/2019,3110538724,£560.00,1St Taxis
http://statistics.data.gov.uk/id/local-authority/38,Oxfordshire County Council,Reading Adoption Support Fund,4859,Medical and Counselling Fees,11/04/2019,2200627203,£560.00,Insight4Children
http://statistics.data.gov.uk/id/local-authority/38,Oxfordshire County Council,Support at Home U65 MH OBC Contract,5691,,02/04/2019,3110532457,£560.00,Oasis Private Care Ltd
http://statistics.data.gov.uk/id/local-authority/38,Oxfordshire County Council,Support at Home U65 MH OBC Contract,5691,,02/04/2019,3110532458,£560.00,Oasis Private Care Ltd
http://statistics.data.gov.uk/id/local-authority/38,Oxfordshire County Council,Support at Home U65 MH OBC Contract,5691,,16/04/2019,3110540990,£560.00,Oasis Private Care Ltd
http://statistics.data.gov.uk/id/local-authority/38,Oxfordshire County Council,Support at Home U65 MH OBC Contract,5691,,16/04/2019,3110540991,£560.00,Oasis Private Care Ltd
http://statistics.data.gov.uk/id/local-authority/38,Oxfordshire County Council,Support at Home U65 Learning Disability,5899,Social Care - Direct Payments,15/04/2019,3110539311,£560.00,Purple Conversation Com In Co (DP)
http://statistics.data.gov.uk/id/local-authority/38,Oxfordshire County Council,Support at Home U65 Physical Support,5899,Social Care - Direct Payments,15/04/2019,3110539524,£560.00,Purple Conversation Com In Co (DP)
http://statistics.data.gov.uk/id/local-authority/38,Oxfordshire County Council,Support at Home U65 Physical Support,5899,Social Care - Direct Payments,15/04/2019,3110539610,£560.00,Purple Conversation Com In Co (DP)
http://statistics.data.gov.uk/id/local-authority/38,Oxfordshire County Council,Support at Home U65 Physical Support,5899,Social Care - Direct Payments,15/04/2019,3110539724,£560.00,Purple Conversation Com In Co (DP)
http://statistics.data.gov.uk/id/local-authority/38,Oxfordshire County Council,Support at Home 65+ Physical Support,5899,Social Care - Direct Payments,15/04/2019,3110539747,£560.00,Purple Conversation Com In Co (DP)
http://statistics.data.gov.uk/id/local-authority/38,Oxfordshire County Council,Support at Home 65+ Physical Support,5899,Social Care - Direct Payments,15/04/2019,3110539875,£560.00,Purple Conversation Com In Co (DP)
http://statistics.data.gov.uk/id/local-authority/38,Oxfordshire County Council,Support at Home 65+ Physical Support,5899,Social Care - Direct Payments,15/04/2019,3110539895,£560.00,Purple Conversation Com In Co (DP)
http://statistics.data.gov.uk/id/local-authority/38,Oxfordshire County Council,Contingency Home Care,5689,,30/04/2019,3110546148,£560.03,OXFORD HEALTH NHS FOUNDATION TRUST
http://statistics.data.gov.uk/id/local-authority/38,Oxfordshire County Council,Contingency Home Care,5689,,30/04/2019,3110546208,£560.69,Oxford University Hospitals NHS FT
http://statistics.data.gov.uk/id/local-authority/38,Oxfordshire County Council,Support at Home 65+ Physical Support,5689,,30/04/2019,3110546293,£560.87,PLL Care Services
http://statistics.data.gov.uk/id/local-authority/38,Oxfordshire County Council,Support at Home 65+ Physical Support,5689,,02/04/2019,3110531811,£561.29,Greigcare Home Service
http://statistics.data.gov.uk/id/local-authority/38,Oxfordshire County Council,Urgent Response,5689,,02/04/2019,3110531654,£561.35,Day and Nightcare Assistance
http://statistics.data.gov.uk/id/local-authority/38,Oxfordshire County Council,Support at Home U65 Learning Disability,5899,Social Care - Direct Payments,15/04/2019,3110539422,£561.44,Purple Conversation Com In Co (DP)
http://statistics.data.gov.uk/id/local-authority/38,Oxfordshire County Council,Support at Home 65+ Physical Support,5899,Social Care - Direct Payments,15/04/2019,3110539812,£561.44,Purple Conversation Com In Co (DP)
http://statistics.data.gov.uk/id/local-authority/38,Oxfordshire County Council,CORPORATE LANDLORD,4001,Uniform Business Rates,01/04/2019,3500053592,£561.50,South Oxfordshire District Council
http://statistics.data.gov.uk/id/local-authority/38,Oxfordshire County Council,CORPORATE LANDLORD,4001,Uniform Business Rates,01/04/2019,3500053546,£561.50,West Oxfordshire District Council
http://statistics.data.gov.uk/id/local-authority/38,Oxfordshire County Council,PREMISES,4001,Uniform Business Rates,01/04/2019,3500053567,£561.50,West Oxfordshire District Council
http://statistics.data.gov.uk/id/local-authority/38,Oxfordshire County Council,ICT Operations & Maintenance,5072,Telephone - Equipment,10/04/2019,2200626881,£561.60,EE Ltd
http://statistics.data.gov.uk/id/local-authority/38,Oxfordshire County Council,FAM GRP CONFERENCES,5668,Technical and Professional Consultant F,26/04/2019,2200630920,£562.29,Jessica Howards
http://statistics.data.gov.uk/id/local-authority/38,Oxfordshire County Council,UASC 16&17,5394,Other Expenses,08/04/2019,9300038526,£562.90,OCC SS Oxford City Div 1 Cash
http://statistics.data.gov.uk/id/local-authority/38,Oxfordshire County Council,Support at Home 65+ Physical Support,5689,,30/04/2019,3110545518,£563.11,Caremark (West Oxfordshire & Cherwe
http://statistics.data.gov.uk/id/local-authority/38,Oxfordshire County Council,Community Support Service Banbury,4270,HTM / Other Vehicle - Hire Charges,11/04/2019,2200627143,£563.50,Arnold Clark
http://statistics.data.gov.uk/id/local-authority/38,Oxfordshire County Council,Support at Home 65+ Physical Support,5689,,30/04/2019,3110546270,£563.61,PLL Care Services
http://statistics.data.gov.uk/id/local-authority/38,Oxfordshire County Council,Support at Home 65+ Physical Support,5899,Social Care - Direct Payments,15/04/2019,3110539238,£564.00,Purple Conversation Com In Co (DP)
http://statistics.data.gov.uk/id/local-authority/38,Oxfordshire County Council,Support at Home U65 Learning Disability,5899,Social Care - Direct Payments,15/04/2019,3110539612,£564.00,Purple Conversation Com In Co (DP)
http://statistics.data.gov.uk/id/local-authority/38,Oxfordshire County Council,SM DISABILITIES,5899,Social Care - Direct Payments,26/04/2019,3110544631,£564.20,Purple Conversation Com In Co (DP)
http://statistics.data.gov.uk/id/local-authority/38,Oxfordshire County Council,Central FSS Statutory - Blackbird Leys,5227,Other Transport Arrangements,30/04/2019,3110546528,£565.00,Oxon Transport Services Ltd
http://statistics.data.gov.uk/id/local-authority/38,Oxfordshire County Council,CORPORATE LANDLORD,4001,Uniform Business Rates,26/04/2019,3500054604,£565.00,South Oxfordshire District Council
http://statistics.data.gov.uk/id/local-authority/38,Oxfordshire County Council,CORPORATE LANDLORD,4001,Uniform Business Rates,26/04/2019,3500054572,£565.00,West Oxfordshire District Council
http://statistics.data.gov.uk/id/local-authority/38,Oxfordshire County Council,PREMISES,4001,Uniform Business Rates,26/04/2019,3500054590,£565.00,West Oxfordshire District Council
http://statistics.data.gov.uk/id/local-authority/38,Oxfordshire County Council,Support at Home 65+ Physical Support,5696,,18/04/2019,3110542455,£565.44,Orders of St John Care Trust
http://statistics.data.gov.uk/id/local-authority/38,Oxfordshire County Council,Support at Home 65+ Physical Support,5693,,10/04/2019,3110533867,£565.50,George Springall Homecare
http://statistics.data.gov.uk/id/local-authority/38,Oxfordshire County Council,SEN TRANSPORT,5227,Other Transport Arrangements,09/04/2019,3110533602,£565.74,Crown Cabs Travel Ltd
http://statistics.data.gov.uk/id/local-authority/38,Oxfordshire County Council,Support at Home U65 Physical Support,5698,,24/04/2019,3110544120,£565.90,Oxford Private Care
http://statistics.data.gov.uk/id/local-authority/38,Oxfordshire County Council,COUNTY PRINT FINSHRS,5091,Postage and Delivery,25/04/2019,2200629871,£566.74,Whistl
http://statistics.data.gov.uk/id/local-authority/38,Oxfordshire County Council,Support at Home U65 MH OBC Contract,5689,,02/04/2019,3110532225,£566.75,Response Organisation
http://statistics.data.gov.uk/id/local-authority/38,Oxfordshire County Council,Support at Home U65 MH OBC Contract,5689,,30/04/2019,3110546423,£566.75,Response Organisation
http://statistics.data.gov.uk/id/local-authority/38,Oxfordshire County Council,SEN TRANSPORT,5227,Other Transport Arrangements,29/04/2019,3110544738,£567.00,C V OSullivan
http://statistics.data.gov.uk/id/local-authority/38,Oxfordshire County Council,Support at Home 65+ Physical Support,5689,,30/04/2019,3110546368,£567.46,Premier Personal Care
http://statistics.data.gov.uk/id/local-authority/38,Oxfordshire County Council,Support at Home 65+ Physical Support,5698,,24/04/2019,3110543894,£567.54,Day & Night Care Assistance
http://statistics.data.gov.uk/id/local-authority/38,Oxfordshire County Council,,1325,Attachment of Earnings,08/04/2019,3110532930,£567.58,West Oxfordshire District Council
http://statistics.data.gov.uk/id/local-authority/38,Oxfordshire County Council,CHC Fast Track - Sup at Homes - Over 65,5689,,30/04/2019,3110545792,£567.61,Oxfordshire Crossroads
http://statistics.data.gov.uk/id/local-authority/38,Oxfordshire County Council,SAFETY CAMERA MTCE,4790,"Publicity, Promotions and Advertisement",17/04/2019,2200628145,£567.87,Tmp (Uk) Ltd
http://statistics.data.gov.uk/id/local-authority/38,Oxfordshire County Council,Support at Home 65+ Physical Support,5693,,03/04/2019,3110532667,£568.00,Care with Care Ltd
http://statistics.data.gov.uk/id/local-authority/38,Oxfordshire County Council,Support at Home 65+ Physical Support,5899,Social Care - Direct Payments,15/04/2019,3110539381,£568.00,Purple Conversation Com In Co (DP)
http://statistics.data.gov.uk/id/local-authority/38,Oxfordshire County Council,Contingency Home Care,5689,,30/04/2019,3110546182,£568.70,Oxford University Hospitals NHS FT
http://statistics.data.gov.uk/id/local-authority/38,Oxfordshire County Council,Support at Home U65 Learning Disability,5697,,03/04/2019,3110532728,£568.72,Life Path Trust Ltd
http://statistics.data.gov.uk/id/local-authority/38,Oxfordshire County Council,LEAVING CARE CITY 2,5572,,04/04/2019,9300038500,£568.80,OCC SS Oxford City Div 1 Cash
http://statistics.data.gov.uk/id/local-authority/38,Oxfordshire County Council,Delegated Health Tasks  - Over 65,5689,,30/04/2019,3110545402,£569.16,Caremark (West Oxfordshire & Cherwe
http://statistics.data.gov.uk/id/local-authority/38,Oxfordshire County Council,LIBRARY COLLECTIONS,4539,"Books, DVDs and CDs",10/04/2019,2200626985,£569.80,MAGNA LARGE PRINT BOOKS
http://statistics.data.gov.uk/id/local-authority/38,Oxfordshire County Council,Support at Home 65+ Physical Support,5689,,30/04/2019,3110545765,£569.86,Oxfordshire Crossroads
http://statistics.data.gov.uk/id/local-authority/38,Oxfordshire County Council,Care Packages & Placements- LD - OCC,5227,Other Transport Arrangements,30/04/2019,3110546464,£570.00,Oxon Transport Services Ltd
http://statistics.data.gov.uk/id/local-authority/38,Oxfordshire County Council,Support at Home U65 Learning Disability,5690,,11/04/2019,3110536286,£570.00,Style Acre
http://statistics.data.gov.uk/id/local-authority/38,Oxfordshire County Council,Contingency Home Care,5689,,02/04/2019,3110531598,£570.85,Day and Nightcare Assistance
http://statistics.data.gov.uk/id/local-authority/38,Oxfordshire County Council,Support at Home U65 Physical Support,5899,Social Care - Direct Payments,15/04/2019,3110539298,£571.20,Purple Conversation Com In Co (DP)
http://statistics.data.gov.uk/id/local-authority/38,Oxfordshire County Council,Support at Home 65+ Physical Support,5689,,02/04/2019,3110531515,£571.62,Oxfordshire Crossroads
http://statistics.data.gov.uk/id/local-authority/38,Oxfordshire County Council,Support at Home U65 Learning Disability,5899,Social Care - Direct Payments,15/04/2019,3110539139,£572.00,Purple Conversation Com In Co (DP)
http://statistics.data.gov.uk/id/local-authority/38,Oxfordshire County Council,Support at Home 65+ Physical Support,5689,,02/04/2019,3110531737,£572.38,Elite Care Agency
http://statistics.data.gov.uk/id/local-authority/38,Oxfordshire County Council,Support at Home 65+ Physical Support,5698,,24/04/2019,3110543847,£572.75,Day & Night Care Assistance
http://statistics.data.gov.uk/id/local-authority/38,Oxfordshire County Council,GRASS CUTTING DIST.,5526,Payments to Private Contractors,24/04/2019,3110543492,£573.07,OCC One Time Vendor
http://statistics.data.gov.uk/id/local-authority/38,Oxfordshire County Council,UASC 16&17,5227,Other Transport Arrangements,26/04/2019,9300038801,£573.40,OCC SS Oxford City Div 1 Cash
http://statistics.data.gov.uk/id/local-authority/38,Oxfordshire County Council,Support at Home U65 MH OBC Contract,5698,,24/04/2019,3110543753,£573.64,Charterville Care At Home Ltd
http://statistics.data.gov.uk/id/local-authority/38,Oxfordshire County Council,Support at Home U65 Physical Support,5698,,24/04/2019,3110543591,£574.20,Acquire Care Ltd
http://statistics.data.gov.uk/id/local-authority/38,Oxfordshire County Council,TRAINING MANAGEMENT,3100,Educational and Vocational Training,15/04/2019,2200627629,£575.00,LANTRA
http://statistics.data.gov.uk/id/local-authority/38,Oxfordshire County Council,CHC Fast Track - Sup at Home - Under 65,5691,,25/04/2019,3110544493,£575.00,Sue Ryder
http://statistics.data.gov.uk/id/local-authority/38,Oxfordshire County Council,Care Homes - Over 65 Physical Sypport,5686,,11/04/2019,3110535436,£575.14,Orders of St John
http://statistics.data.gov.uk/id/local-authority/38,Oxfordshire County Council,Contingency Home Care,5689,,02/04/2019,3110531582,£575.36,Day and Nightcare Assistance
http://statistics.data.gov.uk/id/local-authority/38,Oxfordshire County Council,Care Packages & Placements- Older People,5687,,11/04/2019,3110534945,£575.90,Banbury Heights Nursing Home
http://statistics.data.gov.uk/id/local-authority/38,Oxfordshire County Council,SEN TRANSPORT,5227,Other Transport Arrangements,11/04/2019,3110534843,£576.00,Oxfordshire Travel Ltd
http://statistics.data.gov.uk/id/local-authority/38,Oxfordshire County Council,Support at Home 65+ Physical Support,5899,Social Care - Direct Payments,15/04/2019,3110539096,£576.00,Purple Conversation Com In Co (DP)
http://statistics.data.gov.uk/id/local-authority/38,Oxfordshire County Council,Support at Home 65+ Physical Support,5899,Social Care - Direct Payments,15/04/2019,3110539284,£576.00,Purple Conversation Com In Co (DP)
http://statistics.data.gov.uk/id/local-authority/38,Oxfordshire County Council,Support at Home U65 Physical Support,5899,Social Care - Direct Payments,15/04/2019,3110539008,£576.04,Purple Conversation Com In Co (DP)
http://statistics.data.gov.uk/id/local-authority/38,Oxfordshire County Council,Support at Home 65+ Physical Support,5689,,02/04/2019,3110531144,£576.60,Amber Healthcare Personnel Ltd
http://statistics.data.gov.uk/id/local-authority/38,Oxfordshire County Council,Support at Home 65+ Physical Support,5689,,30/04/2019,3110545972,£576.61,Greigcare Home Service
http://statistics.data.gov.uk/id/local-authority/38,Oxfordshire County Council,Support at Home U65 Physical Support,5899,Social Care - Direct Payments,15/04/2019,3110539079,£576.80,Purple Conversation Com In Co (DP)
http://statistics.data.gov.uk/id/local-authority/38,Oxfordshire County Council,Support at Home 65+ Physical Support,5698,,24/04/2019,3110543844,£577.08,Day & Night Care Assistance
http://statistics.data.gov.uk/id/local-authority/38,Oxfordshire County Council,SEN TRANSPORT,5227,Other Transport Arrangements,11/04/2019,3110536407,£577.50,Angelas Travel
http://statistics.data.gov.uk/id/local-authority/38,Oxfordshire County Council,SEN TRANSPORT,5227,Other Transport Arrangements,09/04/2019,3110533600,£577.50,Crown Cabs Travel Ltd
http://statistics.data.gov.uk/id/local-authority/38,Oxfordshire County Council,Early Years SEN Funding,5537,Payments to Other Establishments,25/04/2019,3110544399,£577.50,Grimsbury Family Association
http://statistics.data.gov.uk/id/local-authority/38,Oxfordshire County Council,LIBRARY COLLECTIONS,4539,"Books, DVDs and CDs",15/04/2019,3110538958,£577.57,ASKEWS & HOLTS LIBRARY SERVICES LTD
http://statistics.data.gov.uk/id/local-authority/38,Oxfordshire County Council,Support at Home 65+ Physical Support,5689,,02/04/2019,3110531281,£577.74,Caremark (West Oxfordshire & Cherwe
http://statistics.data.gov.uk/id/local-authority/38,Oxfordshire County Council,LIBRARY COLLECTIONS,4539,"Books, DVDs and CDs",15/04/2019,3110538944,£577.75,ASKEWS & HOLTS LIBRARY SERVICES LTD
http://statistics.data.gov.uk/id/local-authority/38,Oxfordshire County Council,LEAVING CARE CITY 1,4685,Clothing and Uniforms,11/04/2019,9300038582,£577.90,OCC SS Oxford City Div 1 Cash
http://statistics.data.gov.uk/id/local-authority/38,Oxfordshire County Council,Continuing Care - Care Homes - 65+,5687,,11/04/2019,3110536843,£578.57,Chacombe Park Care Home
http://statistics.data.gov.uk/id/local-authority/38,Oxfordshire County Council,Support at Home U65 Learning Disability,5690,,11/04/2019,3110536133,£578.57,H F TRUST LTD
http://statistics.data.gov.uk/id/local-authority/38,Oxfordshire County Council,Support at Home U65 Learning Disability,5690,,11/04/2019,3110536199,£578.57,MacIntyre Care (Womaston)
http://statistics.data.gov.uk/id/local-authority/38,Oxfordshire County Council,Support at Home U65 Learning Disability,5690,,11/04/2019,3110536209,£578.57,MacIntyre Care (Womaston)
http://statistics.data.gov.uk/id/local-authority/38,Oxfordshire County Council,Support at Home U65 Physical Support,5698,,24/04/2019,3110543551,£578.70,Acquire Care Ltd
http://statistics.data.gov.uk/id/local-authority/38,Oxfordshire County Council,Support at Home U65 Physical Support,5696,,18/04/2019,3110542550,£579.05,Orders of St John Care Trust
http://statistics.data.gov.uk/id/local-authority/38,Oxfordshire County Council,,1448,Blackfield Inc & Exp A/c,01/04/2019,3110530287,£579.55,OCC One Time Vendor
http://statistics.data.gov.uk/id/local-authority/38,Oxfordshire County Council,Support at Home U65 Physical Support,5698,,24/04/2019,3110543599,£579.60,Acquire Care Ltd
http://statistics.data.gov.uk/id/local-authority/38,Oxfordshire County Council,OPERATIONS,4498,Health and Safety Equipment,05/04/2019,2200625587,£579.60,RS COMPONENTS LTD
http://statistics.data.gov.uk/id/local-authority/38,Oxfordshire County Council,SEN TRANSPORT,5227,Other Transport Arrangements,11/04/2019,3110536342,£580.00,Black and White Cars T/A Banbury Ta
http://statistics.data.gov.uk/id/local-authority/38,Oxfordshire County Council,Support at Home 65+ Physical Support,5693,,17/04/2019,3110541736,£580.00,George Springall Homecare
http://statistics.data.gov.uk/id/local-authority/38,Oxfordshire County Council,Support at Home U65 Learning Disability,5697,,03/04/2019,3110532751,£580.00,Pennyhooks Farm Trust
http://statistics.data.gov.uk/id/local-authority/38,Oxfordshire County Council,Support at Home U65 Physical Support,5899,Social Care - Direct Payments,15/04/2019,3110539440,£580.00,Purple Conversation Com In Co (DP)
http://statistics.data.gov.uk/id/local-authority/38,Oxfordshire County Council,Support at Home U65 Mental Health,5899,Social Care - Direct Payments,15/04/2019,3110539648,£580.00,Purple Conversation Com In Co (DP)
http://statistics.data.gov.uk/id/local-authority/38,Oxfordshire County Council,Support at Home U65 Learning Disability,5690,,11/04/2019,3110534085,£580.73,OXFORD HEALTH NHS FOUNDATION TRUST
http://statistics.data.gov.uk/id/local-authority/38,Oxfordshire County Council,Support at Home 65+ Physical Support,5689,,30/04/2019,3110545046,£580.90,1 to 1 Care
http://statistics.data.gov.uk/id/local-authority/38,Oxfordshire County Council,Support at Home 65+ Physical Support,5689,,02/04/2019,3110531229,£580.92,Care Outlook Ltd
http://statistics.data.gov.uk/id/local-authority/38,Oxfordshire County Council,Support at Home 65+ Physical Support,5689,,02/04/2019,3110532249,£581.37,AVR (Oxon) Ltd
http://statistics.data.gov.uk/id/local-authority/38,Oxfordshire County Council,Support at Home 65+ Learning Disability,5688,,11/04/2019,3110534935,£582.99,The Laurels (Witney)
http://statistics.data.gov.uk/id/local-authority/38,Oxfordshire County Council,Contingency Home Care,5689,,02/04/2019,3110532061,£583.36,Oxford University Hospitals NHS FT
http://statistics.data.gov.uk/id/local-authority/38,Oxfordshire County Council,Support at Home 65+ Physical Support,5698,,24/04/2019,3110543789,£584.44,Charterville Care At Home Ltd
http://statistics.data.gov.uk/id/local-authority/38,Oxfordshire County Council,,1448,Blackfield Inc & Exp A/c,17/04/2019,3110541858,£584.83,OCC One Time Vendor
http://statistics.data.gov.uk/id/local-authority/38,Oxfordshire County Council,Urgent Response,5689,,02/04/2019,3110531647,£584.99,Day and Nightcare Assistance
http://statistics.data.gov.uk/id/local-authority/38,Oxfordshire County Council,Urgent Response,5689,,30/04/2019,3110545821,£584.99,Day and Nightcare Assistance
http://statistics.data.gov.uk/id/local-authority/38,Oxfordshire County Council,Support at Home 65+ Physical Support,5693,,24/04/2019,3110543480,£585.00,Wellbeing Teams Group LTD
http://statistics.data.gov.uk/id/local-authority/38,Oxfordshire County Council,COMM DRAWDOWN FUNDNG,8102,Payments to main contractor,30/04/2019,2200632156,£585.04,Skanska Construction UK Ltd Sp
http://statistics.data.gov.uk/id/local-authority/38,Oxfordshire County Council,Support at Home 65+ Mental Health,5689,,02/04/2019,3110531734,£585.82,Elite Care Agency
http://statistics.data.gov.uk/id/local-authority/38,Oxfordshire County Council,Support at Home 65+ Physical Support,5698,,24/04/2019,3110543814,£585.91,Charterville Care At Home Ltd
http://statistics.data.gov.uk/id/local-authority/38,Oxfordshire County Council,Support at Home U65 Learning Disability,5696,,18/04/2019,3110542470,£585.93,Orders of St John Care Trust
http://statistics.data.gov.uk/id/local-authority/38,Oxfordshire County Council,ContrO ASC Payments Control Account,5899,Social Care - Direct Payments,26/04/2019,3110544601,£585.93,Purple Conversation Com In Co (DP)
http://statistics.data.gov.uk/id/local-authority/38,Oxfordshire County Council,Support at Home 65+ Learning Disability,5689,,02/04/2019,3110532170,£585.98,Premier Personal Care
http://statistics.data.gov.uk/id/local-authority/38,Oxfordshire County Council,Support at Home U65 Learning Disability,5690,,11/04/2019,3110536217,£586.11,MacIntyre Care (Womaston)
http://statistics.data.gov.uk/id/local-authority/38,Oxfordshire County Council,Support at Home U65 Learning Disability,5690,,11/04/2019,3110536155,£587.31,Life Path Trust Ltd
http://statistics.data.gov.uk/id/local-authority/38,Oxfordshire County Council,Support at Home U65 Learning Disability,5690,,11/04/2019,3110536197,£587.31,Life Path Trust Ltd
http://statistics.data.gov.uk/id/local-authority/38,Oxfordshire County Council,Support at Home U65 Physical Support,5696,,18/04/2019,3110542539,£587.89,Orders of St John Care Trust
http://statistics.data.gov.uk/id/local-authority/38,Oxfordshire County Council,GYPSY & TRAVELLER SV,4940,Other Services,09/04/2019,2200626668,£588.00,Advanced Pest Control Ltd
http://statistics.data.gov.uk/id/local-authority/38,Oxfordshire County Council,Care Packages & Placements- LD - OCC,5227,Other Transport Arrangements,11/04/2019,3110538705,£588.00,Excelsior Taxis Ltd
http://statistics.data.gov.uk/id/local-authority/38,Oxfordshire County Council,COUNTY PRINT FINSHRS,4705,Printing,03/04/2019,2200624394,£588.00,Godivaprint Ltd
http://statistics.data.gov.uk/id/local-authority/38,Oxfordshire County Council,Contingency Home Care,5689,,30/04/2019,3110545891,£588.89,Day and Nightcare Assistance
http://statistics.data.gov.uk/id/local-authority/38,Oxfordshire County Council,Support at Home 65+ Physical Support,5696,,24/04/2019,3110543389,£589.00,1st Homecare (Oxford) Ltd
http://statistics.data.gov.uk/id/local-authority/38,Oxfordshire County Council,ICT Operations & Maintenance,5072,Telephone - Equipment,03/04/2019,2200624727,£589.00,BT Plc (One Bill)
http://statistics.data.gov.uk/id/local-authority/38,Oxfordshire County Council,Contingency Home Care,5689,,02/04/2019,3110532007,£589.36,Oxford University Hospitals NHS FT
http://statistics.data.gov.uk/id/local-authority/38,Oxfordshire County Council,Urgent Response,5689,,30/04/2019,3110545904,£589.39,Day and Nightcare Assistance
http://statistics.data.gov.uk/id/local-authority/38,Oxfordshire County Council,Support at Home 65+ Physical Support,5689,,30/04/2019,3110545309,£589.66,Care Outlook Ltd
http://statistics.data.gov.uk/id/local-authority/38,Oxfordshire County Council,SEN TRANSPORT,5227,Other Transport Arrangements,12/04/2019,3110538783,£589.68,Mills Transport Ltd
http://statistics.data.gov.uk/id/local-authority/38,Oxfordshire County Council,Support at Home U65 Autism /Abated,5691,,17/04/2019,3110541821,£590.40,Style Acre
http://statistics.data.gov.uk/id/local-authority/38,Oxfordshire County Council,Support at Home U65 Physical Support,5689,,30/04/2019,3110546129,£590.87,My Carer Ltd
http://statistics.data.gov.uk/id/local-authority/38,Oxfordshire County Council,Support at Home 65+ Physical Support,5698,,24/04/2019,3110543913,£590.98,Day & Night Care Assistance
http://statistics.data.gov.uk/id/local-authority/38,Oxfordshire County Council,Support at Home 65+ Physical Support,5689,,02/04/2019,3110531920,£591.07,My Carer Ltd
http://statistics.data.gov.uk/id/local-authority/38,Oxfordshire County Council,Support at Home U65 Sensory Support,5689,,02/04/2019,3110531922,£591.21,My Carer Ltd
http://statistics.data.gov.uk/id/local-authority/38,Oxfordshire County Council,Support at Home 65+ Physical Support,5689,,30/04/2019,3110545167,£591.35,Amber Healthcare Personnel Ltd
http://statistics.data.gov.uk/id/local-authority/38,Oxfordshire County Council,Support at Home U65 Learning Disability,5227,Other Transport Arrangements,25/04/2019,3110544292,£592.00,Crown Cabs Travel Ltd
http://statistics.data.gov.uk/id/local-authority/38,Oxfordshire County Council,HARD FM,3787,Premises Repairs,01/04/2019,2200624217,£592.00,Darren Bryan Security Services
http://statistics.data.gov.uk/id/local-authority/38,Oxfordshire County Council,Support at Home U65 Physical Support,5899,Social Care - Direct Payments,15/04/2019,3110539868,£592.00,Purple Conversation Com In Co (DP)
http://statistics.data.gov.uk/id/local-authority/38,Oxfordshire County Council,LAC PUPIL PREMIUM,5537,Payments to Other Establishments,24/04/2019,3110543393,£592.00,St John the Baptist School
http://statistics.data.gov.uk/id/local-authority/38,Oxfordshire County Council,Contingency Home Care,5689,,30/04/2019,3110545819,£592.12,Day and Nightcare Assistance
http://statistics.data.gov.uk/id/local-authority/38,Oxfordshire County Council,Support at Home 65+ Physical Support,5696,,03/04/2019,3110532737,£593.19,One Housing Group Limited
http://statistics.data.gov.uk/id/local-authority/38,Oxfordshire County Council,ELECTRIC AVENUE,4111,Security Costs,03/04/2019,2200624402,£593.25,Securipol Ltd
http://statistics.data.gov.uk/id/local-authority/38,Oxfordshire County Council,Contingency Home Care,5689,,02/04/2019,3110532019,£593.36,Oxford University Hospitals NHS FT
http://statistics.data.gov.uk/id/local-authority/38,Oxfordshire County Council,Support at Home 65+ Learning Disability,5693,,10/04/2019,3110533882,£593.43,Mencap
http://statistics.data.gov.uk/id/local-authority/38,Oxfordshire County Council,RISING BOLLARDS,5526,Payments to Private Contractors,25/04/2019,2200630325,£593.69,NSL Ltd
http://statistics.data.gov.uk/id/local-authority/38,Oxfordshire County Council,Support at Home U65 Physical Support,5899,Social Care - Direct Payments,15/04/2019,3110539420,£593.84,Purple Conversation Com In Co (DP)
http://statistics.data.gov.uk/id/local-authority/38,Oxfordshire County Council,Support at Home U65 Mental Health,5899,Social Care - Direct Payments,15/04/2019,3110539566,£594.00,Purple Conversation Com In Co (DP)
http://statistics.data.gov.uk/id/local-authority/38,Oxfordshire County Council,Support at Home 65+ Physical Support,5689,,30/04/2019,3110545366,£594.19,Caremark (West Oxfordshire & Cherwe
http://statistics.data.gov.uk/id/local-authority/38,Oxfordshire County Council,MUSEUMS COLLECTIONS,4940,Other Services,11/04/2019,2200627125,£594.34,Restore plc
http://statistics.data.gov.uk/id/local-authority/38,Oxfordshire County Council,Support at Home U65 Physical Support,5899,Social Care - Direct Payments,15/04/2019,3110539567,£594.60,Purple Conversation Com In Co (DP)
http://statistics.data.gov.uk/id/local-authority/38,Oxfordshire County Council,Health Acquired Brain Injury C Homes U65,5691,,02/04/2019,3110532511,£594.72,Oakleaf (Hartwell) Ltd
http://statistics.data.gov.uk/id/local-authority/38,Oxfordshire County Council,Support at Home 65+ Mental Health,5696,,18/04/2019,3110542418,£594.76,Orders of St John Care Trust
http://statistics.data.gov.uk/id/local-authority/38,Oxfordshire County Council,Support at Home 65+ Physical Support,5696,,18/04/2019,3110542420,£594.76,Orders of St John Care Trust
http://statistics.data.gov.uk/id/local-authority/38,Oxfordshire County Council,Support at Home 65+ Physical Support,5696,,18/04/2019,3110542426,£594.76,Orders of St John Care Trust
http://statistics.data.gov.uk/id/local-authority/38,Oxfordshire County Council,Support at Home 65+ Physical Support,5696,,18/04/2019,3110542527,£594.76,Orders of St John Care Trust
http://statistics.data.gov.uk/id/local-authority/38,Oxfordshire County Council,Support at Home 65+ Physical Support,5696,,18/04/2019,3110542566,£594.76,Orders of St John Care Trust
http://statistics.data.gov.uk/id/local-authority/38,Oxfordshire County Council,Support at Home 65+ Physical Support,5689,,30/04/2019,3110545982,£594.91,Greigcare Home Service
http://statistics.data.gov.uk/id/local-authority/38,Oxfordshire County Council,Support at Home U65 Learning Disability,5690,,11/04/2019,3110536190,£594.94,Life Path Trust Ltd
http://statistics.data.gov.uk/id/local-authority/38,Oxfordshire County Council,TREE MAINT OPS,5526,Payments to Private Contractors,01/04/2019,2200623348,£595.00,Complete Tree Services
http://statistics.data.gov.uk/id/local-authority/38,Oxfordshire County Council,SUPERVISED CONTACT,3942,Hire of Accommodation and Facilities,05/04/2019,2200626195,£595.96,ISWP Assessment Services Ltd
http://statistics.data.gov.uk/id/local-authority/38,Oxfordshire County Council,Support at Home U65 Physical Support,5899,Social Care - Direct Payments,15/04/2019,3110539124,£596.00,Purple Conversation Com In Co (DP)
http://statistics.data.gov.uk/id/local-authority/38,Oxfordshire County Council,GRASS CUTTING DIST.,5526,Payments to Private Contractors,30/04/2019,3110544927,£596.14,OCC One Time Vendor
http://statistics.data.gov.uk/id/local-authority/38,Oxfordshire County Council,Support at Home 65+ Physical Support,5689,,02/04/2019,3110532118,£596.15,PLL Care Services
http://statistics.data.gov.uk/id/local-authority/38,Oxfordshire County Council,2 YEAR OLD FUNDING,5537,Payments to Other Establishments,18/04/2019,3110542304,£596.16,Annette Foggett
http://statistics.data.gov.uk/id/local-authority/38,Oxfordshire County Council,2 YEAR OLD FUNDING,5537,Payments to Other Establishments,18/04/2019,3110542125,£596.16,Bright Horizon Didcot Day Nursery
http://statistics.data.gov.uk/id/local-authority/38,Oxfordshire County Council,2 YEAR OLD FUNDING,5537,Payments to Other Establishments,18/04/2019,3110542130,£596.16,Bright Start Pre-school
http://statistics.data.gov.uk/id/local-authority/38,Oxfordshire County Council,2 YEAR OLD FUNDING,5537,Payments to Other Establishments,18/04/2019,3110542305,£596.16,Cally Hill
http://statistics.data.gov.uk/id/local-authority/38,Oxfordshire County Council,2 YEAR OLD FUNDING,5537,Payments to Other Establishments,18/04/2019,3110542306,£596.16,Camilla Collins
http://statistics.data.gov.uk/id/local-authority/38,Oxfordshire County Council,2 YEAR OLD FUNDING,5537,Payments to Other Establishments,18/04/2019,3110542307,£596.16,Carol Wakelin
http://statistics.data.gov.uk/id/local-authority/38,Oxfordshire County Council,2 YEAR OLD FUNDING,5537,Payments to Other Establishments,18/04/2019,3110542308,£596.16,Carrole Forde
http://statistics.data.gov.uk/id/local-authority/38,Oxfordshire County Council,2 YEAR OLD FUNDING,5537,Payments to Other Establishments,18/04/2019,3110542141,£596.16,Charlton Acorns Pre-School
http://statistics.data.gov.uk/id/local-authority/38,Oxfordshire County Council,2 YEAR OLD FUNDING,5537,Payments to Other Establishments,18/04/2019,3110542142,£596.16,Checkendon Pre-School CIO
http://statistics.data.gov.uk/id/local-authority/38,Oxfordshire County Council,2 YEAR OLD FUNDING,5537,Payments to Other Establishments,18/04/2019,3110542153,£596.16,Complete Childcare Ltd
http://statistics.data.gov.uk/id/local-authority/38,Oxfordshire County Council,2 YEAR OLD FUNDING,5537,Payments to Other Establishments,18/04/2019,3110542155,£596.16,Crowmarsh Cifford Ce School
http://statistics.data.gov.uk/id/local-authority/38,Oxfordshire County Council,2 YEAR OLD FUNDING,5537,Payments to Other Establishments,18/04/2019,3110542156,£596.16,Culham Nursery and Pre-School
http://statistics.data.gov.uk/id/local-authority/38,Oxfordshire County Council,2 YEAR OLD FUNDING,5537,Payments to Other Establishments,18/04/2019,3110542310,£596.16,Donna Mulligan
http://statistics.data.gov.uk/id/local-authority/38,Oxfordshire County Council,2 YEAR OLD FUNDING,5537,Payments to Other Establishments,18/04/2019,3110542163,£596.16,Dorchester Pre-School
http://statistics.data.gov.uk/id/local-authority/38,Oxfordshire County Council,2 YEAR OLD FUNDING,5537,Payments to Other Establishments,18/04/2019,3110542171,£596.16,Filkins Nursery School
http://statistics.data.gov.uk/id/local-authority/38,Oxfordshire County Council,2 YEAR OLD FUNDING,5537,Payments to Other Establishments,18/04/2019,3110542311,£596.16,Fran Davis
http://statistics.data.gov.uk/id/local-authority/38,Oxfordshire County Council,2 YEAR OLD FUNDING,5537,Payments to Other Establishments,18/04/2019,3110542181,£596.16,Harpsden Pre-School Playgroup
http://statistics.data.gov.uk/id/local-authority/38,Oxfordshire County Council,2 YEAR OLD FUNDING,5537,Payments to Other Establishments,18/04/2019,3110542312,£596.16,Helen Dimmick
http://statistics.data.gov.uk/id/local-authority/38,Oxfordshire County Council,2 YEAR OLD FUNDING,5537,Payments to Other Establishments,18/04/2019,3110542313,£596.16,Jackie Forrester
http://statistics.data.gov.uk/id/local-authority/38,Oxfordshire County Council,2 YEAR OLD FUNDING,5537,Payments to Other Establishments,18/04/2019,3110542314,£596.16,Jodie Loverock Pates
http://statistics.data.gov.uk/id/local-authority/38,Oxfordshire County Council,2 YEAR OLD FUNDING,5537,Payments to Other Establishments,18/04/2019,3110542315,£596.16,Judith Rowland
http://statistics.data.gov.uk/id/local-authority/38,Oxfordshire County Council,2 YEAR OLD FUNDING,5537,Payments to Other Establishments,18/04/2019,3110542316,£596.16,Julie Harvey
http://statistics.data.gov.uk/id/local-authority/38,Oxfordshire County Council,2 YEAR OLD FUNDING,5537,Payments to Other Establishments,18/04/2019,3110542191,£596.16,Kingsfield Nursery
http://statistics.data.gov.uk/id/local-authority/38,Oxfordshire County Council,2 YEAR OLD FUNDING,5537,Payments to Other Establishments,18/04/2019,3110542317,£596.16,Leah Kernan
http://statistics.data.gov.uk/id/local-authority/38,Oxfordshire County Council,2 YEAR OLD FUNDING,5537,Payments to Other Establishments,18/04/2019,3110542198,£596.16,Little Bears Pre-School (PFSU)
http://statistics.data.gov.uk/id/local-authority/38,Oxfordshire County Council,2 YEAR OLD FUNDING,5537,Payments to Other Establishments,18/04/2019,3110542318,£596.16,Louise Duncan
http://statistics.data.gov.uk/id/local-authority/38,Oxfordshire County Council,2 YEAR OLD FUNDING,5537,Payments to Other Establishments,18/04/2019,3110542319,£596.16,Louise Moralee
http://statistics.data.gov.uk/id/local-authority/38,Oxfordshire County Council,2 YEAR OLD FUNDING,5537,Payments to Other Establishments,18/04/2019,3110542320,£596.16,Margarete Paz
http://statistics.data.gov.uk/id/local-authority/38,Oxfordshire County Council,2 YEAR OLD FUNDING,5537,Payments to Other Establishments,18/04/2019,3110542321,£596.16,Megan Belcher
http://statistics.data.gov.uk/id/local-authority/38,Oxfordshire County Council,2 YEAR OLD FUNDING,5537,Payments to Other Establishments,18/04/2019,3110542575,£596.16,Nichola Philip
http://statistics.data.gov.uk/id/local-authority/38,Oxfordshire County Council,2 YEAR OLD FUNDING,5537,Payments to Other Establishments,18/04/2019,3110542324,£596.16,Nicola Playford
http://statistics.data.gov.uk/id/local-authority/38,Oxfordshire County Council,2 YEAR OLD FUNDING,5537,Payments to Other Establishments,18/04/2019,3110542326,£596.16,Nina Vadher
http://statistics.data.gov.uk/id/local-authority/38,Oxfordshire County Council,2 YEAR OLD FUNDING,5537,Payments to Other Establishments,18/04/2019,3110542218,£596.16,North Hinksey Pre School & Childcar
http://statistics.data.gov.uk/id/local-authority/38,Oxfordshire County Council,2 YEAR OLD FUNDING,5537,Payments to Other Establishments,18/04/2019,3110542172,£596.16,People Place & Participation LTD
http://statistics.data.gov.uk/id/local-authority/38,Oxfordshire County Council,2 YEAR OLD FUNDING,5537,Payments to Other Establishments,18/04/2019,3110542224,£596.16,Polstead Playgroup
http://statistics.data.gov.uk/id/local-authority/38,Oxfordshire County Council,2 YEAR OLD FUNDING,5537,Payments to Other Establishments,18/04/2019,3110542337,£596.16,Poppy Elliott
http://statistics.data.gov.uk/id/local-authority/38,Oxfordshire County Council,2 YEAR OLD FUNDING,5537,Payments to Other Establishments,18/04/2019,3110542229,£596.16,Rainbow Corner Day Nurse
http://statistics.data.gov.uk/id/local-authority/38,Oxfordshire County Council,2 YEAR OLD FUNDING,5537,Payments to Other Establishments,18/04/2019,3110542327,£596.16,Rebecca Sandwell
http://statistics.data.gov.uk/id/local-authority/38,Oxfordshire County Council,2 YEAR OLD FUNDING,5537,Payments to Other Establishments,18/04/2019,3110542239,£596.16,Sandfield Day Nursery
http://statistics.data.gov.uk/id/local-authority/38,Oxfordshire County Council,2 YEAR OLD FUNDING,5537,Payments to Other Establishments,18/04/2019,3110542330,£596.16,Sandra Elmey
http://statistics.data.gov.uk/id/local-authority/38,Oxfordshire County Council,2 YEAR OLD FUNDING,5537,Payments to Other Establishments,18/04/2019,3110542331,£596.16,Sarahs Childminding Services
http://statistics.data.gov.uk/id/local-authority/38,Oxfordshire County Council,2 YEAR OLD FUNDING,5537,Payments to Other Establishments,18/04/2019,3110542241,£596.16,Shelswell & Fringford Playgroup
http://statistics.data.gov.uk/id/local-authority/38,Oxfordshire County Council,2 YEAR OLD FUNDING,5537,Payments to Other Establishments,18/04/2019,3110542332,£596.16,Sophie Blizzard
http://statistics.data.gov.uk/id/local-authority/38,Oxfordshire County Council,2 YEAR OLD FUNDING,5537,Payments to Other Establishments,18/04/2019,3110542244,£596.16,South Moreton Pre-School
http://statistics.data.gov.uk/id/local-authority/38,Oxfordshire County Council,2 YEAR OLD FUNDING,5537,Payments to Other Establishments,18/04/2019,3110542253,£596.16,Sticky Fingers
http://statistics.data.gov.uk/id/local-authority/38,Oxfordshire County Council,2 YEAR OLD FUNDING,5537,Payments to Other Establishments,18/04/2019,3110542256,£596.16,Sunningwell Pre-School
http://statistics.data.gov.uk/id/local-authority/38,Oxfordshire County Council,2 YEAR OLD FUNDING,5537,Payments to Other Establishments,18/04/2019,3110542257,£596.16,Sunrise Nursery
http://statistics.data.gov.uk/id/local-authority/38,Oxfordshire County Council,2 YEAR OLD FUNDING,5537,Payments to Other Establishments,18/04/2019,3110542334,£596.16,Susan Neal
http://statistics.data.gov.uk/id/local-authority/38,Oxfordshire County Council,2 YEAR OLD FUNDING,5537,Payments to Other Establishments,18/04/2019,3110542275,£596.16,The Old Station Nursery (Bampton)
http://statistics.data.gov.uk/id/local-authority/38,Oxfordshire County Council,2 YEAR OLD FUNDING,5537,Payments to Other Establishments,18/04/2019,3110542282,£596.16,The Town Nursery School
http://statistics.data.gov.uk/id/local-authority/38,Oxfordshire County Council,2 YEAR OLD FUNDING,5537,Payments to Other Establishments,18/04/2019,3110542335,£596.16,Theresa Carlyle
http://statistics.data.gov.uk/id/local-authority/38,Oxfordshire County Council,2 YEAR OLD FUNDING,5537,Payments to Other Establishments,18/04/2019,3110542286,£596.16,Tiddlywinks Pre-School
http://statistics.data.gov.uk/id/local-authority/38,Oxfordshire County Council,2 YEAR OLD FUNDING,5537,Payments to Other Establishments,18/04/2019,3110542289,£596.16,Tiny Toes Day Nursery
http://statistics.data.gov.uk/id/local-authority/38,Oxfordshire County Council,2 YEAR OLD FUNDING,5537,Payments to Other Establishments,18/04/2019,3110542292,£596.16,Triangle Day Nursery and Pre School
http://statistics.data.gov.uk/id/local-authority/38,Oxfordshire County Council,2 YEAR OLD FUNDING,5537,Payments to Other Establishments,18/04/2019,3110542336,£596.16,Victoria Littlejohn
http://statistics.data.gov.uk/id/local-authority/38,Oxfordshire County Council,2 YEAR OLD FUNDING,5537,Payments to Other Establishments,18/04/2019,3110542297,£596.16,Whitchurch Pre-School Group
http://statistics.data.gov.uk/id/local-authority/38,Oxfordshire County Council,2 YEAR OLD FUNDING,5537,Payments to Other Establishments,18/04/2019,3110542298,£596.16,Willow Cottage Nurseries Limited
http://statistics.data.gov.uk/id/local-authority/38,Oxfordshire County Council,2 YEAR OLD FUNDING,5537,Payments to Other Establishments,18/04/2019,3110542302,£596.16,Woodstock Under Fives Association
http://statistics.data.gov.uk/id/local-authority/38,Oxfordshire County Council,NURSERY ED FUND,5537,Payments to Other Establishments,10/04/2019,3110541415,£596.30,Louise Duncan
http://statistics.data.gov.uk/id/local-authority/38,Oxfordshire County Council,NURSERY ED FUND,5537,Payments to Other Establishments,10/04/2019,3110541486,£596.30,Virginie Rayner
http://statistics.data.gov.uk/id/local-authority/38,Oxfordshire County Council,Support at Home 65+ Physical Support,5689,,30/04/2019,3110545314,£596.49,Care Outlook Ltd
http://statistics.data.gov.uk/id/local-authority/38,Oxfordshire County Council,Support at Home 65+ Physical Support,5689,,30/04/2019,3110545992,£596.51,Greigcare Home Service
http://statistics.data.gov.uk/id/local-authority/38,Oxfordshire County Council,Support at Home 65+ Physical Support,5689,,02/04/2019,3110531726,£596.77,DoCare Ltd
http://statistics.data.gov.uk/id/local-authority/38,Oxfordshire County Council,Delegated Health Tasks  - Under 65,5691,,17/04/2019,3110541917,£596.84,Bluebird Care (Oxford South & West)
http://statistics.data.gov.uk/id/local-authority/38,Oxfordshire County Council,Delegated Health Tasks  - Over 65,5691,,17/04/2019,3110541918,£596.84,Bluebird Care (Oxford South & West)
http://statistics.data.gov.uk/id/local-authority/38,Oxfordshire County Council,Continuing Care - Support at Home - U65,5691,,17/04/2019,3110541962,£596.84,Bluebird Care (Oxford South & West)
http://statistics.data.gov.uk/id/local-authority/38,Oxfordshire County Council,COUNTY PRINT FINSHRS,2040,Agency Staff,25/04/2019,2200630274,£597.00,Completely Care Ltd
http://statistics.data.gov.uk/id/local-authority/38,Oxfordshire County Council,Support at Home 65+ Physical Support,5689,,30/04/2019,3110545909,£597.23,DoCare Ltd
http://statistics.data.gov.uk/id/local-authority/38,Oxfordshire County Council,Support at Home U65 MH OBC Contract,4111,Security Costs,02/04/2019,3110532454,£597.30,Barnewood Limited
http://statistics.data.gov.uk/id/local-authority/38,Oxfordshire County Council,CORPORATE LANDLORD,4001,Uniform Business Rates,01/04/2019,3500053452,£597.65,Cherwell District Council
http://statistics.data.gov.uk/id/local-authority/38,Oxfordshire County Council,CHC Fast Track - Sup at Homes - Over 65,5691,,25/04/2019,3110544512,£598.00,Sue Ryder
http://statistics.data.gov.uk/id/local-authority/38,Oxfordshire County Council,Support at Home U65 Physical Support,5698,,24/04/2019,3110543815,£598.57,Charterville Care At Home Ltd
http://statistics.data.gov.uk/id/local-authority/38,Oxfordshire County Council,Support at Home 65+ Physical Support,5698,,24/04/2019,3110544131,£598.60,Oxford Private Care
http://statistics.data.gov.uk/id/local-authority/38,Oxfordshire County Council,Support at Home 65+ Physical Support,5698,,24/04/2019,3110543921,£598.78,Day & Night Care Assistance
http://statistics.data.gov.uk/id/local-authority/38,Oxfordshire County Council,CORPORATE LANDLORD,4001,Uniform Business Rates,26/04/2019,3500054508,£599.20,Cherwell District Council
http://statistics.data.gov.uk/id/local-authority/38,Oxfordshire County Council,Support at Home U65 MH OBC Contract,5689,,02/04/2019,3110532199,£599.45,Response Organisation
http://statistics.data.gov.uk/id/local-authority/38,Oxfordshire County Council,Support at Home U65 Learning Disability,5682,,29/04/2019,3110544832,£599.67,The Brandon Trust
http://statistics.data.gov.uk/id/local-authority/38,Oxfordshire County Council,Support at Home U65 Learning Disability,5682,,29/04/2019,3110544868,£599.77,The Brandon Trust
http://statistics.data.gov.uk/id/local-authority/38,Oxfordshire County Council,LOOKED AFTER SOUTH,5227,Other Transport Arrangements,09/04/2019,3110533784,£600.00,Ash Cars (UK) Ltd
http://statistics.data.gov.uk/id/local-authority/38,Oxfordshire County Council,SEN TRANSPORT,5227,Other Transport Arrangements,29/04/2019,3110544742,£600.00,C V OSullivan
http://statistics.data.gov.uk/id/local-authority/38,Oxfordshire County Council,MAINSTREAM-SECONDARY,4330,Transport to School Activities,29/04/2019,3110544773,£600.00,Cherwell Cars
http://statistics.data.gov.uk/id/local-authority/38,Oxfordshire County Council,Oxfordshire Adoption Support Fund,4859,Medical and Counselling Fees,11/04/2019,2200627253,£600.00,Dr Marie Bradley
http://statistics.data.gov.uk/id/local-authority/38,Oxfordshire County Council,Community Support Service Banbury,3100,Educational and Vocational Training,29/04/2019,2200631143,£600.00,Experience Training Ltd
http://statistics.data.gov.uk/id/local-authority/38,Oxfordshire County Council,DEPUTY DIRECTOR &MAN,2014,Staff - Allowances,02/04/2019,2200624358,£600.00,Liz Goold Associates
http://statistics.data.gov.uk/id/local-authority/38,Oxfordshire County Council,LEGAL SERVICES,5251,Legal Costs,01/04/2019,2200623906,£600.00,Miss Chloe Wilkins
http://statistics.data.gov.uk/id/local-authority/38,Oxfordshire County Council,Support at Home 65+ Physical Support,4861,Hired and Contracted Services,10/04/2019,2200626890,£600.00,Orders of St John
http://statistics.data.gov.uk/id/local-authority/38,Oxfordshire County Council,Oxfordshire Safeguarding Adults Board,4940,Other Services,12/04/2019,2200627301,£600.00,Pamela Marsden Associates Ltd
http://statistics.data.gov.uk/id/local-authority/38,Oxfordshire County Council,Support at Home U65 Learning Disability,5899,Social Care - Direct Payments,15/04/2019,3110539027,£600.00,Purple Conversation Com In Co (DP)
http://statistics.data.gov.uk/id/local-authority/38,Oxfordshire County Council,Support at Home U65 Learning Disability,5899,Social Care - Direct Payments,15/04/2019,3110539128,£600.00,Purple Conversation Com In Co (DP)
http://statistics.data.gov.uk/id/local-authority/38,Oxfordshire County Council,Support at Home U65 Learning Disability,5899,Social Care - Direct Payments,15/04/2019,3110539237,£600.00,Purple Conversation Com In Co (DP)
http://statistics.data.gov.uk/id/local-authority/38,Oxfordshire County Council,Support at Home 65+ Physical Support,5899,Social Care - Direct Payments,15/04/2019,3110539359,£600.00,Purple Conversation Com In Co (DP)
http://statistics.data.gov.uk/id/local-authority/38,Oxfordshire County Council,Support at Home U65 Physical Support,5899,Social Care - Direct Payments,15/04/2019,3110539361,£600.00,Purple Conversation Com In Co (DP)
http://statistics.data.gov.uk/id/local-authority/38,Oxfordshire County Council,Support at Home U65 Learning Disability,5899,Social Care - Direct Payments,15/04/2019,3110539463,£600.00,Purple Conversation Com In Co (DP)
http://statistics.data.gov.uk/id/local-authority/38,Oxfordshire County Council,Support at Home U65 Learning Disability,5899,Social Care - Direct Payments,15/04/2019,3110539464,£600.00,Purple Conversation Com In Co (DP)
http://statistics.data.gov.uk/id/local-authority/38,Oxfordshire County Council,Support at Home 65+ Learning Disability,5899,Social Care - Direct Payments,15/04/2019,3110539824,£600.00,Purple Conversation Com In Co (DP)
http://statistics.data.gov.uk/id/local-authority/38,Oxfordshire County Council,Support at Home U65 Physical Support,5899,Social Care - Direct Payments,15/04/2019,3110539831,£600.00,Purple Conversation Com In Co (DP)
http://statistics.data.gov.uk/id/local-authority/38,Oxfordshire County Council,Bracknell Adoption Support Fund,4859,Medical and Counselling Fees,05/04/2019,2200626127,£600.00,The Cherrycroft Practice Limited
http://statistics.data.gov.uk/id/local-authority/38,Oxfordshire County Council,SEN TRANSPORT,5227,Other Transport Arrangements,16/04/2019,3110541560,£600.00,The Oxford Minibus Company Ltd
http://statistics.data.gov.uk/id/local-authority/38,Oxfordshire County Council,KINGFISHER,4330,Transport to School Activities,09/04/2019,3110533738,£600.00,Toots Taxis
http://statistics.data.gov.uk/id/local-authority/38,Oxfordshire County Council,Support at Home U65 Learning Disability,5690,,11/04/2019,3110536237,£600.00,Turnstyle
http://statistics.data.gov.uk/id/local-authority/38,Oxfordshire County Council,LAC PUPIL PREMIUM,5537,Payments to Other Establishments,24/04/2019,3110543428,£600.00,Windale Community Primary School
http://statistics.data.gov.uk/id/local-authority/38,Oxfordshire County Council,HARD FM,3787,Premises Repairs,15/04/2019,2200627803,£600.86,Marlowe Fire & Security Ltd
http://statistics.data.gov.uk/id/local-authority/38,Oxfordshire County Council,CORPORATE LANDLORD,4001,Uniform Business Rates,26/04/2019,3500054489,£601.00,Cherwell District Council
http://statistics.data.gov.uk/id/local-authority/38,Oxfordshire County Council,Support at Home 65+ Physical Support,5689,,02/04/2019,3110531747,£601.68,Elite Care Agency
http://statistics.data.gov.uk/id/local-authority/38,Oxfordshire County Council,Support at Home 65+ Physical Support,5698,,24/04/2019,3110544074,£601.79,Oxford Private Care
http://statistics.data.gov.uk/id/local-authority/38,Oxfordshire County Council,HIGHWAYS GENERAL,4001,Uniform Business Rates,26/04/2019,3500054630,£602.00,Vale of White Horse District Counci
http://statistics.data.gov.uk/id/local-authority/38,Oxfordshire County Council,FAM GRP CONFERENCES,5668,Technical and Professional Consultant F,05/04/2019,2200626105,£602.10,Sandra Woodward
http://statistics.data.gov.uk/id/local-authority/38,Oxfordshire County Council,Support at Home 65+ Physical Support,5698,,24/04/2019,3110544156,£602.58,Oxford Private Care
http://statistics.data.gov.uk/id/local-authority/38,Oxfordshire County Council,Support at Home 65+ Physical Support,5689,,30/04/2019,3110546029,£602.78,MiHomecare Ltd
http://statistics.data.gov.uk/id/local-authority/38,Oxfordshire County Council,Delegated Health Tasks  - Over 65,5691,,02/04/2019,3110532503,£604.00,PLL Care Services
http://statistics.data.gov.uk/id/local-authority/38,Oxfordshire County Council,Support at Home 65+ Physical Support,5689,,30/04/2019,3110545251,£604.11,Amber Healthcare Personnel Ltd
http://statistics.data.gov.uk/id/local-authority/38,Oxfordshire County Council,LIBRARY COLLECTIONS,4539,"Books, DVDs and CDs",15/04/2019,3110538981,£604.12,ASKEWS & HOLTS LIBRARY SERVICES LTD
http://statistics.data.gov.uk/id/local-authority/38,Oxfordshire County Council,LIBRARY COLLECTIONS,4539,"Books, DVDs and CDs",15/04/2019,3110538953,£604.31,ASKEWS & HOLTS LIBRARY SERVICES LTD
http://statistics.data.gov.uk/id/local-authority/38,Oxfordshire County Council,Support at Home 65+ Physical Support,5689,,02/04/2019,3110531130,£604.32,Amber Healthcare Personnel Ltd
http://statistics.data.gov.uk/id/local-authority/38,Oxfordshire County Council,TRANSPORT COSTS,4330,Transport to School Activities,09/04/2019,3110533039,£605.00,Black and White Cars T/A Banbury Ta
http://statistics.data.gov.uk/id/local-authority/38,Oxfordshire County Council,HIGHWAYS GENERAL,4001,Uniform Business Rates,01/04/2019,3500053637,£605.56,Vale of White Horse District Counci
http://statistics.data.gov.uk/id/local-authority/38,Oxfordshire County Council,Support at Home 65+ Physical Support,5689,,02/04/2019,3110532141,£605.63,PLL Care Services
http://statistics.data.gov.uk/id/local-authority/38,Oxfordshire County Council,Support at Home 65+ Physical Support,5689,,02/04/2019,3110531859,£605.79,Home Helpers Care Ltd
http://statistics.data.gov.uk/id/local-authority/38,Oxfordshire County Council,Support at Home U65 Learning Disability,5688,,11/04/2019,3110534104,£605.83,ADVANCE HOUSING & SUPPORT LTD
http://statistics.data.gov.uk/id/local-authority/38,Oxfordshire County Council,Support at Home U65 Learning Disability,5688,,11/04/2019,3110534105,£605.83,ADVANCE HOUSING & SUPPORT LTD
http://statistics.data.gov.uk/id/local-authority/38,Oxfordshire County Council,Support at Home 65+ Learning Disability,5688,,11/04/2019,3110534116,£605.83,ADVANCE HOUSING & SUPPORT LTD
http://statistics.data.gov.uk/id/local-authority/38,Oxfordshire County Council,Support at Home U65 Learning Disability,5690,,11/04/2019,3110534055,£605.83,Mencap Contracts
http://statistics.data.gov.uk/id/local-authority/38,Oxfordshire County Council,Support at Home U65 Memory & Cognition,5690,,11/04/2019,3110534057,£605.83,Mencap Contracts
http://statistics.data.gov.uk/id/local-authority/38,Oxfordshire County Council,Support at Home U65 Other /Soc Isolation,5688,,11/04/2019,3110534362,£605.83,Mencap Contracts
http://statistics.data.gov.uk/id/local-authority/38,Oxfordshire County Council,Support at Home U65 Learning Disability,5688,,11/04/2019,3110534406,£605.83,Mencap Contracts
http://statistics.data.gov.uk/id/local-authority/38,Oxfordshire County Council,Support at Home U65 Learning Disability,5688,,11/04/2019,3110534428,£605.83,Mencap Contracts
http://statistics.data.gov.uk/id/local-authority/38,Oxfordshire County Council,Support at Home U65 Learning Disability,5688,,11/04/2019,3110534437,£605.83,Real Life Options
http://statistics.data.gov.uk/id/local-authority/38,Oxfordshire County Council,Support at Home 65+ Physical Support,5899,Social Care - Direct Payments,02/04/2019,3110530522,£606.36,Purple Conversation Com In Co (DP)
http://statistics.data.gov.uk/id/local-authority/38,Oxfordshire County Council,Support at Home 65+ Memory & Cognition,5689,,02/04/2019,3110531729,£606.83,DoCare Ltd
http://statistics.data.gov.uk/id/local-authority/38,Oxfordshire County Council,Support at Home 65+ Other /Soc Isolation,5681,,11/04/2019,3110534946,£607.00,Orders of St John
http://statistics.data.gov.uk/id/local-authority/38,Oxfordshire County Council,Support at Home 65+ Memory & Cognition,5681,,11/04/2019,3110535035,£607.00,Orders of St John
http://statistics.data.gov.uk/id/local-authority/38,Oxfordshire County Council,Support at Home 65+ Physical Support,5681,,11/04/2019,3110535077,£607.00,Orders of St John
http://statistics.data.gov.uk/id/local-authority/38,Oxfordshire County Council,Support at Home 65+ Physical Support,5681,,11/04/2019,3110535405,£607.00,Orders of St John
http://statistics.data.gov.uk/id/local-authority/38,Oxfordshire County Council,Support at Home 65+ Physical Support,5681,,11/04/2019,3110535530,£607.00,Orders of St John
http://statistics.data.gov.uk/id/local-authority/38,Oxfordshire County Council,Support at Home U65 Physical Support,5698,,24/04/2019,3110543704,£607.29,Charterville Care At Home Ltd
http://statistics.data.gov.uk/id/local-authority/38,Oxfordshire County Council,Support at Home 65+ Physical Support,5689,,02/04/2019,3110531267,£607.32,Caremark (West Oxfordshire & Cherwe
http://statistics.data.gov.uk/id/local-authority/38,Oxfordshire County Council,Support at Home U65 Physical Support,5899,Social Care - Direct Payments,15/04/2019,3110539620,£607.32,Purple Conversation Com In Co (DP)
http://statistics.data.gov.uk/id/local-authority/38,Oxfordshire County Council,Support at Home 65+ Physical Support,5689,,02/04/2019,3110531239,£607.80,Care Outlook Ltd
http://statistics.data.gov.uk/id/local-authority/38,Oxfordshire County Council,Support at Home U65 Physical Support,5689,,02/04/2019,3110531797,£608.00,Greigcare Home Service
http://statistics.data.gov.uk/id/local-authority/38,Oxfordshire County Council,PROCUREMENT,4232,Vehicle Fuel,10/04/2019,2200626919,£608.11,Certas Energy UK Ltd
http://statistics.data.gov.uk/id/local-authority/38,Oxfordshire County Council,Care Homes - Over 65 Physical Sypport,5685,B*Cycle tracks,11/04/2019,3110535419,£608.23,Huntercombe Hall Ltd
http://statistics.data.gov.uk/id/local-authority/38,Oxfordshire County Council,Support at Home 65+ Physical Support,5689,,02/04/2019,3110531712,£608.89,DoCare Ltd
http://statistics.data.gov.uk/id/local-authority/38,Oxfordshire County Council,SEN TRANSPORT,5227,Other Transport Arrangements,11/04/2019,3110536293,£609.00,Airport Transfers Banbury Ltd
http://statistics.data.gov.uk/id/local-authority/38,Oxfordshire County Council,Support at Home 65+ Physical Support,5689,,30/04/2019,3110545387,£609.60,Caremark (West Oxfordshire & Cherwe
http://statistics.data.gov.uk/id/local-authority/38,Oxfordshire County Council,Support at Home 65+ Physical Support,5689,,02/04/2019,3110532081,£609.65,PLL Care Services
http://statistics.data.gov.uk/id/local-authority/38,Oxfordshire County Council,Support at Home 65+ Physical Support,5689,,30/04/2019,3110545539,£610.21,Caremark (West Oxfordshire & Cherwe
http://statistics.data.gov.uk/id/local-authority/38,Oxfordshire County Council,Support at Home U65 MH OBC Contract,5689,,02/04/2019,3110532203,£610.34,Response Organisation
http://statistics.data.gov.uk/id/local-authority/38,Oxfordshire County Council,Support at Home U65 MH OBC Contract,5689,,30/04/2019,3110546396,£610.35,Response Organisation
http://statistics.data.gov.uk/id/local-authority/38,Oxfordshire County Council,Support at Home U65 MH OBC Contract,5689,,30/04/2019,3110546400,£610.35,Response Organisation
http://statistics.data.gov.uk/id/local-authority/38,Oxfordshire County Council,Support at Home U65 Physical Support,5698,,24/04/2019,3110543827,£610.38,Charterville Care At Home Ltd
http://statistics.data.gov.uk/id/local-authority/38,Oxfordshire County Council,Support at Home 65+ Physical Support,5696,,10/04/2019,3110533899,£610.79,Orders of St John Care Trust
http://statistics.data.gov.uk/id/local-authority/38,Oxfordshire County Council,NURSERY ED FUND,5537,Payments to Other Establishments,10/04/2019,3110541386,£610.85,Jane Austin
http://statistics.data.gov.uk/id/local-authority/38,Oxfordshire County Council,NURSERY ED FUND,5537,Payments to Other Establishments,10/04/2019,3110541420,£610.85,Maria HIckman
http://statistics.data.gov.uk/id/local-authority/38,Oxfordshire County Council,Support at Home 65+ Physical Support,5689,,30/04/2019,3110546447,£610.86,AVR (Oxon) Ltd
http://statistics.data.gov.uk/id/local-authority/38,Oxfordshire County Council,Support at Home U65 Physical Support,5899,Social Care - Direct Payments,15/04/2019,3110539682,£612.00,Purple Conversation Com In Co (DP)
http://statistics.data.gov.uk/id/local-authority/38,Oxfordshire County Council,Support at Home U65 Physical Support,5899,Social Care - Direct Payments,15/04/2019,3110539790,£612.00,Purple Conversation Com In Co (DP)
http://statistics.data.gov.uk/id/local-authority/38,Oxfordshire County Council,Support at Home 65+ Physical Support,5689,,02/04/2019,3110532103,£612.14,PLL Care Services
http://statistics.data.gov.uk/id/local-authority/38,Oxfordshire County Council,Support at Home 65+ Physical Support,5696,,17/04/2019,3110541768,£612.56,Optalis
http://statistics.data.gov.uk/id/local-authority/38,Oxfordshire County Council,LAC PUPIL PREMIUM,5380,"Author, Speaker and Lecturer Fees",24/04/2019,2200629437,£612.94,Teaching Personnel Ltd
http://statistics.data.gov.uk/id/local-authority/38,Oxfordshire County Council,Support at Home 65+ Physical Support,5698,,24/04/2019,3110543740,£613.18,Charterville Care At Home Ltd
http://statistics.data.gov.uk/id/local-authority/38,Oxfordshire County Council,,1416,FSNBF,02/04/2019,3110530475,£613.70,THE FIRE FIGHTERS CHARITY
http://statistics.data.gov.uk/id/local-authority/38,Oxfordshire County Council,Support at Home 65+ Physical Support,5689,,30/04/2019,3110546290,£613.83,PLL Care Services
http://statistics.data.gov.uk/id/local-authority/38,Oxfordshire County Council,Support at Home 65+ Physical Support,5696,,18/04/2019,3110542483,£614.03,Orders of St John Care Trust
http://statistics.data.gov.uk/id/local-authority/38,Oxfordshire County Council,Support at Home 65+ Physical Support,5698,,24/04/2019,3110544184,£614.03,Oxford Private Care
http://statistics.data.gov.uk/id/local-authority/38,Oxfordshire County Council,Support at Home 65+ Mental Health,5689,,02/04/2019,3110532159,£614.19,Premier Personal Care
http://statistics.data.gov.uk/id/local-authority/38,Oxfordshire County Council,Support at Home 65+ Physical Support,5693,,03/04/2019,3110532685,£614.25,Harino Care
http://statistics.data.gov.uk/id/local-authority/38,Oxfordshire County Council,Support at Home 65+ Physical Support,5689,,30/04/2019,3110545201,£614.49,Amber Healthcare Personnel Ltd
http://statistics.data.gov.uk/id/local-authority/38,Oxfordshire County Council,Support at Home U65 Physical Support,5689,,30/04/2019,3110545987,£614.52,Greigcare Home Service
http://statistics.data.gov.uk/id/local-authority/38,Oxfordshire County Council,SEN TRANSPORT,5227,Other Transport Arrangements,22/04/2019,3110542641,£615.00,A2B Castle Cars Ltd
http://statistics.data.gov.uk/id/local-authority/38,Oxfordshire County Council,SEN TRANSPORT,5227,Other Transport Arrangements,17/04/2019,3110541879,£615.00,S S Taxis
http://statistics.data.gov.uk/id/local-authority/38,Oxfordshire County Council,Contingency Home Care,5689,,30/04/2019,3110546172,£615.36,Oxford University Hospitals NHS FT
http://statistics.data.gov.uk/id/local-authority/38,Oxfordshire County Council,GRASS CUTTING DIST.,5526,Payments to Private Contractors,24/04/2019,3110543493,£615.41,OCC One Time Vendor
http://statistics.data.gov.uk/id/local-authority/38,Oxfordshire County Council,Support at Home U65 Physical Support,5689,,30/04/2019,3110545978,£615.43,Greigcare Home Service
http://statistics.data.gov.uk/id/local-authority/38,Oxfordshire County Council,FAM GRP CONFERENCES,5668,Technical and Professional Consultant F,03/04/2019,2200624690,£615.54,Shellie Keen
http://statistics.data.gov.uk/id/local-authority/38,Oxfordshire County Council,GRASS CUTTING DIST.,5526,Payments to Private Contractors,30/04/2019,3110544931,£615.63,OCC One Time Vendor
http://statistics.data.gov.uk/id/local-authority/38,Oxfordshire County Council,Support at Home 65+ Physical Support,5689,,02/04/2019,3110531848,£615.66,MiHomecare Ltd
http://statistics.data.gov.uk/id/local-authority/38,Oxfordshire County Council,HARD FM,3787,Premises Repairs,30/04/2019,2200631843,£615.67,Barker & Evans Ltd
http://statistics.data.gov.uk/id/local-authority/38,Oxfordshire County Council,Support at Home U65 Physical Support,5899,Social Care - Direct Payments,15/04/2019,3110539478,£615.84,Purple Conversation Com In Co (DP)
http://statistics.data.gov.uk/id/local-authority/38,Oxfordshire County Council,FAM GRP CONFERENCES,5668,Technical and Professional Consultant F,08/04/2019,2200626279,£615.87,Shellie Keen
http://statistics.data.gov.uk/id/local-authority/38,Oxfordshire County Council,Early Years SEN Funding,5537,Payments to Other Establishments,25/04/2019,3110544383,£616.00,Early Days Nursery
http://statistics.data.gov.uk/id/local-authority/38,Oxfordshire County Council,Support at Home 65+ Physical Support,5899,Social Care - Direct Payments,15/04/2019,3110539141,£616.00,Purple Conversation Com In Co (DP)
http://statistics.data.gov.uk/id/local-authority/38,Oxfordshire County Council,Support at Home 65+ Physical Support,5899,Social Care - Direct Payments,15/04/2019,3110539421,£616.00,Purple Conversation Com In Co (DP)
http://statistics.data.gov.uk/id/local-authority/38,Oxfordshire County Council,Support at Home U65 Physical Support,5899,Social Care - Direct Payments,15/04/2019,3110539500,£616.00,Purple Conversation Com In Co (DP)
http://statistics.data.gov.uk/id/local-authority/38,Oxfordshire County Council,Support at Home U65 Physical Support,5899,Social Care - Direct Payments,15/04/2019,3110539690,£616.00,Purple Conversation Com In Co (DP)
http://statistics.data.gov.uk/id/local-authority/38,Oxfordshire County Council,Contingency Home Care,5689,,02/04/2019,3110532014,£616.03,Oxford University Hospitals NHS FT
http://statistics.data.gov.uk/id/local-authority/38,Oxfordshire County Council,Support at Home 65+ Physical Support,5689,,30/04/2019,3110545905,£616.66,DoCare Ltd
http://statistics.data.gov.uk/id/local-authority/38,Oxfordshire County Council,HARD FM,3787,Premises Repairs,01/04/2019,2200624218,£616.76,Marlowe Fire & Security Ltd
http://statistics.data.gov.uk/id/local-authority/38,Oxfordshire County Council,Support at Home U65 Learning Disability,5690,,11/04/2019,3110536208,£617.14,MacIntyre Care (Womaston)
http://statistics.data.gov.uk/id/local-authority/38,Oxfordshire County Council,Contingency Home Care,5689,,30/04/2019,3110545811,£617.24,Day and Nightcare Assistance
http://statistics.data.gov.uk/id/local-authority/38,Oxfordshire County Council,Support at Home 65+ Physical Support,5698,,24/04/2019,3110543644,£617.25,Bridges Home Care Ltd
http://statistics.data.gov.uk/id/local-authority/38,Oxfordshire County Council,Support at Home 65+ Physical Support,5689,,02/04/2019,3110531118,£618.23,Alina Homecare
http://statistics.data.gov.uk/id/local-authority/38,Oxfordshire County Council,Support at Home 65+ Physical Support,5696,,18/04/2019,3110542486,£618.45,Orders of St John Care Trust
http://statistics.data.gov.uk/id/local-authority/38,Oxfordshire County Council,Support at Home U65 Learning Disability,5698,,24/04/2019,3110543676,£619.16,Bridges Home Care Ltd
http://statistics.data.gov.uk/id/local-authority/38,Oxfordshire County Council,ECH Central Costs,5688,,11/04/2019,3110534044,£619.24,Orders of St John Care Trust
http://statistics.data.gov.uk/id/local-authority/38,Oxfordshire County Council,SEN TRANSPORT,5227,Other Transport Arrangements,16/04/2019,3110541645,£619.50,Thunderbird Transport Ltd
http://statistics.data.gov.uk/id/local-authority/38,Oxfordshire County Council,Support at Home 65+ Physical Support,5689,,30/04/2019,3110545963,£619.62,Greigcare Home Service
http://statistics.data.gov.uk/id/local-authority/38,Oxfordshire County Council,Support at Home 65+ Physical Support,5689,,30/04/2019,3110545361,£619.91,Caremark (West Oxfordshire & Cherwe
http://statistics.data.gov.uk/id/local-authority/38,Oxfordshire County Council,Support at Home U65 Other /Soc Isolation,5899,Social Care - Direct Payments,15/04/2019,3110539435,£620.00,Purple Conversation Com In Co (DP)
http://statistics.data.gov.uk/id/local-authority/38,Oxfordshire County Council,Support at Home U65 Learning Disability,5899,Social Care - Direct Payments,15/04/2019,3110539591,£620.00,Purple Conversation Com In Co (DP)
http://statistics.data.gov.uk/id/local-authority/38,Oxfordshire County Council,Support at Home U65 Physical Support,5899,Social Care - Direct Payments,15/04/2019,3110539037,£620.32,Purple Conversation Com In Co (DP)
http://statistics.data.gov.uk/id/local-authority/38,Oxfordshire County Council,Support at Home U65 Learning Disability,5697,,10/04/2019,3110533881,£620.49,Eastbourne and District Mencap
http://statistics.data.gov.uk/id/local-authority/38,Oxfordshire County Council,Support at Home 65+ Physical Support,5698,,24/04/2019,3110543797,£620.92,Charterville Care At Home Ltd
http://statistics.data.gov.uk/id/local-authority/38,Oxfordshire County Council,CONTRACEPTION,4934,,07/04/2019,3110533942,£621.55,Boots the Chemist
http://statistics.data.gov.uk/id/local-authority/38,Oxfordshire County Council,Support at Home 65+ Memory & Cognition,5698,,24/04/2019,3110543908,£621.77,Day & Night Care Assistance
http://statistics.data.gov.uk/id/local-authority/38,Oxfordshire County Council,HARD FM,3787,Premises Repairs,25/04/2019,2200630434,£622.00,Windrush Door & Window Services Ltd
http://statistics.data.gov.uk/id/local-authority/38,Oxfordshire County Council,FLETCHERS HOUSE SITE,4070,Cleaning services,08/04/2019,2200626320,£622.33,Parker Contract Cleaning
http://statistics.data.gov.uk/id/local-authority/38,Oxfordshire County Council,Support at Home 65+ Physical Support,5698,,24/04/2019,3110544097,£622.56,Oxford Private Care
http://statistics.data.gov.uk/id/local-authority/38,Oxfordshire County Council,Support at Home U65 Learning Disability,5899,Social Care - Direct Payments,15/04/2019,3110539174,£622.72,Purple Conversation Com In Co (DP)
http://statistics.data.gov.uk/id/local-authority/38,Oxfordshire County Council,LOOKED AFTER CITY 1,5365,Non-Staff Subsistence and Expenses,11/04/2019,9300038581,£622.75,OCC SS Oxford City Div 1 Cash
http://statistics.data.gov.uk/id/local-authority/38,Oxfordshire County Council,Support at Home U65 Physical Support,5696,,24/04/2019,3110543442,£622.87,Optalis
http://statistics.data.gov.uk/id/local-authority/38,Oxfordshire County Council,WALLINGFORD LIBRARY,3821,Grounds Maintenance Contracts,26/04/2019,2200630555,£623.00,M K Watts Ground Maintenance
http://statistics.data.gov.uk/id/local-authority/38,Oxfordshire County Council,Support at Home 65+ Physical Support,5698,,24/04/2019,3110543945,£623.08,Day & Night Care Assistance
http://statistics.data.gov.uk/id/local-authority/38,Oxfordshire County Council,,1448,Blackfield Inc & Exp A/c,17/04/2019,3110541848,£623.11,OCC One Time Vendor
http://statistics.data.gov.uk/id/local-authority/38,Oxfordshire County Council,Support at Home 65+ Physical Support,5689,,02/04/2019,3110532101,£623.73,PLL Care Services
http://statistics.data.gov.uk/id/local-authority/38,Oxfordshire County Council,Support at Home 65+ Physical Support,5899,Social Care - Direct Payments,15/04/2019,3110539796,£624.00,Purple Conversation Com In Co (DP)
http://statistics.data.gov.uk/id/local-authority/38,Oxfordshire County Council,Support at Home U65 Physical Support,5899,Social Care - Direct Payments,15/04/2019,3110539985,£624.00,Purple Conversation Com In Co (DP)
http://statistics.data.gov.uk/id/local-authority/38,Oxfordshire County Council,Support at Home U65 Physical Support,5899,Social Care - Direct Payments,09/04/2019,3110532967,£624.29,Purple Conversation Com In Co (DP)
http://statistics.data.gov.uk/id/local-authority/38,Oxfordshire County Council,Support at Home 65+ Physical Support,5689,,02/04/2019,3110531753,£624.42,Goldsmith Personnel Ltd
http://statistics.data.gov.uk/id/local-authority/38,Oxfordshire County Council,Support at Home 65+ Physical Support,5689,,02/04/2019,3110531181,£624.69,Amber Healthcare Personnel Ltd
http://statistics.data.gov.uk/id/local-authority/38,Oxfordshire County Council,SCHOOLS FM,3787,Premises Repairs,15/04/2019,2200627751,£624.85,Whitco Catering & Bakery Equipment
http://statistics.data.gov.uk/id/local-authority/38,Oxfordshire County Council,Support at Home 65+ Physical Support,5689,,02/04/2019,3110531224,£624.88,Care Outlook Ltd
http://statistics.data.gov.uk/id/local-authority/38,Oxfordshire County Council,FAM GRP CONFERENCES,5668,Technical and Professional Consultant F,11/04/2019,2200627223,£624.88,Jessica Howards
http://statistics.data.gov.uk/id/local-authority/38,Oxfordshire County Council,Support at Home 65+ Physical Support,5689,,02/04/2019,3110532238,£624.92,Risborough Carers Ltd
http://statistics.data.gov.uk/id/local-authority/38,Oxfordshire County Council,L&D CORE PROGRAMME,3100,Educational and Vocational Training,15/04/2019,2200627733,£625.00,BOURNEMOUTH UNIVERSITY
http://statistics.data.gov.uk/id/local-authority/38,Oxfordshire County Council,L&D CORE PROGRAMME,3100,Educational and Vocational Training,15/04/2019,2200627735,£625.00,BOURNEMOUTH UNIVERSITY
http://statistics.data.gov.uk/id/local-authority/38,Oxfordshire County Council,L&D CORE PROGRAMME,3100,Educational and Vocational Training,15/04/2019,2200627736,£625.00,BOURNEMOUTH UNIVERSITY
http://statistics.data.gov.uk/id/local-authority/38,Oxfordshire County Council,L&D CORE PROGRAMME,3100,Educational and Vocational Training,15/04/2019,2200627738,£625.00,BOURNEMOUTH UNIVERSITY
http://statistics.data.gov.uk/id/local-authority/38,Oxfordshire County Council,L&D CORE PROGRAMME,3100,Educational and Vocational Training,15/04/2019,2200627739,£625.00,BOURNEMOUTH UNIVERSITY
http://statistics.data.gov.uk/id/local-authority/38,Oxfordshire County Council,L&D CORE PROGRAMME,3100,Educational and Vocational Training,15/04/2019,2200627740,£625.00,BOURNEMOUTH UNIVERSITY
http://statistics.data.gov.uk/id/local-authority/38,Oxfordshire County Council,Support at Home 65+ Physical Support,5693,,17/04/2019,3110541748,£625.00,Heritage Healthcare Oxford - South
http://statistics.data.gov.uk/id/local-authority/38,Oxfordshire County Council,Oxfordshire Adoption Support Fund,4859,Medical and Counselling Fees,05/04/2019,2200626153,£625.00,PACT (PARENTS & CHILDREN TOGETHER)
http://statistics.data.gov.uk/id/local-authority/38,Oxfordshire County Council,Support at Home 65+ Physical Support,5698,,24/04/2019,3110543879,£625.25,Day & Night Care Assistance
http://statistics.data.gov.uk/id/local-authority/38,Oxfordshire County Council,Support at Home U65 Mental Health,5689,,02/04/2019,3110531525,£625.25,Oxfordshire Crossroads
http://statistics.data.gov.uk/id/local-authority/38,Oxfordshire County Council,Support at Home 65+ Physical Support,5689,,02/04/2019,3110531371,£625.33,Caremark (West Oxfordshire & Cherwe
http://statistics.data.gov.uk/id/local-authority/38,Oxfordshire County Council,Delegated Health Tasks  - Under 65,5689,,02/04/2019,3110531854,£625.96,Home Helpers Care Ltd
http://statistics.data.gov.uk/id/local-authority/38,Oxfordshire County Council,LIBRARY COLLECTIONS,4539,"Books, DVDs and CDs",23/04/2019,3110542832,£626.52,ASKEWS & HOLTS LIBRARY SERVICES LTD
http://statistics.data.gov.uk/id/local-authority/38,Oxfordshire County Council,Contingency Home Care,5689,,30/04/2019,3110546249,£626.70,Oxford University Hospitals NHS FT
http://statistics.data.gov.uk/id/local-authority/38,Oxfordshire County Council,Support at Home 65+ Physical Support,5696,,24/04/2019,3110543434,£627.29,Optalis
http://statistics.data.gov.uk/id/local-authority/38,Oxfordshire County Council,Support at Home 65+ Physical Support,5689,,02/04/2019,3110532172,£627.50,Premier Personal Care
http://statistics.data.gov.uk/id/local-authority/38,Oxfordshire County Council,Support at Home 65+ Physical Support,5689,,02/04/2019,3110531258,£627.59,Caremark (West Oxfordshire & Cherwe
http://statistics.data.gov.uk/id/local-authority/38,Oxfordshire County Council,Support at Home 65+ Physical Support,5689,,02/04/2019,3110532083,£627.66,PLL Care Services
http://statistics.data.gov.uk/id/local-authority/38,Oxfordshire County Council,Support at Home U65 Physical Support,5689,,02/04/2019,3110531391,£627.82,Caremark (West Oxfordshire & Cherwe
http://statistics.data.gov.uk/id/local-authority/38,Oxfordshire County Council,Support at Home U65 Mental Health,5899,Social Care - Direct Payments,15/04/2019,3110539219,£628.00,Purple Conversation Com In Co (DP)
http://statistics.data.gov.uk/id/local-authority/38,Oxfordshire County Council,SURPLUS PROPERTY,4000,Council Tax,26/04/2019,3500054543,£628.10,Oxford City Council
http://statistics.data.gov.uk/id/local-authority/38,Oxfordshire County Council,Support at Home 65+ Sensory Support,5698,,24/04/2019,3110543813,£628.29,Charterville Care At Home Ltd
http://statistics.data.gov.uk/id/local-authority/38,Oxfordshire County Council,CHC Fast Track - Sup at Homes - Over 65,5691,,17/04/2019,3110542074,£628.50,The Caring Company (Oxon)
http://statistics.data.gov.uk/id/local-authority/38,Oxfordshire County Council,Support at Home U65 Physical Support,5689,,02/04/2019,3110531093,£628.61,Alina Homecare
http://statistics.data.gov.uk/id/local-authority/38,Oxfordshire County Council,Support at Home 65+ Physical Support,5689,,30/04/2019,3110545929,£629.28,Elite Care Agency
http://statistics.data.gov.uk/id/local-authority/38,Oxfordshire County Council,Support at Home U65 Physical Support,5899,Social Care - Direct Payments,15/04/2019,3110539387,£629.56,Purple Conversation Com In Co (DP)
http://statistics.data.gov.uk/id/local-authority/38,Oxfordshire County Council,Support at Home 65+ Physical Support,5689,,02/04/2019,3110531154,£629.69,Amber Healthcare Personnel Ltd
http://statistics.data.gov.uk/id/local-authority/38,Oxfordshire County Council,SEN TRANSPORT,5227,Other Transport Arrangements,11/04/2019,3110538714,£630.00,1St Taxis
http://statistics.data.gov.uk/id/local-authority/38,Oxfordshire County Council,SEN TRANSPORT,5227,Other Transport Arrangements,22/04/2019,3110542655,£630.00,A2B Castle Cars Ltd
http://statistics.data.gov.uk/id/local-authority/38,Oxfordshire County Council,SEN TRANSPORT,5227,Other Transport Arrangements,16/04/2019,3110541674,£630.00,ABC Travel(Wokingham) limited t/a A
http://statistics.data.gov.uk/id/local-authority/38,Oxfordshire County Council,SEN TRANSPORT,5227,Other Transport Arrangements,11/04/2019,3110536290,£630.00,Airport Transfers Banbury Ltd
http://statistics.data.gov.uk/id/local-authority/38,Oxfordshire County Council,SEN TRANSPORT,5227,Other Transport Arrangements,11/04/2019,3110536296,£630.00,Airport Transfers Banbury Ltd
http://statistics.data.gov.uk/id/local-authority/38,Oxfordshire County Council,SEN TRANSPORT,4330,Transport to School Activities,09/04/2019,3110533044,£630.00,C&M Management Services Ltd
http://statistics.data.gov.uk/id/local-authority/38,Oxfordshire County Council,POST 16 SEN,5227,Other Transport Arrangements,22/04/2019,3110542580,£630.00,Crown Cabs Travel Ltd
http://statistics.data.gov.uk/id/local-authority/38,Oxfordshire County Council,SEN TRANSPORT,5227,Other Transport Arrangements,11/04/2019,3110538736,£630.00,Luxicars Ltd
http://statistics.data.gov.uk/id/local-authority/38,Oxfordshire County Council,SEN TRANSPORT,5227,Other Transport Arrangements,11/04/2019,3110538755,£630.00,Luxicars Ltd
http://statistics.data.gov.uk/id/local-authority/38,Oxfordshire County Council,SEN TRANSPORT,5227,Other Transport Arrangements,11/04/2019,3110538757,£630.00,Luxicars Ltd
http://statistics.data.gov.uk/id/local-authority/38,Oxfordshire County Council,SEN TRANSPORT,5227,Other Transport Arrangements,11/04/2019,3110538761,£630.00,Luxicars Ltd
http://statistics.data.gov.uk/id/local-authority/38,Oxfordshire County Council,HARD FM,4122,Other premises related costs,18/04/2019,3110542385,£630.00,OCC One Time Vendor
http://statistics.data.gov.uk/id/local-authority/38,Oxfordshire County Council,Care Packages & Placements- PD - OCC,5227,Other Transport Arrangements,30/04/2019,3110546466,£630.00,Oxon Transport Services Ltd
http://statistics.data.gov.uk/id/local-authority/38,Oxfordshire County Council,Support at Home U65 Physical Support,5899,Social Care - Direct Payments,15/04/2019,3110539953,£630.00,Purple Conversation Com In Co (DP)
http://statistics.data.gov.uk/id/local-authority/38,Oxfordshire County Council,SEN TRANSPORT,5227,Other Transport Arrangements,11/04/2019,3110535010,£630.00,The Oxfordshire Taxi Company Ltd T/
http://statistics.data.gov.uk/id/local-authority/38,Oxfordshire County Council,Wokingham Adoption Support Fund,4859,Medical and Counselling Fees,02/04/2019,2200623945,£630.00,The Paperclip Group
http://statistics.data.gov.uk/id/local-authority/38,Oxfordshire County Council,SEN TRANSPORT,5227,Other Transport Arrangements,16/04/2019,3110541641,£630.00,Thunderbird Transport Ltd
http://statistics.data.gov.uk/id/local-authority/38,Oxfordshire County Council,Support at Home 65+ Physical Support,5693,,17/04/2019,3110541803,£630.00,Wellbeing Teams Group LTD
http://statistics.data.gov.uk/id/local-authority/38,Oxfordshire County Council,Support at Home 65+ Physical Support,5689,,30/04/2019,3110545147,£630.05,Alina Homecare
http://statistics.data.gov.uk/id/local-authority/38,Oxfordshire County Council,PREMISES,4122,Other premises related costs,04/04/2019,2200625104,£630.24,City Audio Visual Ltd
http://statistics.data.gov.uk/id/local-authority/38,Oxfordshire County Council,Delegated Health Tasks  - Over 65,5698,,24/04/2019,3110544125,£630.34,Oxford Private Care
http://statistics.data.gov.uk/id/local-authority/38,Oxfordshire County Council,Support at Home 65+ Physical Support,5689,,30/04/2019,3110546437,£630.37,Risborough Carers Ltd
http://statistics.data.gov.uk/id/local-authority/38,Oxfordshire County Council,Support at Home U65 Memory & Cognition,5899,Social Care - Direct Payments,15/04/2019,3110539665,£630.40,Purple Conversation Com In Co (DP)
http://statistics.data.gov.uk/id/local-authority/38,Oxfordshire County Council,Support at Home 65+ Physical Support,5689,,02/04/2019,3110531494,£630.89,Oxfordshire Crossroads
http://statistics.data.gov.uk/id/local-authority/38,Oxfordshire County Council,Support at Home U65 MH OBC Contract,5689,,02/04/2019,3110532223,£632.14,Response Organisation
http://statistics.data.gov.uk/id/local-authority/38,Oxfordshire County Council,Support at Home 65+ Physical Support,5689,,30/04/2019,3110545912,£632.15,DoCare Ltd
http://statistics.data.gov.uk/id/local-authority/38,Oxfordshire County Council,Support at Home U65 MH OBC Contract,5689,,30/04/2019,3110546421,£632.15,Response Organisation
http://statistics.data.gov.uk/id/local-authority/38,Oxfordshire County Council,Support at Home 65+ Physical Support,5685,B*Cycle tracks,11/04/2019,3110538008,£632.64,Barchester Healthcare Homes Ltd
http://statistics.data.gov.uk/id/local-authority/38,Oxfordshire County Council,Support at Home 65+ Physical Support,5685,B*Cycle tracks,11/04/2019,3110538019,£632.64,Barchester Healthcare Homes Ltd
http://statistics.data.gov.uk/id/local-authority/38,Oxfordshire County Council,Care Packages & Placements- LD - OCC,5227,Other Transport Arrangements,09/04/2019,3110532987,£632.64,Evenlode Taxis
http://statistics.data.gov.uk/id/local-authority/38,Oxfordshire County Council,Support at Home U65 Physical Support,5685,B*Cycle tracks,11/04/2019,3110535069,£632.64,Fewcott Healthcare Ltd
http://statistics.data.gov.uk/id/local-authority/38,Oxfordshire County Council,Support at Home 65+ Physical Support,5689,,02/04/2019,3110531762,£632.67,Goldsmith Personnel Ltd
http://statistics.data.gov.uk/id/local-authority/38,Oxfordshire County Council,Support at Home U65 Physical Support,5698,,24/04/2019,3110544169,£632.73,Oxford Private Care
http://statistics.data.gov.uk/id/local-authority/38,Oxfordshire County Council,Delegated Health Tasks  - Over 65,5689,,02/04/2019,3110531891,£633.42,Lifecarers Limited
http://statistics.data.gov.uk/id/local-authority/38,Oxfordshire County Council,Support at Home 65+ Physical Support,5698,,24/04/2019,3110543724,£634.26,Charterville Care At Home Ltd
http://statistics.data.gov.uk/id/local-authority/38,Oxfordshire County Council,Support at Home 65+ Physical Support,5698,,24/04/2019,3110544080,£634.43,Oxford Private Care
http://statistics.data.gov.uk/id/local-authority/38,Oxfordshire County Council,Support at Home 65+ Physical Support,5698,,24/04/2019,3110543641,£634.84,Bridges Home Care Ltd
http://statistics.data.gov.uk/id/local-authority/38,Oxfordshire County Council,SEN TRANSPORT,4330,Transport to School Activities,09/04/2019,3110533007,£635.00,C&M Management Services Ltd
http://statistics.data.gov.uk/id/local-authority/38,Oxfordshire County Council,Delegated Health Tasks  - Under 65,5689,,30/04/2019,3110546034,£635.36,Home Helpers Care Ltd
http://statistics.data.gov.uk/id/local-authority/38,Oxfordshire County Council,Support at Home 65+ Physical Support,5689,,30/04/2019,3110546449,£635.96,AVR (Oxon) Ltd
http://statistics.data.gov.uk/id/local-authority/38,Oxfordshire County Council,Support at Home 65+ Physical Support,5689,,30/04/2019,3110545555,£635.99,Caremark (West Oxfordshire & Cherwe
http://statistics.data.gov.uk/id/local-authority/38,Oxfordshire County Council,CHC Fast Track - Sup at Homes - Over 65,5691,,25/04/2019,3110544445,£636.00,EveryCare (Oxford)
http://statistics.data.gov.uk/id/local-authority/38,Oxfordshire County Council,ContrO ASC Payments Control Account,5689,,24/04/2019,3110544186,£636.00,Oxfordshire Crossroads
http://statistics.data.gov.uk/id/local-authority/38,Oxfordshire County Council,Support at Home 65+ Physical Support,5689,,02/04/2019,3110531157,£636.28,Amber Healthcare Personnel Ltd
http://statistics.data.gov.uk/id/local-authority/38,Oxfordshire County Council,,1448,Blackfield Inc & Exp A/c,17/04/2019,3110541847,£636.79,OCC One Time Vendor
http://statistics.data.gov.uk/id/local-authority/38,Oxfordshire County Council,Support at Home 65+ Physical Support,5698,,24/04/2019,3110544100,£636.95,Oxford Private Care
http://statistics.data.gov.uk/id/local-authority/38,Oxfordshire County Council,Support at Home 65+ Physical Support,5693,,03/04/2019,3110532695,£637.00,Harino Care
http://statistics.data.gov.uk/id/local-authority/38,Oxfordshire County Council,Support at Home 65+ Physical Support,5693,,03/04/2019,3110532697,£637.00,Harino Care
http://statistics.data.gov.uk/id/local-authority/38,Oxfordshire County Council,Support at Home U65 Physical Support,5693,,17/04/2019,3110541741,£637.00,Harino Care
http://statistics.data.gov.uk/id/local-authority/38,Oxfordshire County Council,Support at Home 65+ Physical Support,5689,,02/04/2019,3110531755,£637.16,Goldsmith Personnel Ltd
http://statistics.data.gov.uk/id/local-authority/38,Oxfordshire County Council,Support at Home 65+ Physical Support,5899,Social Care - Direct Payments,15/04/2019,3110539412,£637.16,Purple Conversation Com In Co (DP)
http://statistics.data.gov.uk/id/local-authority/38,Oxfordshire County Council,HARD FM,3787,Premises Repairs,18/04/2019,2200628466,£637.50,Life Environmental Services Ltd
http://statistics.data.gov.uk/id/local-authority/38,Oxfordshire County Council,FAM GRP CONFERENCES,5668,Technical and Professional Consultant F,01/04/2019,2200623414,£637.75,Andrew Broome
http://statistics.data.gov.uk/id/local-authority/38,Oxfordshire County Council,SEN TRANSPORT,4330,Transport to School Activities,09/04/2019,3110532994,£638.00,C&M Management Services Ltd
http://statistics.data.gov.uk/id/local-authority/38,Oxfordshire County Council,Support at Home 65+ Physical Support,5689,,30/04/2019,3110545609,£638.07,Caretree Ltd
http://statistics.data.gov.uk/id/local-authority/38,Oxfordshire County Council,Support at Home 65+ Physical Support,5698,,24/04/2019,3110543934,£638.26,Day & Night Care Assistance
http://statistics.data.gov.uk/id/local-authority/38,Oxfordshire County Council,Support at Home 65+ Physical Support,5698,,24/04/2019,3110543854,£638.70,Day & Night Care Assistance
http://statistics.data.gov.uk/id/local-authority/38,Oxfordshire County Council,Contingency Home Care,5689,,30/04/2019,3110546202,£638.70,Oxford University Hospitals NHS FT
http://statistics.data.gov.uk/id/local-authority/38,Oxfordshire County Council,Support at Home 65+ Physical Support,5689,,30/04/2019,3110545935,£639.24,Goldsmith Personnel Ltd
http://statistics.data.gov.uk/id/local-authority/38,Oxfordshire County Council,Support at Home 65+ Physical Support,5689,,30/04/2019,3110545945,£639.52,Goldsmith Personnel Ltd
http://statistics.data.gov.uk/id/local-authority/38,Oxfordshire County Council,NURSERY ED FUND,5537,Payments to Other Establishments,10/04/2019,3110541394,£639.94,Karen Lella
http://statistics.data.gov.uk/id/local-authority/38,Oxfordshire County Council,Support at Home 65+ Physical Support,5899,Social Care - Direct Payments,15/04/2019,3110540104,£640.00,Allen Corderoy
http://statistics.data.gov.uk/id/local-authority/38,Oxfordshire County Council,Support at Home U65 Physical Support,5899,Social Care - Direct Payments,15/04/2019,3110539059,£640.00,Purple Conversation Com In Co (DP)
http://statistics.data.gov.uk/id/local-authority/38,Oxfordshire County Council,Support at Home U65 Learning Disability,5899,Social Care - Direct Payments,15/04/2019,3110539475,£640.00,Purple Conversation Com In Co (DP)
http://statistics.data.gov.uk/id/local-authority/38,Oxfordshire County Council,Support at Home U65 Mental Health,5899,Social Care - Direct Payments,15/04/2019,3110539549,£640.00,Purple Conversation Com In Co (DP)
http://statistics.data.gov.uk/id/local-authority/38,Oxfordshire County Council,Support at Home U65 Learning Disability,5899,Social Care - Direct Payments,15/04/2019,3110539771,£640.00,Purple Conversation Com In Co (DP)
http://statistics.data.gov.uk/id/local-authority/38,Oxfordshire County Council,Support at Home U65 Learning Disability,5899,Social Care - Direct Payments,15/04/2019,3110539949,£640.00,Purple Conversation Com In Co (DP)
http://statistics.data.gov.uk/id/local-authority/38,Oxfordshire County Council,Support at Home 65+ Mental Health,5899,Social Care - Direct Payments,15/04/2019,3110539974,£640.00,Purple Conversation Com In Co (DP)
http://statistics.data.gov.uk/id/local-authority/38,Oxfordshire County Council,SM DISABILITIES,5899,Social Care - Direct Payments,26/04/2019,3110544605,£640.00,Purple Conversation Com In Co (DP)
http://statistics.data.gov.uk/id/local-authority/38,Oxfordshire County Council,RBWM Adoption Support Fund,4859,Medical and Counselling Fees,02/04/2019,2200623921,£640.00,Topaz Therapeutic Life Story
http://statistics.data.gov.uk/id/local-authority/38,Oxfordshire County Council,SEN Miscellaneous Expenditure,4861,Hired and Contracted Services,09/04/2019,2200626753,£640.00,TRAX Motor Project
http://statistics.data.gov.uk/id/local-authority/38,Oxfordshire County Council,SEN Miscellaneous Expenditure,4861,Hired and Contracted Services,09/04/2019,2200626756,£640.00,TRAX Motor Project
http://statistics.data.gov.uk/id/local-authority/38,Oxfordshire County Council,Support at Home 65+ Physical Support,5689,,30/04/2019,3110546320,£640.31,PLL Care Services
http://statistics.data.gov.uk/id/local-authority/38,Oxfordshire County Council,Support at Home 65+ Mental Health,5696,,03/04/2019,3110532746,£640.46,Orders of St John Care Trust
http://statistics.data.gov.uk/id/local-authority/38,Oxfordshire County Council,LIBRARY COLLECTIONS,4539,"Books, DVDs and CDs",15/04/2019,3110538971,£640.53,ASKEWS & HOLTS LIBRARY SERVICES LTD
http://statistics.data.gov.uk/id/local-authority/38,Oxfordshire County Council,Delegated Health Tasks  - Over 65,5689,,30/04/2019,3110546073,£640.97,Lifecarers Limited
http://statistics.data.gov.uk/id/local-authority/38,Oxfordshire County Council,Support at Home U65 Physical Support,5689,,02/04/2019,3110531858,£641.08,Home Helpers Care Ltd
http://statistics.data.gov.uk/id/local-authority/38,Oxfordshire County Council,Support at Home U65 Physical Support,5689,,02/04/2019,3110531903,£641.49,Lifecarers Limited
http://statistics.data.gov.uk/id/local-authority/38,Oxfordshire County Council,Support at Home 65+ Physical Support,5689,,02/04/2019,3110531850,£641.49,MiHomecare Ltd
http://statistics.data.gov.uk/id/local-authority/38,Oxfordshire County Council,FAM GRP CONFERENCES,5668,Technical and Professional Consultant F,01/04/2019,2200623417,£642.45,Culbone Limited
http://statistics.data.gov.uk/id/local-authority/38,Oxfordshire County Council,Support at Home U65 Learning Disability,5697,,17/04/2019,3110541759,£643.62,Life Path Trust Ltd
http://statistics.data.gov.uk/id/local-authority/38,Oxfordshire County Council,Support at Home U65 Physical Support,5899,Social Care - Direct Payments,15/04/2019,3110539659,£644.00,Purple Conversation Com In Co (DP)
http://statistics.data.gov.uk/id/local-authority/38,Oxfordshire County Council,Support at Home U65 Mental Health,5899,Social Care - Direct Payments,15/04/2019,3110539818,£644.00,Purple Conversation Com In Co (DP)
http://statistics.data.gov.uk/id/local-authority/38,Oxfordshire County Council,CHC Fast Track - Sup at Homes - Over 65,5691,,25/04/2019,3110544502,£644.00,Sue Ryder
http://statistics.data.gov.uk/id/local-authority/38,Oxfordshire County Council,Support at Home 65+ Physical Support,5689,,02/04/2019,3110531315,£644.47,Caremark (West Oxfordshire & Cherwe
http://statistics.data.gov.uk/id/local-authority/38,Oxfordshire County Council,Support at Home 65+ Physical Support,5689,,02/04/2019,3110531837,£644.55,MiHomecare Ltd
http://statistics.data.gov.uk/id/local-authority/38,Oxfordshire County Council,LIBRARY COLLECTIONS,4539,"Books, DVDs and CDs",12/04/2019,2200627445,£644.60,MAGNA LARGE PRINT BOOKS
http://statistics.data.gov.uk/id/local-authority/38,Oxfordshire County Council,LIBRARY COLLECTIONS,4539,"Books, DVDs and CDs",15/04/2019,2200627687,£644.60,MAGNA LARGE PRINT BOOKS
http://statistics.data.gov.uk/id/local-authority/38,Oxfordshire County Council,Support at Home 65+ Physical Support,5698,,24/04/2019,3110543783,£644.61,Charterville Care At Home Ltd
http://statistics.data.gov.uk/id/local-authority/38,Oxfordshire County Council,CORPORATE LANDLORD,4001,Uniform Business Rates,01/04/2019,3500053604,£644.76,South Oxfordshire District Council
http://statistics.data.gov.uk/id/local-authority/38,Oxfordshire County Council,Support at Home 65+ Physical Support,5698,,24/04/2019,3110544181,£645.02,Oxford Private Care
http://statistics.data.gov.uk/id/local-authority/38,Oxfordshire County Council,Support at Home U65 Learning Disability,5697,,17/04/2019,3110541751,£645.12,H F TRUST LTD
http://statistics.data.gov.uk/id/local-authority/38,Oxfordshire County Council,SEN TRANSPORT,5227,Other Transport Arrangements,11/04/2019,3110534924,£645.12,The Oxfordshire Taxi Company Ltd T/
http://statistics.data.gov.uk/id/local-authority/38,Oxfordshire County Council,MAINSTREAM-SECONDARY,4330,Transport to School Activities,16/04/2019,3110541620,£646.00,Angelas Travel
http://statistics.data.gov.uk/id/local-authority/38,Oxfordshire County Council,MAINSTREAM-PRIMARY,4330,Transport to School Activities,29/04/2019,3110544833,£646.00,Carriage Company
http://statistics.data.gov.uk/id/local-authority/38,Oxfordshire County Council,CORPORATE LANDLORD,4001,Uniform Business Rates,26/04/2019,3500054615,£646.00,South Oxfordshire District Council
http://statistics.data.gov.uk/id/local-authority/38,Oxfordshire County Council,Support at Home U65 Learning Disability,5899,Social Care - Direct Payments,15/04/2019,3110539126,£646.12,Purple Conversation Com In Co (DP)
http://statistics.data.gov.uk/id/local-authority/38,Oxfordshire County Council,Support at Home U65 Physical Support,5689,,30/04/2019,3110545099,£646.21,Alina Homecare
http://statistics.data.gov.uk/id/local-authority/38,Oxfordshire County Council,SEN TRANSPORT,5227,Other Transport Arrangements,22/04/2019,3110542589,£646.38,Woodstock Travel
http://statistics.data.gov.uk/id/local-authority/38,Oxfordshire County Council,Support at Home 65+ Physical Support,5899,Social Care - Direct Payments,15/04/2019,3110539115,£646.48,Purple Conversation Com In Co (DP)
http://statistics.data.gov.uk/id/local-authority/38,Oxfordshire County Council,CONTRACT MANAGEMENT,4001,Uniform Business Rates,01/04/2019,3500053443,£646.75,Cherwell District Council
http://statistics.data.gov.uk/id/local-authority/38,Oxfordshire County Council,CORPORATE LANDLORD,4001,Uniform Business Rates,01/04/2019,3500053633,£646.75,Vale of White Horse District Counci
http://statistics.data.gov.uk/id/local-authority/38,Oxfordshire County Council,Support at Home 65+ Physical Support,5689,,30/04/2019,3110545951,£646.94,Greigcare Home Service
http://statistics.data.gov.uk/id/local-authority/38,Oxfordshire County Council,Support at Home 65+ Physical Support,5698,,24/04/2019,3110543812,£647.09,Charterville Care At Home Ltd
http://statistics.data.gov.uk/id/local-authority/38,Oxfordshire County Council,Support at Home U65 Other /Soc Isolation,5899,Social Care - Direct Payments,23/04/2019,3110542737,£647.15,Purple Conversation Com In Co (DP)
http://statistics.data.gov.uk/id/local-authority/38,Oxfordshire County Council,Support at Home U65 Physical Support,5689,,30/04/2019,3110545569,£647.57,Caremark (West Oxfordshire & Cherwe
http://statistics.data.gov.uk/id/local-authority/38,Oxfordshire County Council,Support at Home U65 Physical Support,5689,,02/04/2019,3110531851,£647.61,MiHomecare Ltd
http://statistics.data.gov.uk/id/local-authority/38,Oxfordshire County Council,Community Support Service Wantage,2040,Agency Staff,01/04/2019,2200623538,£647.64,Completely Care Ltd
http://statistics.data.gov.uk/id/local-authority/38,Oxfordshire County Council,Support at Home 65+ Physical Support,5689,,30/04/2019,3110545350,£647.68,Caremark (West Oxfordshire & Cherwe
http://statistics.data.gov.uk/id/local-authority/38,Oxfordshire County Council,Support at Home 65+ Physical Support,5696,,18/04/2019,3110542513,£647.77,Orders of St John Care Trust
http://statistics.data.gov.uk/id/local-authority/38,Oxfordshire County Council,Support at Home U65 Other /Soc Isolation,5899,Social Care - Direct Payments,15/04/2019,3110539156,£648.00,Purple Conversation Com In Co (DP)
http://statistics.data.gov.uk/id/local-authority/38,Oxfordshire County Council,Support at Home 65+ Physical Support,5698,,24/04/2019,3110543746,£648.07,Charterville Care At Home Ltd
http://statistics.data.gov.uk/id/local-authority/38,Oxfordshire County Council,POST18 UASC DCSF FND,4685,Clothing and Uniforms,03/04/2019,9300038486,£648.70,OCC SS Oxford City Div 1 Cash
http://statistics.data.gov.uk/id/local-authority/38,Oxfordshire County Council,Support at Home U65 Learning Disability,5682,,29/04/2019,3110544884,£648.78,The Brandon Trust
http://statistics.data.gov.uk/id/local-authority/38,Oxfordshire County Council,Support at Home 65+ Learning Disability,5690,,11/04/2019,3110536184,£649.03,Life Path Trust Ltd
http://statistics.data.gov.uk/id/local-authority/38,Oxfordshire County Council,Support at Home U65 Learning Disability,5690,,11/04/2019,3110536193,£649.03,Life Path Trust Ltd
http://statistics.data.gov.uk/id/local-authority/38,Oxfordshire County Council,Support at Home 65+ Physical Support,5689,,30/04/2019,3110545187,£649.30,Amber Healthcare Personnel Ltd
http://statistics.data.gov.uk/id/local-authority/38,Oxfordshire County Council,Support at Home 65+ Physical Support,5689,,30/04/2019,3110545205,£649.67,Amber Healthcare Personnel Ltd
http://statistics.data.gov.uk/id/local-authority/38,Oxfordshire County Council,Support at Home 65+ Mental Health,5686,,11/04/2019,3110536891,£650.00,Cherwood House Care Centre
http://statistics.data.gov.uk/id/local-authority/38,Oxfordshire County Council,OSCB,4835,Management Consultant Fees,01/04/2019,2200623337,£650.00,JWSC
http://statistics.data.gov.uk/id/local-authority/38,Oxfordshire County Council,EARLY YEARS SALARIES,3942,Hire of Accommodation and Facilities,30/04/2019,2200631882,£650.00,NYS CORPORATE LTD
http://statistics.data.gov.uk/id/local-authority/38,Oxfordshire County Council,,1448,Blackfield Inc & Exp A/c,17/04/2019,3110541838,£650.00,OCC One Time Vendor
http://statistics.data.gov.uk/id/local-authority/38,Oxfordshire County Council,Support at Home 65+ Physical Support,5689,,30/04/2019,3110545937,£650.19,Goldsmith Personnel Ltd
http://statistics.data.gov.uk/id/local-authority/38,Oxfordshire County Council,Support at Home 65+ Physical Support,5696,,18/04/2019,3110542398,£650.60,Orders of St John Care Trust
http://statistics.data.gov.uk/id/local-authority/38,Oxfordshire County Council,Contingency Home Care,5689,,02/04/2019,3110531623,£650.74,Day and Nightcare Assistance
http://statistics.data.gov.uk/id/local-authority/38,Oxfordshire County Council,CONTRACT MANAGEMENT,4001,Uniform Business Rates,26/04/2019,3500054480,£651.00,Cherwell District Council
http://statistics.data.gov.uk/id/local-authority/38,Oxfordshire County Council,CORPORATE LANDLORD,4001,Uniform Business Rates,26/04/2019,3500054626,£651.00,Vale of White Horse District Counci
http://statistics.data.gov.uk/id/local-authority/38,Oxfordshire County Council,Support at Home U65 Physical Support,5696,,18/04/2019,3110542459,£652.19,Orders of St John Care Trust
http://statistics.data.gov.uk/id/local-authority/38,Oxfordshire County Council,Support at Home U65 Learning Disability,5682,,29/04/2019,3110544783,£653.21,The Brandon Trust
http://statistics.data.gov.uk/id/local-authority/38,Oxfordshire County Council,Support at Home 65+ Mental Health,5689,,02/04/2019,3110532184,£653.70,Response Organisation
http://statistics.data.gov.uk/id/local-authority/38,Oxfordshire County Council,CSB - COUNTY,5691,,24/04/2019,2200629714,£653.76,Acquire Care Ltd
http://statistics.data.gov.uk/id/local-authority/38,Oxfordshire County Council,Support at Home 65+ Sensory Support,5689,,02/04/2019,3110531792,£655.06,Greigcare Home Service
http://statistics.data.gov.uk/id/local-authority/38,Oxfordshire County Council,Support at Home 65+ Physical Support,5689,,30/04/2019,3110546097,£655.22,My Carer Ltd
http://statistics.data.gov.uk/id/local-authority/38,Oxfordshire County Council,Care Homes - Over 65 Physical Sypport,5685,B*Cycle tracks,11/04/2019,3110534895,£655.23,Banbury Heights Nursing Home
http://statistics.data.gov.uk/id/local-authority/38,Oxfordshire County Council,Delegated Health Tasks  - Under 65,5691,,17/04/2019,3110542049,£655.50,Enable Health Ltd
http://statistics.data.gov.uk/id/local-authority/38,Oxfordshire County Council,Support at Home 65+ Physical Support,5689,,30/04/2019,3110545722,£655.70,Oxfordshire Crossroads
http://statistics.data.gov.uk/id/local-authority/38,Oxfordshire County Council,SEN TRANSPORT,5227,Other Transport Arrangements,22/04/2019,3110542600,£656.00,Abingdon Taxis FKN Autotaxis
http://statistics.data.gov.uk/id/local-authority/38,Oxfordshire County Council,Support at Home 65+ Physical Support,5899,Social Care - Direct Payments,15/04/2019,3110539401,£656.00,Purple Conversation Com In Co (DP)
http://statistics.data.gov.uk/id/local-authority/38,Oxfordshire County Council,CORPORATE LANDLORD,4002,BID Levies,08/04/2019,3500053889,£656.25,Cherwell District Council
http://statistics.data.gov.uk/id/local-authority/38,Oxfordshire County Council,Home Improvement Agency,4861,Hired and Contracted Services,04/04/2019,2200624931,£656.29,Mears Home Improvement Ltd
http://statistics.data.gov.uk/id/local-authority/38,Oxfordshire County Council,Support at Home 65+ Physical Support,5689,,02/04/2019,3110531107,£656.77,Alina Homecare
http://statistics.data.gov.uk/id/local-authority/38,Oxfordshire County Council,Support at Home 65+ Physical Support,5689,,02/04/2019,3110531916,£656.78,My Carer Ltd
http://statistics.data.gov.uk/id/local-authority/38,Oxfordshire County Council,Support at Home 65+ Physical Support,5689,,02/04/2019,3110531100,£656.98,Alina Homecare
http://statistics.data.gov.uk/id/local-authority/38,Oxfordshire County Council,Support at Home U65 Learning Disability,5690,,11/04/2019,3110536186,£657.00,Life Path Trust Ltd
http://statistics.data.gov.uk/id/local-authority/38,Oxfordshire County Council,Urgent Response,5689,,30/04/2019,3110545865,£657.56,Day and Nightcare Assistance
http://statistics.data.gov.uk/id/local-authority/38,Oxfordshire County Council,Support at Home U65 Learning Disability,5689,,02/04/2019,3110531057,£657.71,1 to 1 Care
http://statistics.data.gov.uk/id/local-authority/38,Oxfordshire County Council,Support at Home U65 Learning Disability,5690,,11/04/2019,3110536146,£657.86,H F TRUST LTD
http://statistics.data.gov.uk/id/local-authority/38,Oxfordshire County Council,Support at Home U65 Learning Disability,5899,Social Care - Direct Payments,15/04/2019,3110539786,£658.00,Purple Conversation Com In Co (DP)
http://statistics.data.gov.uk/id/local-authority/38,Oxfordshire County Council,Support at Home 65+ Sensory Support,5899,Social Care - Direct Payments,15/04/2019,3110539846,£658.00,Purple Conversation Com In Co (DP)
http://statistics.data.gov.uk/id/local-authority/38,Oxfordshire County Council,Contingency Home Care,5689,,02/04/2019,3110531969,£658.03,OXFORD HEALTH NHS FOUNDATION TRUST
http://statistics.data.gov.uk/id/local-authority/38,Oxfordshire County Council,Contingency Home Care,5689,,02/04/2019,3110532030,£658.03,Oxford University Hospitals NHS FT
http://statistics.data.gov.uk/id/local-authority/38,Oxfordshire County Council,Support at Home 65+ Physical Support,5689,,02/04/2019,3110531769,£658.13,Greigcare Home Service
http://statistics.data.gov.uk/id/local-authority/38,Oxfordshire County Council,UTILITIES,3951,Non System - Electricity,26/04/2019,2200630925,£658.22,The Oxford Academy
http://statistics.data.gov.uk/id/local-authority/38,Oxfordshire County Council,LIBRARY COLLECTIONS,4539,"Books, DVDs and CDs",15/04/2019,3110538977,£658.65,ASKEWS & HOLTS LIBRARY SERVICES LTD
http://statistics.data.gov.uk/id/local-authority/38,Oxfordshire County Council,Support at Home 65+ Physical Support,5698,,24/04/2019,3110543691,£659.19,Charterville Care At Home Ltd
http://statistics.data.gov.uk/id/local-authority/38,Oxfordshire County Council,RECRUITMENT+MEDICALS,4859,Medical and Counselling Fees,01/04/2019,2200623397,£659.75,People Asset Management
http://statistics.data.gov.uk/id/local-authority/38,Oxfordshire County Council,RECRUITMENT+MEDICALS,4859,Medical and Counselling Fees,26/04/2019,2200630940,£659.75,People Asset Management
http://statistics.data.gov.uk/id/local-authority/38,Oxfordshire County Council,Support at Home 65+ Physical Support,5689,,30/04/2019,3110545699,£659.83,Casa Care Ltd
http://statistics.data.gov.uk/id/local-authority/38,Oxfordshire County Council,SEN TRANSPORT,4330,Transport to School Activities,09/04/2019,3110533785,£660.00,Ash Cars (UK) Ltd
http://statistics.data.gov.uk/id/local-authority/38,Oxfordshire County Council,TRANSPORT COSTS,4330,Transport to School Activities,09/04/2019,3110533145,£660.00,Black and White Cars T/A Banbury Ta
http://statistics.data.gov.uk/id/local-authority/38,Oxfordshire County Council,LAC PUPIL PREMIUM,5537,Payments to Other Establishments,24/04/2019,3110543387,£660.00,Elmwood and Penrose Federation
http://statistics.data.gov.uk/id/local-authority/38,Oxfordshire County Council,Support at Home 65+ Physical Support,4861,Hired and Contracted Services,10/04/2019,2200626891,£660.00,Orders of St John
http://statistics.data.gov.uk/id/local-authority/38,Oxfordshire County Council,Central FSS Statutory - Blackbird Leys,5227,Other Transport Arrangements,30/04/2019,3110546515,£660.00,Oxon Transport Services Ltd
http://statistics.data.gov.uk/id/local-authority/38,Oxfordshire County Council,Support at Home U65 Learning Disability,5899,Social Care - Direct Payments,15/04/2019,3110539497,£660.00,Purple Conversation Com In Co (DP)
http://statistics.data.gov.uk/id/local-authority/38,Oxfordshire County Council,Support at Home U65 Learning Disability,5899,Social Care - Direct Payments,15/04/2019,3110539640,£660.00,Purple Conversation Com In Co (DP)
http://statistics.data.gov.uk/id/local-authority/38,Oxfordshire County Council,Support at Home 65+ Physical Support,5899,Social Care - Direct Payments,15/04/2019,3110539874,£660.00,Purple Conversation Com In Co (DP)
http://statistics.data.gov.uk/id/local-authority/38,Oxfordshire County Council,Support at Home 65+ Physical Support,5899,Social Care - Direct Payments,15/04/2019,3110539984,£660.00,Purple Conversation Com In Co (DP)
http://statistics.data.gov.uk/id/local-authority/38,Oxfordshire County Council,KINGFISHER,4330,Transport to School Activities,15/04/2019,3110538826,£660.00,The Oxfordshire Taxi Company Ltd T/
http://statistics.data.gov.uk/id/local-authority/38,Oxfordshire County Council,KINGFISHER,4330,Transport to School Activities,09/04/2019,3110533733,£660.00,Toots Taxis
http://statistics.data.gov.uk/id/local-authority/38,Oxfordshire County Council,LAC PUPIL PREMIUM,5380,"Author, Speaker and Lecturer Fees",10/04/2019,2200626793,£660.00,TRAX Motor Project
http://statistics.data.gov.uk/id/local-authority/38,Oxfordshire County Council,Support at Home 65+ Physical Support,5689,,30/04/2019,3110545345,£660.96,Caremark (West Oxfordshire & Cherwe
http://statistics.data.gov.uk/id/local-authority/38,Oxfordshire County Council,Support at Home U65 Learning Disability,5696,,18/04/2019,3110542473,£661.02,Orders of St John Care Trust
http://statistics.data.gov.uk/id/local-authority/38,Oxfordshire County Council,Support at Home 65+ Physical Support,5689,,30/04/2019,3110546310,£661.27,PLL Care Services
http://statistics.data.gov.uk/id/local-authority/38,Oxfordshire County Council,CORPORATE LANDLORD,4001,Uniform Business Rates,01/04/2019,3500053550,£661.50,West Oxfordshire District Council
http://statistics.data.gov.uk/id/local-authority/38,Oxfordshire County Council,Support at Home 65+ Physical Support,5899,Social Care - Direct Payments,15/04/2019,3110539903,£661.60,Purple Conversation Com In Co (DP)
http://statistics.data.gov.uk/id/local-authority/38,Oxfordshire County Council,LEAVING CARE SOUTH,4685,Clothing and Uniforms,18/04/2019,9300038687,£661.80,OCC SS Vale of White Horse Cash
http://statistics.data.gov.uk/id/local-authority/38,Oxfordshire County Council,Support at Home U65 Learning Disability,5899,Social Care - Direct Payments,15/04/2019,3110539320,£661.80,Purple Conversation Com In Co (DP)
http://statistics.data.gov.uk/id/local-authority/38,Oxfordshire County Council,South FSS Statutory - Abingdon,5227,Other Transport Arrangements,10/04/2019,3110533734,£662.00,Toots Taxis
http://statistics.data.gov.uk/id/local-authority/38,Oxfordshire County Council,Panel Costs,5161,Adoption Expenses - Fees and Expenses,02/04/2019,2200624005,£662.20,Premier Express Couriers Ltd
http://statistics.data.gov.uk/id/local-authority/38,Oxfordshire County Council,Support at Home 65+ Physical Support,5689,,02/04/2019,3110531252,£662.49,Caremark (West Oxfordshire & Cherwe
http://statistics.data.gov.uk/id/local-authority/38,Oxfordshire County Council,Support at Home 65+ Physical Support,5698,,24/04/2019,3110544107,£662.53,Oxford Private Care
http://statistics.data.gov.uk/id/local-authority/38,Oxfordshire County Council,Support at Home U65 Physical Support,5899,Social Care - Direct Payments,15/04/2019,3110539621,£662.96,Purple Conversation Com In Co (DP)
